Workbook

Sheet Notes
A1: ApirineMoneyFlowOscillator.xlsm
A2: Coded beginning 2015-Aug-09 by Ronald McAllister (rpmac_xltt@sprynet.com)
A4: This Workbook demonstrates an EXCEL version of the ideas presented
A5: by Vitali Alpirine in an article titled "The Money Flow Oscillator"
A6: which appears in the October 2015 issue of
A7: "Technical Analysis of Stocks and Commodities" magazine.
A10: New Features for this TradersTips Template
B11: Improved automation: changes to any of the following will automaticly initiate calculations appropriate to reflect a change.
C12: Changing either of cells A11 (pan) or A12 (zoom) will automatically initiate the same chart sizing macros that the manual
C13: "Set Chart" button uses.
B14: Added fail-over capability to attempt to retrieve company name and basic last trade info via screen scraper logic
C15: using the Yahoo stock Summary page. Until now, the way I have been doing this reports that ^DJI is Not Found!
C16: when there is history available. Will still report correctly for a truly Not Found Symbol
C17: Minor drawbacks to the screen scrape of the stock summary page include:
C18: Only date on the page is the date we request the page. I will use this date for now as the last trade date…
C19: but the user should be aware that this is not necessarily the correct date if you are making the inquiry on
C20: a weekend or market holiday.
C21: This is not a big issue as the last real trade will already be accounted for in the history download by about 6 pm on the real date of the trade.
C22: Note:Failover is only used if what I have been doing all along reports a not found.
A23: CalculationsAndCharts construction Notes:
B24: Approximate figure 3 from the article: use data for Symbol ^DJI, plot dates 4/19/2010 to 4/1/2011.
B25: Approximate figure 5 from the article: use data for Symbol ^NDX, plot dates 6/24/2013 to 2/6/2014.
A28: Development Notes:
A29: 1 | C29: This workbook contains and uses VBA macros and VBA Class structures.
A30: 2 | C30: Input Data
C31: The data in this workbook is sorted date descending (most recent date at the top). All formulas and
C32: VBA routines are built accordingly.
A33: Calculation and Chart Worksheet Usage Comments:
A34: 1 | C34: In General, Items in Bolded BLUE are items you may freely change to play what-if games.
C35: Be sure to have a backup copy of the spreadsheet before you alter anything else.

Sheet InputPriceData
A1: NASDAQ-100 (^NDX) -NIM (Daily)
A2: Last Trade: | B2: 2015-08-10 | C2: 4558.68 | D2: 4583.63 | E2: 4554.63 | F2: 4573.11 | G2: 0 | H2: 5:15pm | I2: 53.03 | J2: =IFERROR(OFFSET(J2,0,-1,1,1)/(OFFSET(J2,0,-4,1,1)-OFFSET(J2,0,-1,1,1)),"") -> 0.01173209324 | L2: Notes: | M2: Online Yahoo Finance Query Interfaces used in the VBA code to obtain this data: | IJ2: 241.79
A3: Request Online Yahoo History for: | M3: A.) Price History Only: "http://ichart.finance.yahoo.com/table.csv"
A4: Symbol | B4: ^NDX | D4: Valid | I4: =OFFSET(I4,-2,0,1,1) -> 53.03 | M4: B.) Price History w/ imbedded divs n splits: "http://ichart.finance.yahoo.com/x"
A5: From | B5: 1977-01-07 | D5: Data | AF5: Trailing 12 Div return (Cur Close)
A6: To | B6: =TODAY() -> 2015-08-10 | D6: Types | E6: =VLOOKUP(B7,D7:E10,2,FALSE) -> d | M6: C.) Fundamentals (in this case name and exchange):
A7: Data Type | B7: Daily | D7: Daily | E7: d | M7: "http://download.finance.yahoo.com/d/quotes.csv?"
D8: Weekly | E8: w | M8: For some how-to doc regarding this particular interface, including a list of the
A9: Available Data | D9: Monthly | E9: m | M9: specific fields you can include in a request to this interface see:
A10: Bar Count: | B10: =COUNTA(B15:B70000)-1 -> 7528 | M10: http://www.gummy-stuff.org/Yahoo-data.htm | AF10: =OFFSET(AC15,1,0,1,1)/OFFSET(N15,1,0,1,1) -> 0
A11: From: | B11: =IF(B10<=0,"",OFFSET(B15,B10,IF(HistReqDataType="v",1,0),1,1)) -> 1985-10-01 | M11: This web site includes a downloadable working EXCEL/VBA example | W11: Trailing 12 Month Dividend Returns
A12: To: | B12: =IF(B10<=0,"",IF(HistReqDataType="v",OFFSET(B15,2,1,1,1),OFFSET(B15,1,0,1,1))) -> 2015-08-10 | M12: of the capabilities of this interface. | W12: Raw Close price on Dividend date | X12: Div Year and Month | Y12: Looking for year ago Div Year and Month | Z12: Year ago Div Date we found | AA12: row offset to year ago div Date | AB12: Same month flag | AC12: Trailing 12 Div Total | AD12: Trailing 12 Div return
Q13: Split History | S13: =COUNT(Q16:Q20000) -> 1 | T13: Running | U13: Dividend History
B14: Raw Data Values | H14: Adjusted | I14: Price Adjust | J14: Vol Adjust | K14: Adjusted Values | P14: Last | Q14: Effective | R14: Shares | T14: Vol Adjust | V14: =COUNT(U16:U20000) -> 1
A15: RelRow | B15: Date | C15: Open | D15: High | E15: Low | F15: Close | G15: Volume | H15: Close | I15: Factor | J15: Factor | K15: Open | L15: High | M15: Low | N15: Close | O15: Volume | P15: Trade | Q15: 42227 | R15: New | S15: Old | T15: 1 | U15: Date | V15: $ / Share
A16: 1 | B16: 2015-08-10 | C16: 4558.680176 | D16: 4583.629883 | E16: 4554.629883 | F16: 4573.109863 | G16: 1784930000 | H16: 4573.109863 | I16: =H16/F16 -> 1 | J16: =INDEX(OFFSET($T$15,0,0,$S$13+1,1),MATCH(B16,OFFSET($Q$15,0,0,$S$13+1,1),-1)) -> 1 | K16: =ROUND($I16*C16,2) -> 4558.68 | L16: =ROUND($I16*D16,2) -> 4583.63 | M16: 4554.63 | N16: 4573.11 | O16: =G16*J16 -> 1784930000 | Q16: 1994-01-03 | R16: 2 | S16: 1 | T16: 2 | U16: 2007-05-15 | V16: 0 | W16: =(INDEX(OFFSET($F$15,1,0,$B$10,1),MATCH(U16,OFFSET($B$15,1,0,$B$10,1),-1))) -> 1871.790039 | X16: =YEAR(U16)&RIGHT("0"&MONTH(U16),2) -> 200705 | Y16: =YEAR(U16)-1&RIGHT("0"&MONTH(U16),2) -> 200605 | Z16: =OFFSET(U15,AA16,0,1,1) -> 2007-05-15 | AA16: =MATCH(Y16,OFFSET($X$15,A16,0,$V$14+1-A16,1),-1) -> 1 | AB16: =IF(OR(AND(YEAR(U16)=YEAR(Z16),MONTH(U16)=MONTH(Z16)),MONTH(U16)=MONTH(Z16)),1,0) -> 1 | AC16: =(V16+IF(AA16-AB16=0,0,IFERROR(SUM(OFFSET(V16,1,0,AA16-AB16-1,1)),0))) -> 0 | AD16: =AC16/(INDEX(OFFSET($F$15,1,0,$B$10,1),MATCH(U16,OFFSET($B$15,1,0,$B$10,1),-1))) -> 0
A17: 2 | B17: 2015-08-07 | C17: 4519.359863 | D17: 4532.459961 | E17: 4485.5 | F17: 4520.080078 | G17: 2008360000 | H17: 4520.080078 | I17: =H17/F17 -> 1 | J17: =INDEX(OFFSET($T$15,0,0,$S$13+1,1),MATCH(B17,OFFSET($Q$15,0,0,$S$13+1,1),-1)) -> 1 | K17: =ROUND($I17*C17,2) -> 4519.36 | L17: =ROUND($I17*D17,2) -> 4532.46 | M17: =ROUND($I17*E17,2) -> 4485.5 | N17: =ROUND($I17*F17,2) -> 4520.08 | O17: =G17*J17 -> 2008360000
A18: 3 | B18: 2015-08-06 | C18: 4608.689941 | D18: 4612.620117 | E18: 4508.299805 | F18: 4528.509766 | G18: 2290950000 | H18: 4528.509766 | I18: 1 | J18: 1 | K18: 4608.69 | L18: 4612.62 | M18: 4508.3 | N18: 4528.51 | O18: 2290950000
A19: 4 | B19: 2015-08-05 | C19: 4592.810059 | D19: 4634.700195 | E19: 4590.189941 | F19: 4602.240234 | G19: 2041490000 | H19: 4602.240234 | I19: 1 | J19: 1 | K19: 4592.81 | L19: 4634.7 | M19: 4590.19 | N19: 4602.24 | O19: 2041490000
A20: 5 | B20: 2015-08-04 | C20: 4573.25 | D20: 4584.450195 | E20: 4551.899902 | F20: 4567.470215 | G20: 1819700000 | H20: 4567.470215 | I20: 1 | J20: 1 | K20: 4573.25 | L20: 4584.45 | M20: 4551.9 | N20: 4567.47 | O20: 1819700000
A21: 6 | B21: 2015-08-03 | C21: 4595.259766 | D21: 4607.52002 | E21: 4549.600098 | F21: 4580.459961 | G21: 1790080000 | H21: 4580.459961 | I21: 1 | J21: 1 | K21: 4595.26 | L21: 4607.52 | M21: 4549.6 | N21: 4580.46 | O21: 1790080000
A22: 7 | B22: 2015-07-31 | C22: 4616.47998 | D22: 4616.47998 | E22: 4584.220215 | F22: 4588.910156 | G22: 1926360000 | H22: 4588.910156 | I22: 1 | J22: 1 | K22: 4616.48 | L22: 4616.48 | M22: 4584.22 | N22: 4588.91 | O22: 1926360000
A23: 8 | B23: 2015-07-30 | C23: 4570.77002 | D23: 4606.649902 | E23: 4540.97998 | F23: 4598.589844 | G23: 1908480000 | H23: 4598.589844 | I23: 1 | J23: 1 | K23: 4570.77 | L23: 4606.65 | M23: 4540.98 | N23: 4598.59 | O23: 1908480000
A24: 9 | B24: 2015-07-29 | C24: 4570.5 | D24: 4586.779785 | E24: 4552.759766 | F24: 4581.600098 | G24: 1898100000 | H24: 4581.600098 | I24: 1 | J24: 1 | K24: 4570.5 | L24: 4586.78 | M24: 4552.76 | N24: 4581.6 | O24: 1898100000
A25: 10 | B25: 2015-07-28 | C25: 4539.470215 | D25: 4568.790039 | E25: 4506.189941 | F25: 4560.22998 | G25: 2025110000 | H25: 4560.22998 | I25: 1 | J25: 1 | K25: 4539.47 | L25: 4568.79 | M25: 4506.19 | N25: 4560.23 | O25: 2025110000
A26: 11 | B26: 2015-07-27 | C26: 4530.370117 | D26: 4551.990234 | E26: 4511.919922 | F26: 4519.089844 | G26: 1935470000 | H26: 4519.089844 | I26: 1 | J26: 1 | K26: 4530.37 | L26: 4551.99 | M26: 4511.92 | N26: 4519.09 | O26: 1935470000
A27: 12 | B27: 2015-07-24 | C27: 4630.950195 | D27: 4632.060059 | E27: 4552.399902 | F27: 4557.379883 | G27: 2004380000 | H27: 4557.379883 | I27: 1 | J27: 1 | K27: 4630.95 | L27: 4632.06 | M27: 4552.4 | N27: 4557.38 | O27: 2004380000
A28: 13 | B28: 2015-07-23 | C28: 4627.560059 | D28: 4641.580078 | E28: 4592.5 | F28: 4602.830078 | G28: 2003310000 | H28: 4602.830078 | I28: 1 | J28: 1 | K28: 4627.56 | L28: 4641.58 | M28: 4592.5 | N28: 4602.83 | O28: 2003310000
A29: 14 | B29: 2015-07-22 | C29: 4604.970215 | D29: 4643.830078 | E29: 4604.529785 | F29: 4623.240234 | G29: 2035730000 | H29: 4623.240234 | I29: 1 | J29: 1 | K29: 4604.97 | L29: 4643.83 | M29: 4604.53 | N29: 4623.24 | O29: 2035730000
A30: 15 | B30: 2015-07-21 | C30: 4679.540039 | D30: 4686.359863 | E30: 4661.759766 | F30: 4674.410156 | G30: 1774570000 | H30: 4674.410156 | I30: 1 | J30: 1 | K30: 4679.54 | L30: 4686.36 | M30: 4661.76 | N30: 4674.41 | O30: 1774570000
A31: 16 | B31: 2015-07-20 | C31: 4670.22998 | D31: 4694.129883 | E31: 4657.97998 | F31: 4679.680176 | G31: 1814180000 | H31: 4679.680176 | I31: 1 | J31: 1 | K31: 4670.23 | L31: 4694.13 | M31: 4657.98 | N31: 4679.68 | O31: 1814180000
A32: 17 | B32: 2015-07-17 | C32: 4635.47998 | D32: 4661.600098 | E32: 4624.680176 | F32: 4661.600098 | G32: 1854450000 | H32: 4661.600098 | I32: 1 | J32: 1 | K32: 4635.48 | L32: 4661.6 | M32: 4624.68 | N32: 4661.6 | O32: 1854450000
A33: 18 | B33: 2015-07-16 | C33: 4567.060059 | D33: 4595.02002 | E33: 4558.319824 | F33: 4594.899902 | G33: 1823530000 | H33: 4594.899902 | I33: 1 | J33: 1 | K33: 4567.06 | L33: 4595.02 | M33: 4558.32 | N33: 4594.9 | O33: 1823530000
A34: 19 | B34: 2015-07-15 | C34: 4531.310059 | D34: 4547.180176 | E34: 4517.410156 | F34: 4528.359863 | G34: 1691350000 | H34: 4528.359863 | I34: 1 | J34: 1 | K34: 4531.31 | L34: 4547.18 | M34: 4517.41 | N34: 4528.36 | O34: 1691350000
A35: 20 | B35: 2015-07-14 | C35: 4503.200195 | D35: 4537.209961 | E35: 4500.660156 | F35: 4523.470215 | G35: 1682660000 | H35: 4523.470215 | I35: 1 | J35: 1 | K35: 4503.2 | L35: 4537.21 | M35: 4500.66 | N35: 4523.47 | O35: 1682660000
A36: 21 | B36: 2015-07-13 | C36: 4457.759766 | D36: 4498.740234 | E36: 4456.540039 | F36: 4494.470215 | G36: 1694140000 | H36: 4494.470215 | I36: 1 | J36: 1 | K36: 4457.76 | L36: 4498.74 | M36: 4456.54 | N36: 4494.47 | O36: 1694140000
A37: 22 | B37: 2015-07-10 | C37: 4405.990234 | D37: 4434.109863 | E37: 4394.009766 | F37: 4420.149902 | G37: 1590230000 | H37: 4420.149902 | I37: 1 | J37: 1 | K37: 4405.99 | L37: 4434.11 | M37: 4394.01 | N37: 4420.15 | O37: 1590230000
A38: 23 | B38: 2015-07-09 | C38: 4410.27002 | D38: 4414.430176 | E38: 4351.509766 | F38: 4352.029785 | G38: 1861600000 | H38: 4352.029785 | I38: 1 | J38: 1 | K38: 4410.27 | L38: 4414.43 | M38: 4351.51 | N38: 4352.03 | O38: 1861600000
A39: 24 | B39: 2015-07-08 | C39: 4392.509766 | D39: 4403.129883 | E39: 4346.419922 | F39: 4351.580078 | G39: 1931520000 | H39: 4351.580078 | I39: 1 | J39: 1 | K39: 4392.51 | L39: 4403.13 | M39: 4346.42 | N39: 4351.58 | O39: 1931520000
A40: 25 | B40: 2015-07-07 | C40: 4422.75 | D40: 4434.910156 | E40: 4344.149902 | F40: 4429.060059 | G40: 2132080000 | H40: 4429.060059 | I40: 1 | J40: 1 | K40: 4422.75 | L40: 4434.91 | M40: 4344.15 | N40: 4429.06 | O40: 2132080000
A41: 26 | B41: 2015-07-06 | C41: 4394.439941 | D41: 4444.410156 | E41: 4394.439941 | F41: 4418.660156 | G41: 1741500000 | H41: 4418.660156 | I41: 1 | J41: 1 | K41: 4394.44 | L41: 4444.41 | M41: 4394.44 | N41: 4418.66 | O41: 1741500000
A42: 27 | B42: 2015-07-02 | C42: 4440.169922 | D42: 4445.830078 | E42: 4417.47998 | F42: 4433.390137 | G42: 1490810000 | H42: 4433.390137 | I42: 1 | J42: 1 | K42: 4440.17 | L42: 4445.83 | M42: 4417.48 | N42: 4433.39 | O42: 1490810000
A43: 28 | B43: 2015-07-01 | C43: 4433.790039 | D43: 4445.899902 | E43: 4409.419922 | F43: 4429.22998 | G43: 1814560000 | H43: 4429.22998 | I43: 1 | J43: 1 | K43: 4433.79 | L43: 4445.9 | M43: 4409.42 | N43: 4429.23 | O43: 1814560000
A44: 29 | B44: 2015-06-30 | C44: 4414.859863 | D44: 4420.5 | E44: 4381.939941 | F44: 4396.759766 | G44: 2034430000 | H44: 4396.759766 | I44: 1 | J44: 1 | K44: 4414.86 | L44: 4420.5 | M44: 4381.94 | N44: 4396.76 | O44: 2034430000
A45: 30 | B45: 2015-06-29 | C45: 4433.109863 | D45: 4460.080078 | E45: 4377.22998 | F45: 4379.870117 | G45: 2025580000 | H45: 4379.870117 | I45: 1 | J45: 1 | K45: 4433.11 | L45: 4460.08 | M45: 4377.23 | N45: 4379.87 | O45: 2025580000
A46: 31 | B46: 2015-06-26 | C46: 4514.370117 | D46: 4523.970215 | E46: 4469.22998 | F46: 4484.279785 | G46: 3843810000 | H46: 4484.279785 | I46: 1 | J46: 1 | K46: 4514.37 | L46: 4523.97 | M46: 4469.23 | N46: 4484.28 | O46: 3843810000
A47: 32 | B47: 2015-06-25 | C47: 4540.399902 | D47: 4546.149902 | E47: 4508.660156 | F47: 4514.009766 | G47: 1614760000 | H47: 4514.009766 | I47: 1 | J47: 1 | K47: 4540.4 | L47: 4546.15 | M47: 4508.66 | N47: 4514.01 | O47: 1614760000
A48: 33 | B48: 2015-06-24 | C48: 4542.069824 | D48: 4561.640137 | E48: 4523.899902 | F48: 4524.600098 | G48: 1628800000 | H48: 4524.600098 | I48: 1 | J48: 1 | K48: 4542.07 | L48: 4561.64 | M48: 4523.9 | N48: 4524.6 | O48: 1628800000
A49: 34 | B49: 2015-06-23 | C49: 4549.52002 | D49: 4551.77002 | E49: 4529.990234 | F49: 4548.740234 | G49: 1613540000 | H49: 4548.740234 | I49: 1 | J49: 1 | K49: 4549.52 | L49: 4551.77 | M49: 4529.99 | N49: 4548.74 | O49: 1613540000
A50: 35 | B50: 2015-06-22 | C50: 4541.850098 | D50: 4557.97998 | E50: 4534.759766 | F50: 4544.040039 | G50: 1619970000 | H50: 4544.040039 | I50: 1 | J50: 1 | K50: 4541.85 | L50: 4557.98 | M50: 4534.76 | N50: 4544.04 | O50: 1619970000
A51: 36 | B51: 2015-06-19 | C51: 4538.709961 | D51: 4539.490234 | E51: 4511.209961 | F51: 4513.419922 | G51: 2468310000 | H51: 4513.419922 | I51: 1 | J51: 1 | K51: 4538.71 | L51: 4539.49 | M51: 4511.21 | N51: 4513.42 | O51: 2468310000
A52: 37 | B52: 2015-06-18 | C52: 4483.609863 | D52: 4540.689941 | E52: 4483.609863 | F52: 4531.850098 | G52: 1877920000 | H52: 4531.850098 | I52: 1 | J52: 1 | K52: 4483.61 | L52: 4540.69 | M52: 4483.61 | N52: 4531.85 | O52: 1877920000
A53: 38 | B53: 2015-06-17 | C53: 4465.180176 | D53: 4482.27002 | E53: 4441.339844 | F53: 4468.97998 | G53: 1712820000 | H53: 4468.97998 | I53: 1 | J53: 1 | K53: 4465.18 | L53: 4482.27 | M53: 4441.34 | N53: 4468.98 | O53: 1712820000
A54: 39 | B54: 2015-06-16 | C54: 4428.299805 | D54: 4463.200195 | E54: 4426.189941 | F54: 4455.899902 | G54: 1654820000 | H54: 4455.899902 | I54: 1 | J54: 1 | K54: 4428.3 | L54: 4463.2 | M54: 4426.19 | N54: 4455.9 | O54: 1654820000
A55: 40 | B55: 2015-06-15 | C55: 4416.140137 | D55: 4437.970215 | E55: 4396.129883 | F55: 4432.919922 | G55: 1790280000 | H55: 4432.919922 | I55: 1 | J55: 1 | K55: 4416.14 | L55: 4437.97 | M55: 4396.13 | N55: 4432.92 | O55: 1790280000
A56: 41 | B56: 2015-06-12 | C56: 4467.379883 | D56: 4476.209961 | E56: 4449.209961 | F56: 4453.790039 | G56: 1428900000 | H56: 4453.790039 | I56: 1 | J56: 1 | K56: 4467.38 | L56: 4476.21 | M56: 4449.21 | N56: 4453.79 | O56: 1428900000
A57: 42 | B57: 2015-06-11 | C57: 4498.47998 | D57: 4511.319824 | E57: 4483.839844 | F57: 4488.470215 | G57: 1623950000 | H57: 4488.470215 | I57: 1 | J57: 1 | K57: 4498.48 | L57: 4511.32 | M57: 4483.84 | N57: 4488.47 | O57: 1623950000
A58: 43 | B58: 2015-06-10 | C58: 4440.540039 | D58: 4497.509766 | E58: 4435.290039 | F58: 4485.459961 | G58: 1792980000 | H58: 4485.459961 | I58: 1 | J58: 1 | K58: 4440.54 | L58: 4497.51 | M58: 4435.29 | N58: 4485.46 | O58: 1792980000
A59: 44 | B59: 2015-06-09 | C59: 4421.02002 | D59: 4441.620117 | E59: 4392.450195 | F59: 4427.609863 | G59: 1754340000 | H59: 4427.609863 | I59: 1 | J59: 1 | K59: 4421.02 | L59: 4441.62 | M59: 4392.45 | N59: 4427.61 | O59: 1754340000
A60: 45 | B60: 2015-06-08 | C60: 4476.689941 | D60: 4477.830078 | E60: 4423.799805 | F60: 4431.52002 | G60: 1712210000 | H60: 4431.52002 | I60: 1 | J60: 1 | K60: 4476.69 | L60: 4477.83 | M60: 4423.8 | N60: 4431.52 | O60: 1712210000
A61: 46 | B61: 2015-06-05 | C61: 4483.430176 | D61: 4493.430176 | E61: 4452.330078 | F61: 4477.189941 | G61: 1842890000 | H61: 4477.189941 | I61: 1 | J61: 1 | K61: 4483.43 | L61: 4493.43 | M61: 4452.33 | N61: 4477.19 | O61: 1842890000
A62: 47 | B62: 2015-06-04 | C62: 4501.72998 | D62: 4526.209961 | E62: 4475.049805 | F62: 4487.029785 | G62: 1813960000 | H62: 4487.029785 | I62: 1 | J62: 1 | K62: 4501.73 | L62: 4526.21 | M62: 4475.05 | N62: 4487.03 | O62: 1813960000
A63: 48 | B63: 2015-06-03 | C63: 4531.040039 | D63: 4539.350098 | E63: 4512.439941 | F63: 4519.859863 | G63: 1852680000 | H63: 4519.859863 | I63: 1 | J63: 1 | K63: 4531.04 | L63: 4539.35 | M63: 4512.44 | N63: 4519.86 | O63: 1852680000
A64: 49 | B64: 2015-06-02 | C64: 4503.759766 | D64: 4531.080078 | E64: 4486.189941 | F64: 4508.890137 | G64: 1729750000 | H64: 4508.890137 | I64: 1 | J64: 1 | K64: 4503.76 | L64: 4531.08 | M64: 4486.19 | N64: 4508.89 | O64: 1729750000
A65: 50 | B65: 2015-06-01 | C65: 4530.029785 | D65: 4535.430176 | E65: 4488.169922 | F65: 4521.850098 | G65: 1902120000 | H65: 4521.850098 | I65: 1 | J65: 1 | K65: 4530.03 | L65: 4535.43 | M65: 4488.17 | N65: 4521.85 | O65: 1902120000
A66: 51 | B66: 2015-05-29 | C66: 4532.149902 | D66: 4539.569824 | E66: 4499.649902 | F66: 4508.25 | G66: 2024170000 | H66: 4508.25 | I66: 1 | J66: 1 | K66: 4532.15 | L66: 4539.57 | M66: 4499.65 | N66: 4508.25 | O66: 2024170000
A67: 52 | B67: 2015-05-28 | C67: 4537.47998 | D67: 4548.25 | E67: 4523.549805 | F67: 4535.660156 | G67: 1741420000 | H67: 4535.660156 | I67: 1 | J67: 1 | K67: 4537.48 | L67: 4548.25 | M67: 4523.55 | N67: 4535.66 | O67: 1741420000
A68: 53 | B68: 2015-05-27 | C68: 4488.049805 | D68: 4551.52002 | E68: 4479.740234 | F68: 4546.060059 | G68: 1809550000 | H68: 4546.060059 | I68: 1 | J68: 1 | K68: 4488.05 | L68: 4551.52 | M68: 4479.74 | N68: 4546.06 | O68: 1809550000
A69: 54 | B69: 2015-05-26 | C69: 4516.629883 | D69: 4521.850098 | E69: 4456.759766 | F69: 4472.959961 | G69: 1731950000 | H69: 4472.959961 | I69: 1 | J69: 1 | K69: 4516.63 | L69: 4521.85 | M69: 4456.76 | N69: 4472.96 | O69: 1731950000
A70: 55 | B70: 2015-05-22 | C70: 4522.859863 | D70: 4542.459961 | E70: 4522.609863 | F70: 4527.160156 | G70: 1544920000 | H70: 4527.160156 | I70: 1 | J70: 1 | K70: 4522.86 | L70: 4542.46 | M70: 4522.61 | N70: 4527.16 | O70: 1544920000
A71: 56 | B71: 2015-05-21 | C71: 4499.419922 | D71: 4537.279785 | E71: 4495.399902 | F71: 4529.470215 | G71: 1683670000 | H71: 4529.470215 | I71: 1 | J71: 1 | K71: 4499.42 | L71: 4537.28 | M71: 4495.4 | N71: 4529.47 | O71: 1683670000
A72: 57 | B72: 2015-05-20 | C72: 4505.589844 | D72: 4533.919922 | E72: 4484.52002 | F72: 4505.299805 | G72: 1786830000 | H72: 4505.299805 | I72: 1 | J72: 1 | K72: 4505.59 | L72: 4533.92 | M72: 4484.52 | N72: 4505.3 | O72: 1786830000
A73: 58 | B73: 2015-05-19 | C73: 4514.669922 | D73: 4521.850098 | E73: 4498.52002 | F73: 4503.720215 | G73: 1750980000 | H73: 4503.720215 | I73: 1 | J73: 1 | K73: 4514.67 | L73: 4521.85 | M73: 4498.52 | N73: 4503.72 | O73: 1750980000
A74: 59 | B74: 2015-05-18 | C74: 4487.140137 | D74: 4521.009766 | E74: 4483.759766 | F74: 4512.950195 | G74: 1643870000 | H74: 4512.950195 | I74: 1 | J74: 1 | K74: 4487.14 | L74: 4521.01 | M74: 4483.76 | N74: 4512.95 | O74: 1643870000
A75: 60 | B75: 2015-05-15 | C75: 4505.390137 | D75: 4509.129883 | E75: 4482.549805 | F75: 4494.290039 | G75: 1667260000 | H75: 4494.290039 | I75: 1 | J75: 1 | K75: 4505.39 | L75: 4509.13 | M75: 4482.55 | N75: 4494.29 | O75: 1667260000
A76: 61 | B76: 2015-05-14 | C76: 4461.069824 | D76: 4496.25 | E76: 4448.379883 | F76: 4495.040039 | G76: 1741970000 | H76: 4495.040039 | I76: 1 | J76: 1 | K76: 4461.07 | L76: 4496.25 | M76: 4448.38 | N76: 4495.04 | O76: 1741970000
A77: 62 | B77: 2015-05-13 | C77: 4436.080078 | D77: 4460.540039 | E77: 4421.75 | F77: 4426.560059 | G77: 1672260000 | H77: 4426.560059 | I77: 1 | J77: 1 | K77: 4436.08 | L77: 4460.54 | M77: 4421.75 | N77: 4426.56 | O77: 1672260000
A78: 63 | B78: 2015-05-12 | C78: 4412.830078 | D78: 4441.399902 | E78: 4380.52002 | F78: 4420.649902 | G78: 14371670400 | H78: 4420.649902 | I78: 1 | J78: 1 | K78: 4412.83 | L78: 4441.4 | M78: 4380.52 | N78: 4420.65 | O78: 14371670400
A79: 64 | B79: 2015-05-11 | C79: 4457.620117 | D79: 4468.75 | E79: 4437.529785 | F79: 4438.640137 | G79: 1731390000 | H79: 4438.640137 | I79: 1 | J79: 1 | K79: 4457.62 | L79: 4468.75 | M79: 4437.53 | N79: 4438.64 | O79: 1731390000
A80: 65 | B80: 2015-05-08 | C80: 4445 | D80: 4466.169922 | E80: 4441.72998 | F80: 4458.649902 | G80: 1978760000 | H80: 4458.649902 | I80: 1 | J80: 1 | K80: 4445 | L80: 4466.17 | M80: 4441.73 | N80: 4458.65 | O80: 1978760000
A81: 66 | B81: 2015-05-07 | C81: 4377.810059 | D81: 4413.72998 | E81: 4373.299805 | F81: 4401.549805 | G81: 2042960000 | H81: 4401.549805 | I81: =H81/F81 -> 1 | J81: =INDEX(OFFSET($T$15,0,0,$S$13+1,1),MATCH(B81,OFFSET($Q$15,0,0,$S$13+1,1),-1)) -> 1 | K81: =ROUND($I81*C81,2) -> 4377.81 | L81: =ROUND($I81*D81,2) -> 4413.73 | M81: =ROUND($I81*E81,2) -> 4373.3 | N81: =ROUND($I81*F81,2) -> 4401.55 | O81: =G81*J81 -> 2042960000
A82: 67 | B82: 2015-05-06 | C82: 4420.299805 | D82: 4429.959961 | E82: 4349.930176 | F82: 4379.75 | G82: 2144620000 | H82: 4379.75 | I82: 1 | J82: 1 | K82: 4420.3 | L82: 4429.96 | M82: 4349.93 | N82: 4379.75 | O82: 2144620000
A83: 68 | B83: 2015-05-05 | C83: 4464.209961 | D83: 4472.22998 | E83: 4407.27002 | F83: 4409.390137 | G83: 2069490000 | H83: 4409.390137 | I83: 1 | J83: 1 | K83: 4464.21 | L83: 4472.23 | M83: 4407.27 | N83: 4409.39 | O83: 2069490000
A84: 69 | B84: 2015-05-04 | C84: 4491.189941 | D84: 4510.470215 | E84: 4480.850098 | F84: 4482.609863 | G84: 1668200000 | H84: 4482.609863 | I84: 1 | J84: 1 | K84: 4491.19 | L84: 4510.47 | M84: 4480.85 | N84: 4482.61 | O84: 1668200000
A85: 70 | B85: 2015-05-01 | C85: 4437.700195 | D85: 4479.060059 | E85: 4435.240234 | F85: 4479.060059 | G85: 1854400000 | H85: 4479.060059 | I85: 1 | J85: 1 | K85: 4437.7 | L85: 4479.06 | M85: 4435.24 | N85: 4479.06 | O85: 1854400000
A86: 71 | B86: 2015-04-30 | C86: 4459.22998 | D86: 4480.359863 | E86: 4395.100098 | F86: 4414.25 | G86: 2269290000 | H86: 4414.25 | I86: 1 | J86: 1 | K86: 4459.23 | L86: 4480.36 | M86: 4395.1 | N86: 4414.25 | O86: 2269290000
A87: 72 | B87: 2015-04-29 | C87: 4490.569824 | D87: 4517.009766 | E87: 4463.97998 | F87: 4488.149902 | G87: 1871300000 | H87: 4488.149902 | I87: 1 | J87: 1 | K87: 4490.57 | L87: 4517.01 | M87: 4463.98 | N87: 4488.15 | O87: 1871300000
A88: 73 | B88: 2015-04-28 | C88: 4529.410156 | D88: 4537.149902 | E88: 4479.009766 | F88: 4515.27002 | G88: 2032500000 | H88: 4515.27002 | I88: 1 | J88: 1 | K88: 4529.41 | L88: 4537.15 | M88: 4479.01 | N88: 4515.27 | O88: 2032500000
A89: 74 | B89: 2015-04-27 | C89: 4548.509766 | D89: 4562.330078 | E89: 4516.330078 | F89: 4525.040039 | G89: 2172470000 | H89: 4525.040039 | I89: 1 | J89: 1 | K89: 4548.51 | L89: 4562.33 | M89: 4516.33 | N89: 4525.04 | O89: 2172470000
A90: 75 | B90: 2015-04-24 | C90: 4529.72998 | D90: 4543.640137 | E90: 4517.879883 | F90: 4536.779785 | G90: 1895150000 | H90: 4536.779785 | I90: 1 | J90: 1 | K90: 4529.73 | L90: 4543.64 | M90: 4517.88 | N90: 4536.78 | O90: 1895150000
A91: 76 | B91: 2015-04-23 | C91: 4445.169922 | D91: 4496.080078 | E91: 4444.290039 | F91: 4477.069824 | G91: 1858620000 | H91: 4477.069824 | I91: 1 | J91: 1 | K91: 4445.17 | L91: 4496.08 | M91: 4444.29 | N91: 4477.07 | O91: 1858620000
A92: 77 | B92: 2015-04-22 | C92: 4448.580078 | D92: 4466.839844 | E92: 4419.350098 | F92: 4460.810059 | G92: 1696380000 | H92: 4460.810059 | I92: 1 | J92: 1 | K92: 4448.58 | L92: 4466.84 | M92: 4419.35 | N92: 4460.81 | O92: 1696380000
A93: 78 | B93: 2015-04-21 | C93: 4444.5 | D93: 4448.680176 | E93: 4430.97998 | F93: 4435.97998 | G93: 1721260000 | H93: 4435.97998 | I93: 1 | J93: 1 | K93: 4444.5 | L93: 4448.68 | M93: 4430.98 | N93: 4435.98 | O93: 1721260000
A94: 79 | B94: 2015-04-20 | C94: 4373.649902 | D94: 4423.879883 | E94: 4373.089844 | F94: 4417.399902 | G94: 1646340000 | H94: 4417.399902 | I94: 1 | J94: 1 | K94: 4373.65 | L94: 4423.88 | M94: 4373.09 | N94: 4417.4 | O94: 1646340000
A95: 80 | B95: 2015-04-17 | C95: 4379.629883 | D95: 4390.310059 | E95: 4333.109863 | F95: 4351.799805 | G95: 1985190000 | H95: 4351.799805 | I95: 1 | J95: 1 | K95: 4379.63 | L95: 4390.31 | M95: 4333.11 | N95: 4351.8 | O95: 1985190000
A96: 81 | B96: 2015-04-16 | C96: 4412.149902 | D96: 4427.220215 | E96: 4408.959961 | F96: 4418.830078 | G96: 1662850000 | H96: 4418.830078 | I96: 1 | J96: 1 | K96: 4412.15 | L96: 4427.22 | M96: 4408.96 | N96: 4418.83 | O96: 1662850000
A97: 82 | B97: 2015-04-15 | C97: 4409.740234 | D97: 4435.279785 | E97: 4406.040039 | F97: 4424.529785 | G97: 1795530000 | H97: 4424.529785 | I97: 1 | J97: 1 | K97: 4409.74 | L97: 4435.28 | M97: 4406.04 | N97: 4424.53 | O97: 1795530000
A98: 83 | B98: 2015-04-14 | C98: 4409.290039 | D98: 4418.870117 | E98: 4375.109863 | F98: 4397.640137 | G98: 1571360000 | H98: 4397.640137 | I98: 1 | J98: 1 | K98: 4409.29 | L98: 4418.87 | M98: 4375.11 | N98: 4397.64 | O98: 1571360000
A99: 84 | B99: 2015-04-13 | C99: 4428.129883 | D99: 4448.200195 | E99: 4407.069824 | F99: 4409.209961 | G99: 1544190000 | H99: 4409.209961 | I99: 1 | J99: 1 | K99: 4428.13 | L99: 4448.2 | M99: 4407.07 | N99: 4409.21 | O99: 1544190000
A100: 85 | B100: 2015-04-10 | C100: 4402.02002 | D100: 4422.629883 | E100: 4394.379883 | F100: 4422.02002 | G100: 244120000 | H100: 4422.02002 | I100: 1 | J100: 1 | K100: 4402.02 | L100: 4422.63 | M100: 4394.38 | N100: 4422.02 | O100: 244120000
A101: 86 | B101: 2015-04-09 | C101: 4375.779785 | D101: 4405.649902 | E101: 4361.22998 | F101: 4403.950195 | G101: 1729750000 | H101: 4403.950195 | I101: 1 | J101: 1 | K101: 4375.78 | L101: 4405.65 | M101: 4361.23 | N101: 4403.95 | O101: 1729750000
A102: 87 | B102: 2015-04-08 | C102: 4345.22998 | D102: 4382.819824 | E102: 4345.089844 | F102: 4375.959961 | G102: 1714210000 | H102: 4375.959961 | I102: 1 | J102: 1 | K102: 4345.23 | L102: 4382.82 | M102: 4345.09 | N102: 4375.96 | O102: 1714210000
A103: 88 | B103: 2015-04-07 | C103: 4349.299805 | D103: 4379.410156 | E103: 4343.740234 | F103: 4344.080078 | G103: 1572940000 | H103: 4344.080078 | I103: 1 | J103: 1 | K103: 4349.3 | L103: 4379.41 | M103: 4343.74 | N103: 4344.08 | O103: 1572940000
A104: 89 | B104: 2015-04-06 | C104: 4286.160156 | D104: 4361.560059 | E104: 4283.910156 | F104: 4350.97998 | G104: 1737560000 | H104: 4350.97998 | I104: 1 | J104: 1 | K104: 4286.16 | L104: 4361.56 | M104: 4283.91 | N104: 4350.98 | O104: 1737560000
A105: 90 | B105: 2015-04-02 | C105: 4316.240234 | D105: 4327.790039 | E105: 4302.490234 | F105: 4316.009766 | G105: 1563670000 | H105: 4316.009766 | I105: 1 | J105: 1 | K105: 4316.24 | L105: 4327.79 | M105: 4302.49 | N105: 4316.01 | O105: 1563670000
A106: 91 | B106: 2015-04-01 | C106: 4328.169922 | D106: 4334.560059 | E106: 4284.060059 | F106: 4311.259766 | G106: 1874960000 | H106: 4311.259766 | I106: 1 | J106: 1 | K106: 4328.17 | L106: 4334.56 | M106: 4284.06 | N106: 4311.26 | O106: 1874960000
A107: 92 | B107: 2015-03-31 | C107: 4364.140137 | D107: 4377.359863 | E107: 4333.689941 | F107: 4333.689941 | G107: 1837660000 | H107: 4333.689941 | I107: 1 | J107: 1 | K107: 4364.14 | L107: 4377.36 | M107: 4333.69 | N107: 4333.69 | O107: 1837660000
A108: 93 | B108: 2015-03-30 | C108: 4359.779785 | D108: 4384.180176 | E108: 4359.779785 | F108: 4382.819824 | G108: 1778520000 | H108: 4382.819824 | I108: 1 | J108: 1 | K108: 4359.78 | L108: 4384.18 | M108: 4359.78 | N108: 4382.82 | O108: 1778520000
A109: 94 | B109: 2015-03-27 | C109: 4314.600098 | D109: 4342.930176 | E109: 4309.52002 | F109: 4332.859863 | G109: 1678650000 | H109: 4332.859863 | I109: 1 | J109: 1 | K109: 4314.6 | L109: 4342.93 | M109: 4309.52 | N109: 4332.86 | O109: 1678650000
A110: 95 | B110: 2015-03-26 | C110: 4288.160156 | D110: 4340.160156 | E110: 4280.950195 | F110: 4315.259766 | G110: 2004960000 | H110: 4315.259766 | I110: 1 | J110: 1 | K110: 4288.16 | L110: 4340.16 | M110: 4280.95 | N110: 4315.26 | O110: 2004960000
A111: 96 | B111: 2015-03-25 | C111: 4437.379883 | D111: 4442.540039 | E111: 4329.290039 | F111: 4329.290039 | G111: 2219520000 | H111: 4329.290039 | I111: 1 | J111: 1 | K111: 4437.38 | L111: 4442.54 | M111: 4329.29 | N111: 4329.29 | O111: 2219520000
A112: 97 | B112: 2015-03-24 | C112: 4444.390137 | D112: 4467.790039 | E112: 4430.970215 | F112: 4430.990234 | G112: 1611670000 | H112: 4430.990234 | I112: 1 | J112: 1 | K112: 4444.39 | L112: 4467.79 | M112: 4430.97 | N112: 4430.99 | O112: 1611670000
A113: 98 | B113: 2015-03-23 | C113: 4454.149902 | D113: 4466.339844 | E113: 4445.52002 | F113: 4445.540039 | G113: 1608880000 | H113: 4445.540039 | I113: 1 | J113: 1 | K113: 4454.15 | L113: 4466.34 | M113: 4445.52 | N113: 4445.54 | O113: 1608880000
A114: 99 | B114: 2015-03-20 | C114: 4468.290039 | D114: 4478.680176 | E114: 4456.410156 | F114: 4458.540039 | G114: 2825670000 | H114: 4458.540039 | I114: 1 | J114: 1 | K114: 4468.29 | L114: 4478.68 | M114: 4456.41 | N114: 4458.54 | O114: 2825670000
A115: 100 | B115: 2015-03-19 | C115: 4424.790039 | D115: 4440.009766 | E115: 4419.839844 | F115: 4426.819824 | G115: 1674970000 | H115: 4426.819824 | I115: 1 | J115: 1 | K115: 4424.79 | L115: 4440.01 | M115: 4419.84 | N115: 4426.82 | O115: 1674970000
A116: 101 | B116: 2015-03-18 | C116: 4366.799805 | D116: 4440.490234 | E116: 4344.490234 | F116: 4422.5 | G116: 1983570000 | H116: 4422.5 | I116: 1 | J116: 1 | K116: 4366.8 | L116: 4440.49 | M116: 4344.49 | N116: 4422.5 | O116: 1983570000
A117: 102 | B117: 2015-03-17 | C117: 4355.830078 | D117: 4384.97998 | E117: 4349.689941 | F117: 4375.629883 | G117: 1724370000 | H117: 4375.629883 | I117: 1 | J117: 1 | K117: 4355.83 | L117: 4384.98 | M117: 4349.69 | N117: 4375.63 | O117: 1724370000
A118: 103 | B118: 2015-03-16 | C118: 4338.290039 | D118: 4371.459961 | E118: 4327.27002 | F118: 4370.470215 | G118: 1713480000 | H118: 4370.470215 | I118: 1 | J118: 1 | K118: 4338.29 | L118: 4371.46 | M118: 4327.27 | N118: 4370.47 | O118: 1713480000
A119: 104 | B119: 2015-03-13 | C119: 4328.089844 | D119: 4347.870117 | E119: 4289.299805 | F119: 4314.899902 | G119: 1851410000 | H119: 4314.899902 | I119: 1 | J119: 1 | K119: 4328.09 | L119: 4347.87 | M119: 4289.3 | N119: 4314.9 | O119: 1851410000
A120: 105 | B120: 2015-03-12 | C120: 4302.72998 | D120: 4339.200195 | E120: 4300.870117 | F120: 4336.22998 | G120: 1855110000 | H120: 4336.22998 | I120: 1 | J120: 1 | K120: 4302.73 | L120: 4339.2 | M120: 4300.87 | N120: 4336.23 | O120: 1855110000
A121: 106 | B121: 2015-03-11 | C121: 4336.049805 | D121: 4342.870117 | E121: 4304.279785 | F121: 4305.379883 | G121: 1846020000 | H121: 4305.379883 | I121: 1 | J121: 1 | K121: 4336.05 | L121: 4342.87 | M121: 4304.28 | N121: 4305.38 | O121: 1846020000
A122: 107 | B122: 2015-03-10 | C122: 4376.029785 | D122: 4381.620117 | E122: 4329.080078 | F122: 4329.080078 | G122: 1876010000 | H122: 4329.080078 | I122: 1 | J122: 1 | K122: 4376.03 | L122: 4381.62 | M122: 4329.08 | N122: 4329.08 | O122: 1876010000
A123: 108 | B123: 2015-03-09 | C123: 4406.870117 | D123: 4424.220215 | E123: 4391.620117 | F123: 4412.990234 | G123: 1696510000 | H123: 4412.990234 | I123: 1 | J123: 1 | K123: 4406.87 | L123: 4424.22 | M123: 4391.62 | N123: 4412.99 | O123: 1696510000
A124: 109 | B124: 2015-03-06 | C124: 4442.189941 | D124: 4453.930176 | E124: 4389.819824 | F124: 4399.22998 | G124: 1918220000 | H124: 4399.22998 | I124: 1 | J124: 1 | K124: 4442.19 | L124: 4453.93 | M124: 4389.82 | N124: 4399.23 | O124: 1918220000
A125: 110 | B125: 2015-03-05 | C125: 4454.890137 | D125: 4464.47998 | E125: 4433.939941 | F125: 4452.060059 | G125: 1724200000 | H125: 4452.060059 | I125: 1 | J125: 1 | K125: 4454.89 | L125: 4464.48 | M125: 4433.94 | N125: 4452.06 | O125: 1724200000
A126: 111 | B126: 2015-03-04 | C126: 4442.410156 | D126: 4452.370117 | E126: 4421 | F126: 4445.359863 | G126: 1824830000 | H126: 4445.359863 | I126: 1 | J126: 1 | K126: 4442.41 | L126: 4452.37 | M126: 4421 | N126: 4445.36 | O126: 1824830000
A127: 112 | B127: 2015-03-03 | C127: 4466.529785 | D127: 4473.640137 | E127: 4433.509766 | F127: 4458.779785 | G127: 2018900000 | H127: 4458.779785 | I127: 1 | J127: 1 | K127: 4466.53 | L127: 4473.64 | M127: 4433.51 | N127: 4458.78 | O127: 2018900000
A128: 113 | B128: 2015-03-02 | C128: 4452.799805 | D128: 4483.970215 | E128: 4450.859863 | F128: 4483.049805 | G128: 1931110000 | H128: 4483.049805 | I128: 1 | J128: 1 | K128: 4452.8 | L128: 4483.97 | M128: 4450.86 | N128: 4483.05 | O128: 1931110000
A129: 114 | B129: 2015-02-27 | C129: 4459.859863 | D129: 4464.310059 | E129: 4435.660156 | F129: 4440.669922 | G129: 1955590000 | H129: 4440.669922 | I129: 1 | J129: 1 | K129: 4459.86 | L129: 4464.31 | M129: 4435.66 | N129: 4440.67 | O129: 1955590000
A130: 115 | B130: 2015-02-26 | C130: 4443.549805 | D130: 4463.810059 | E130: 4430.790039 | F130: 4462.27002 | G130: 1905550000 | H130: 4462.27002 | I130: 1 | J130: 1 | K130: 4443.55 | L130: 4463.81 | M130: 4430.79 | N130: 4462.27 | O130: 1905550000
A131: 116 | B131: 2015-02-25 | C131: 4441.080078 | D131: 4461.109863 | E131: 4429.899902 | F131: 4440.589844 | G131: 1848560000 | H131: 4440.589844 | I131: 1 | J131: 1 | K131: 4441.08 | L131: 4461.11 | M131: 4429.9 | N131: 4440.59 | O131: 1848560000
A132: 117 | B132: 2015-02-24 | C132: 4442.129883 | D132: 4455.52002 | E132: 4428.819824 | F132: 4451.029785 | G132: 1834890000 | H132: 4451.029785 | I132: 1 | J132: 1 | K132: 4442.13 | L132: 4455.52 | M132: 4428.82 | N132: 4451.03 | O132: 1834890000
A133: 118 | B133: 2015-02-23 | C133: 4441.259766 | D133: 4449.490234 | E133: 4430.859863 | F133: 4449.490234 | G133: 1754850000 | H133: 4449.490234 | I133: 1 | J133: 1 | K133: 4441.26 | L133: 4449.49 | M133: 4430.86 | N133: 4449.49 | O133: 1754850000
A134: 119 | B134: 2015-02-20 | C134: 4406.75 | D134: 4444.620117 | E134: 4397.620117 | F134: 4443.049805 | G134: 1761140000 | H134: 4443.049805 | I134: 1 | J134: 1 | K134: 4406.75 | L134: 4444.62 | M134: 4397.62 | N134: 4443.05 | O134: 1761140000
A135: 120 | B135: 2015-02-19 | C135: 4388.919922 | D135: 4415.790039 | E135: 4388.439941 | F135: 4411.859863 | G135: 1592890000 | H135: 4411.859863 | I135: 1 | J135: 1 | K135: 4388.92 | L135: 4415.79 | M135: 4388.44 | N135: 4411.86 | O135: 1592890000
A136: 121 | B136: 2015-02-18 | C136: 4378.72998 | D136: 4393.189941 | E136: 4374.22998 | F136: 4390.910156 | G136: 1684800000 | H136: 4390.910156 | I136: 1 | J136: 1 | K136: 4378.73 | L136: 4393.19 | M136: 4374.23 | N136: 4390.91 | O136: 1684800000
A137: 122 | B137: 2015-02-17 | C137: 4379.319824 | D137: 4387.319824 | E137: 4370.629883 | F137: 4385.339844 | G137: 1751490000 | H137: 4385.339844 | I137: 1 | J137: 1 | K137: 4379.32 | L137: 4387.32 | M137: 4370.63 | N137: 4385.34 | O137: 1751490000
A138: 123 | B138: 2015-02-13 | C138: 4359.779785 | D138: 4384.029785 | E138: 4351.02002 | F138: 4384.029785 | G138: 1942240000 | H138: 4384.029785 | I138: 1 | J138: 1 | K138: 4359.78 | L138: 4384.03 | M138: 4351.02 | N138: 4384.03 | O138: 1942240000
A139: 124 | B139: 2015-02-12 | C139: 4321.410156 | D139: 4347.970215 | E139: 4317.97998 | F139: 4347.970215 | G139: 2075470000 | H139: 4347.970215 | I139: 1 | J139: 1 | K139: 4321.41 | L139: 4347.97 | M139: 4317.98 | N139: 4347.97 | O139: 2075470000
A140: 125 | B140: 2015-02-11 | C140: 4284.759766 | D140: 4305.350098 | E140: 4277.649902 | F140: 4297.279785 | G140: 1793630000 | H140: 4297.279785 | I140: 1 | J140: 1 | K140: 4284.76 | L140: 4305.35 | M140: 4277.65 | N140: 4297.28 | O140: 1793630000
A141: 126 | B141: 2015-02-10 | C141: 4240.040039 | D141: 4286.430176 | E141: 4232.990234 | F141: 4281.160156 | G141: 1773730000 | H141: 4281.160156 | I141: 1 | J141: 1 | K141: 4240.04 | L141: 4286.43 | M141: 4232.99 | N141: 4281.16 | O141: 1773730000
A142: 127 | B142: 2015-02-09 | C142: 4209.810059 | D142: 4235.240234 | E142: 4206.759766 | F142: 4216.089844 | G142: 1654680000 | H142: 4216.089844 | I142: 1 | J142: 1 | K142: 4209.81 | L142: 4235.24 | M142: 4206.76 | N142: 4216.09 | O142: 1654680000
A143: 128 | B143: 2015-02-06 | C143: 4259.97998 | D143: 4271.279785 | E143: 4214.890137 | F143: 4228.680176 | G143: 2034060000 | H143: 4228.680176 | I143: 1 | J143: 1 | K143: 4259.98 | L143: 4271.28 | M143: 4214.89 | N143: 4228.68 | O143: 2034060000
A144: 129 | B144: 2015-02-05 | C144: 4229.620117 | D144: 4258 | E144: 4220.169922 | F144: 4256.180176 | G144: 2036590000 | H144: 4256.180176 | I144: 1 | J144: 1 | K144: 4229.62 | L144: 4258 | M144: 4220.17 | N144: 4256.18 | O144: 2036590000
A145: 130 | B145: 2015-02-04 | C145: 4202.430176 | D145: 4248.839844 | E145: 4198.740234 | F145: 4221.200195 | G145: 2212960000 | H145: 4221.200195 | I145: =H145/F145 -> 1 | J145: =INDEX(OFFSET($T$15,0,0,$S$13+1,1),MATCH(B145,OFFSET($Q$15,0,0,$S$13+1,1),-1)) -> 1 | K145: =ROUND($I145*C145,2) -> 4202.43 | L145: =ROUND($I145*D145,2) -> 4248.84 | M145: =ROUND($I145*E145,2) -> 4198.74 | N145: =ROUND($I145*F145,2) -> 4221.2 | O145: =G145*J145 -> 2212960000
A146: 131 | B146: 2015-02-03 | C146: 4201.939941 | D146: 4229.149902 | E146: 4174.22998 | F146: 4229.149902 | G146: 2153520000 | H146: 4229.149902 | I146: 1 | J146: 1 | K146: 4201.94 | L146: 4229.15 | M146: 4174.23 | N146: 4229.15 | O146: 2153520000
A147: 132 | B147: 2015-02-02 | C147: 4162.200195 | D147: 4189.089844 | E147: 4094.72998 | F147: 4188.589844 | G147: 2006450000 | H147: 4188.589844 | I147: 1 | J147: 1 | K147: 4162.2 | L147: 4189.09 | M147: 4094.73 | N147: 4188.59 | O147: 2006450000
A148: 133 | B148: 2015-01-30 | C148: 4178.620117 | D148: 4210.850098 | E148: 4144.029785 | F148: 4148.430176 | G148: 2264230000 | H148: 4148.430176 | I148: 1 | J148: 1 | K148: 4178.62 | L148: 4210.85 | M148: 4144.03 | N148: 4148.43 | O148: 2264230000
A149: 134 | B149: 2015-01-29 | C149: 4134.52002 | D149: 4189.540039 | E149: 4103.709961 | F149: 4181.350098 | G149: 2110710000 | H149: 4181.350098 | I149: 1 | J149: 1 | K149: 4134.52 | L149: 4189.54 | M149: 4103.71 | N149: 4181.35 | O149: 2110710000
A150: 135 | B150: 2015-01-28 | C150: 4233.740234 | D150: 4235.149902 | E150: 4140.379883 | F150: 4140.379883 | G150: 2118680000 | H150: 4140.379883 | I150: 1 | J150: 1 | K150: 4233.74 | L150: 4235.15 | M150: 4140.38 | N150: 4140.38 | O150: 2118680000
A151: 136 | B151: 2015-01-27 | C151: 4200.879883 | D151: 4209.410156 | E151: 4151.149902 | F151: 4165.5 | G151: 1954160000 | H151: 4165.5 | I151: 1 | J151: 1 | K151: 4200.88 | L151: 4209.41 | M151: 4151.15 | N151: 4165.5 | O151: 1954160000
A152: 137 | B152: 2015-01-26 | C152: 4271.100098 | D152: 4282.47998 | E152: 4254.470215 | F152: 4275.720215 | G152: 1717510000 | H152: 4275.720215 | I152: 1 | J152: 1 | K152: 4271.1 | L152: 4282.48 | M152: 4254.47 | N152: 4275.72 | O152: 1717510000
A153: 138 | B153: 2015-01-23 | C153: 4268.529785 | D153: 4292.879883 | E153: 4258.47998 | F153: 4278.140137 | G153: 1653830000 | H153: 4278.140137 | I153: 1 | J153: 1 | K153: 4268.53 | L153: 4292.88 | M153: 4258.48 | N153: 4278.14 | O153: 1653830000
A154: 139 | B154: 2015-01-22 | C154: 4215 | D154: 4274.149902 | E154: 4173.540039 | F154: 4270.359863 | G154: 1996550000 | H154: 4270.359863 | I154: 1 | J154: 1 | K154: 4215 | L154: 4274.15 | M154: 4173.54 | N154: 4270.36 | O154: 1996550000
A155: 140 | B155: 2015-01-21 | C155: 4158.129883 | D155: 4211.279785 | E155: 4145.819824 | F155: 4192.089844 | G155: 1847420000 | H155: 4192.089844 | I155: 1 | J155: 1 | K155: 4158.13 | L155: 4211.28 | M155: 4145.82 | N155: 4192.09 | O155: 1847420000
A156: 141 | B156: 2015-01-20 | C156: 4164.430176 | D156: 4181.339844 | E156: 4117.149902 | F156: 4171.209961 | G156: 1835040000 | H156: 4171.209961 | I156: 1 | J156: 1 | K156: 4164.43 | L156: 4181.34 | M156: 4117.15 | N156: 4171.21 | O156: 1835040000
A157: 142 | B157: 2015-01-16 | C157: 4087.879883 | D157: 4143.529785 | E157: 4078.850098 | F157: 4142.140137 | G157: 1970520000 | H157: 4142.140137 | I157: 1 | J157: 1 | K157: 4087.88 | L157: 4143.53 | M157: 4078.85 | N157: 4142.14 | O157: 1970520000
A158: 143 | B158: 2015-01-15 | C158: 4162.109863 | D158: 4169.439941 | E158: 4085.699951 | F158: 4089.649902 | G158: 1976260000 | H158: 4089.649902 | I158: 1 | J158: 1 | K158: 4162.11 | L158: 4169.44 | M158: 4085.7 | N158: 4089.65 | O158: 1976260000
A159: 144 | B159: 2015-01-14 | C159: 4122.080078 | D159: 4165 | E159: 4108.310059 | F159: 4145.839844 | G159: 2073810000 | H159: 4145.839844 | I159: 1 | J159: 1 | K159: 4122.08 | L159: 4165 | M159: 4108.31 | N159: 4145.84 | O159: 2073810000
A160: 145 | B160: 2015-01-13 | C160: 4212.990234 | D160: 4252.700195 | E160: 4134.939941 | F160: 4166.200195 | G160: 2162180000 | H160: 4166.200195 | I160: 1 | J160: 1 | K160: 4212.99 | L160: 4252.7 | M160: 4134.94 | N160: 4166.2 | O160: 2162180000
A161: 146 | B161: 2015-01-12 | C161: 4221.52002 | D161: 4223.879883 | E161: 4158.109863 | F161: 4169.970215 | G161: 1861960000 | H161: 4169.970215 | I161: 1 | J161: 1 | K161: 4221.52 | L161: 4223.88 | M161: 4158.11 | N161: 4169.97 | O161: 1861960000
A162: 147 | B162: 2015-01-09 | C162: 4250.97998 | D162: 4253.970215 | E162: 4188.609863 | F162: 4213.279785 | G162: 1715830000 | H162: 4213.279785 | I162: 1 | J162: 1 | K162: 4250.98 | L162: 4253.97 | M162: 4188.61 | N162: 4213.28 | O162: 1715830000
A163: 148 | B163: 2015-01-08 | C163: 4195.490234 | D163: 4247.930176 | E163: 4192.629883 | F163: 4240.549805 | G163: 2105450000 | H163: 4240.549805 | I163: 1 | J163: 1 | K163: 4195.49 | L163: 4247.93 | M163: 4192.63 | N163: 4240.55 | O163: 2105450000
A164: 149 | B164: 2015-01-07 | C164: 4139.850098 | D164: 4169.970215 | E164: 4126.390137 | F164: 4160 | G164: 1957950000 | H164: 4160 | I164: 1 | J164: 1 | K164: 4139.85 | L164: 4169.97 | M164: 4126.39 | N164: 4160 | O164: 1957950000
A165: 150 | B165: 2015-01-06 | C165: 4174.779785 | D165: 4176.259766 | E165: 4090.330078 | F165: 4110.830078 | G165: 2167320000 | H165: 4110.830078 | I165: 1 | J165: 1 | K165: 4174.78 | L165: 4176.26 | M165: 4090.33 | N165: 4110.83 | O165: 2167320000
A166: 151 | B166: 2015-01-05 | C166: 4206.549805 | D166: 4210.959961 | E166: 4151.850098 | F166: 4160.959961 | G166: 1794470000 | H166: 4160.959961 | I166: 1 | J166: 1 | K166: 4206.55 | L166: 4210.96 | M166: 4151.85 | N166: 4160.96 | O166: 1794470000
A167: 152 | B167: 2015-01-02 | C167: 4258.600098 | D167: 4276.709961 | E167: 4206.459961 | F167: 4230.240234 | G167: 1435150000 | H167: 4230.240234 | I167: 1 | J167: 1 | K167: 4258.6 | L167: 4276.71 | M167: 4206.46 | N167: 4230.24 | O167: 1435150000
A168: 153 | B168: 2014-12-31 | C168: 4294.879883 | D168: 4307.009766 | E168: 4233.709961 | F168: 4236.279785 | G168: 1515600000 | H168: 4236.279785 | I168: 1 | J168: 1 | K168: 4294.88 | L168: 4307.01 | M168: 4233.71 | N168: 4236.28 | O168: 1515600000
A169: 154 | B169: 2014-12-30 | C169: 4301.140137 | D169: 4309.129883 | E169: 4277.75 | F169: 4282.350098 | G169: 1269200000 | H169: 4282.350098 | I169: 1 | J169: 1 | K169: 4301.14 | L169: 4309.13 | M169: 4277.75 | N169: 4282.35 | O169: 1269200000
A170: 155 | B170: 2014-12-29 | C170: 4309.700195 | D170: 4321.200195 | E170: 4306.669922 | F170: 4312.640137 | G170: 1227740000 | H170: 4312.640137 | I170: 1 | J170: 1 | K170: 4309.7 | L170: 4321.2 | M170: 4306.67 | N170: 4312.64 | O170: 1227740000
A171: 156 | B171: 2014-12-26 | C171: 4295.720215 | D171: 4322.450195 | E171: 4294.799805 | F171: 4314.089844 | G171: 930220000 | H171: 4314.089844 | I171: 1 | J171: 1 | K171: 4295.72 | L171: 4322.45 | M171: 4294.8 | N171: 4314.09 | O171: 930220000
A172: 157 | B172: 2014-12-24 | C172: 4283.189941 | D172: 4298.870117 | E172: 4281.799805 | F172: 4283.100098 | G172: 729750000 | H172: 4283.100098 | I172: 1 | J172: 1 | K172: 4283.19 | L172: 4298.87 | M172: 4281.8 | N172: 4283.1 | O172: 729750000
A173: 158 | B173: 2014-12-23 | C173: 4308.950195 | D173: 4309.029785 | E173: 4274.509766 | F173: 4279.299805 | G173: 1590820000 | H173: 4279.299805 | I173: 1 | J173: 1 | K173: 4308.95 | L173: 4309.03 | M173: 4274.51 | N173: 4279.3 | O173: 1590820000
A174: 159 | B174: 2014-12-22 | C174: 4271.870117 | D174: 4295.27002 | E174: 4270.540039 | F174: 4293.669922 | G174: 1720070000 | H174: 4293.669922 | I174: 1 | J174: 1 | K174: 4271.87 | L174: 4295.27 | M174: 4270.54 | N174: 4293.67 | O174: 1720070000
A175: 160 | B175: 2014-12-19 | C175: 4272.75 | D175: 4300.399902 | E175: 4258.330078 | F175: 4281.779785 | G175: 3287920000 | H175: 4281.779785 | I175: 1 | J175: 1 | K175: 4272.75 | L175: 4300.4 | M175: 4258.33 | N175: 4281.78 | O175: 3287920000
A176: 161 | B176: 2014-12-18 | C176: 4230.350098 | D176: 4267.77002 | E176: 4213.209961 | F176: 4267.77002 | G176: 2172260000 | H176: 4267.77002 | I176: 1 | J176: 1 | K176: 4230.35 | L176: 4267.77 | M176: 4213.21 | N176: 4267.77 | O176: 2172260000
A177: 162 | B177: 2014-12-17 | C177: 4095.75 | D177: 4175.970215 | E177: 4089.090088 | F177: 4165.100098 | G177: 2279930000 | H177: 4165.100098 | I177: 1 | J177: 1 | K177: 4095.75 | L177: 4175.97 | M177: 4089.09 | N177: 4165.1 | O177: 2279930000
A178: 163 | B178: 2014-12-16 | C178: 4122.22998 | D178: 4190.419922 | E178: 4089.189941 | F178: 4089.600098 | G178: 2231670000 | H178: 4089.600098 | I178: 1 | J178: 1 | K178: 4122.23 | L178: 4190.42 | M178: 4089.19 | N178: 4089.6 | O178: 2231670000
A179: 164 | B179: 2014-12-15 | C179: 4224.169922 | D179: 4236.060059 | E179: 4145.009766 | F179: 4157.410156 | G179: 2143610000 | H179: 4157.410156 | I179: 1 | J179: 1 | K179: 4224.17 | L179: 4236.06 | M179: 4145.01 | N179: 4157.41 | O179: 2143610000
A180: 165 | B180: 2014-12-12 | C180: 4207.609863 | D180: 4254.430176 | E180: 4199.279785 | F180: 4199.279785 | G180: 1888870000 | H180: 4199.279785 | I180: 1 | J180: 1 | K180: 4207.61 | L180: 4254.43 | M180: 4199.28 | N180: 4199.28 | O180: 1888870000
A181: 166 | B181: 2014-12-11 | C181: 4241.689941 | D181: 4296.810059 | E181: 4238.290039 | F181: 4246.47998 | G181: 1873050000 | H181: 4246.47998 | I181: 1 | J181: 1 | K181: 4241.69 | L181: 4296.81 | M181: 4238.29 | N181: 4246.48 | O181: 1873050000
A182: 167 | B182: 2014-12-10 | C182: 4284.5 | D182: 4297 | E182: 4218.850098 | F182: 4224.870117 | G182: 1850810000 | H182: 4224.870117 | I182: 1 | J182: 1 | K182: 4284.5 | L182: 4297 | M182: 4218.85 | N182: 4224.87 | O182: 1850810000
A183: 168 | B183: 2014-12-09 | C183: 4228.209961 | D183: 4297.72998 | E183: 4216.870117 | F183: 4294.669922 | G183: 1950330000 | H183: 4294.669922 | I183: 1 | J183: 1 | K183: 4228.21 | L183: 4297.73 | M183: 4216.87 | N183: 4294.67 | O183: 1950330000
A184: 169 | B184: 2014-12-08 | C184: 4301.27002 | D184: 4320.080078 | E184: 4259.009766 | F184: 4278.339844 | G184: 1966770000 | H184: 4278.339844 | I184: 1 | J184: 1 | K184: 4301.27 | L184: 4320.08 | M184: 4259.01 | N184: 4278.34 | O184: 1966770000
A185: 170 | B185: 2014-12-05 | C185: 4318.279785 | D185: 4324.419922 | E185: 4302.040039 | F185: 4311.569824 | G185: 1767100000 | H185: 4311.569824 | I185: 1 | J185: 1 | K185: 4318.28 | L185: 4324.42 | M185: 4302.04 | N185: 4311.57 | O185: 1767100000
A186: 171 | B186: 2014-12-04 | C186: 4309.47998 | D186: 4327.549805 | E186: 4293.939941 | F186: 4311.930176 | G186: 1724090000 | H186: 4311.930176 | I186: 1 | J186: 1 | K186: 4309.48 | L186: 4327.55 | M186: 4293.94 | N186: 4311.93 | O186: 1724090000
A187: 172 | B187: 2014-12-03 | C187: 4312.169922 | D187: 4319.02002 | E187: 4287.040039 | F187: 4312.930176 | G187: 1734510000 | H187: 4312.930176 | I187: 1 | J187: 1 | K187: 4312.17 | L187: 4319.02 | M187: 4287.04 | N187: 4312.93 | O187: 1734510000
A188: 173 | B188: 2014-12-02 | C188: 4291.330078 | D188: 4312.919922 | E188: 4283.890137 | F188: 4305.959961 | G188: 1839170000 | H188: 4305.959961 | I188: 1 | J188: 1 | K188: 4291.33 | L188: 4312.92 | M188: 4283.89 | N188: 4305.96 | O188: 1839170000
A189: 174 | B189: 2014-12-01 | C189: 4323.950195 | D189: 4332.549805 | E189: 4274.680176 | F189: 4287.810059 | G189: 1893600000 | H189: 4287.810059 | I189: 1 | J189: 1 | K189: 4323.95 | L189: 4332.55 | M189: 4274.68 | N189: 4287.81 | O189: 1893600000
A190: 175 | B190: 2014-11-28 | C190: 4330.959961 | D190: 4347.089844 | E190: 4326.209961 | F190: 4337.790039 | G190: 998600000 | H190: 4337.790039 | I190: 1 | J190: 1 | K190: 4330.96 | L190: 4347.09 | M190: 4326.21 | N190: 4337.79 | O190: 998600000
A191: 176 | B191: 2014-11-26 | C191: 4291.870117 | D191: 4319.410156 | E191: 4289.509766 | F191: 4317.990234 | G191: 1362930000 | H191: 4317.990234 | I191: 1 | J191: 1 | K191: 4291.87 | L191: 4319.41 | M191: 4289.51 | N191: 4317.99 | O191: 1362930000
A192: 177 | B192: 2014-11-25 | C192: 4290.680176 | D192: 4302.439941 | E192: 4279.899902 | F192: 4288.22998 | G192: 1720140000 | H192: 4288.22998 | I192: 1 | J192: 1 | K192: 4290.68 | L192: 4302.44 | M192: 4279.9 | N192: 4288.23 | O192: 1720140000
A193: 178 | B193: 2014-11-24 | C193: 4262.089844 | D193: 4285 | E193: 4258.410156 | F193: 4284.319824 | G193: 1568130000 | H193: 4284.319824 | I193: 1 | J193: 1 | K193: 4262.09 | L193: 4285 | M193: 4258.41 | N193: 4284.32 | O193: 1568130000
A194: 179 | B194: 2014-11-21 | C194: 4284.410156 | D194: 4285.27002 | E194: 4237.379883 | F194: 4251.319824 | G194: 1854340000 | H194: 4251.319824 | I194: 1 | J194: 1 | K194: 4284.41 | L194: 4285.27 | M194: 4237.38 | N194: 4251.32 | O194: 1854340000
A195: 180 | B195: 2014-11-20 | C195: 4204.540039 | D195: 4245.169922 | E195: 4202.359863 | F195: 4242.089844 | G195: 1667330000 | H195: 4242.089844 | I195: 1 | J195: 1 | K195: 4204.54 | L195: 4245.17 | M195: 4202.36 | N195: 4242.09 | O195: 1667330000
A196: 181 | B196: 2014-11-19 | C196: 4233.709961 | D196: 4235.839844 | E196: 4204.160156 | F196: 4222.660156 | G196: 1641560000 | H196: 4222.660156 | I196: 1 | J196: 1 | K196: 4233.71 | L196: 4235.84 | M196: 4204.16 | N196: 4222.66 | O196: 1641560000
A197: 182 | B197: 2014-11-18 | C197: 4215.180176 | D197: 4248.189941 | E197: 4214.319824 | F197: 4242.189941 | G197: 1655760000 | H197: 4242.189941 | I197: 1 | J197: 1 | K197: 4215.18 | L197: 4248.19 | M197: 4214.32 | N197: 4242.19 | O197: 1655760000
A198: 183 | B198: 2014-11-17 | C198: 4215.290039 | D198: 4225.47998 | E198: 4194.180176 | F198: 4213.790039 | G198: 1695070000 | H198: 4213.790039 | I198: 1 | J198: 1 | K198: 4215.29 | L198: 4225.48 | M198: 4194.18 | N198: 4213.79 | O198: 1695070000
A199: 184 | B199: 2014-11-14 | C199: 4214.970215 | D199: 4225.180176 | E199: 4198.589844 | F199: 4224.990234 | G199: 1739950000 | H199: 4224.990234 | I199: 1 | J199: 1 | K199: 4214.97 | L199: 4225.18 | M199: 4198.59 | N199: 4224.99 | O199: 1739950000
A200: 185 | B200: 2014-11-13 | C200: 4202.77002 | D200: 4228.680176 | E200: 4194.330078 | F200: 4213.47998 | G200: 1857580000 | H200: 4213.47998 | I200: 1 | J200: 1 | K200: 4202.77 | L200: 4228.68 | M200: 4194.33 | N200: 4213.48 | O200: 1857580000
... 4300 more rows

Sheet CalculationsAndCharts
A1: ApirineMoneyFlowOscillator
A2: =InputPriceData!A1 -> NASDAQ-100 (^NDX) -NIM (Daily)
A4: User Charting Controls
A5: Data Control
A6: =InputPriceData!$B$10 -> 7528 | B6: Available Input Data Rows | E6: Earliest: | F6: =OFFSET(InputPriceData!B15,CalculationsAndCharts!A6,0,1,1) -> 1985-10-01
B7: Use Close Adjusted: | C7: FALSE | E7: Latest: | F7: =OFFSET(InputPriceData!B15,1,0,1,1) -> 2015-08-10
A8: =MIN(A6-A11,COUNTA(B33:B9983)) -> 841 | B8: Logically Available for Calc / Plot | E8: $ Change: | F8: =InputPriceData!I4 -> 53.03
A10: Price Chart Windowing Controls | F10: Y-axis Range
A11: 379 | B11: Input Data Offset (Pan) | E11: Max High+ | F11: =CEILING(MAX(OFFSET($E$33,0,0,$A$12,1))+2*F14,0.1) -> 3715.7
A12: 158 | B12: Data Points to Plot (Zoom) | E12: Min Low- | F12: =FLOOR(MIN(OFFSET($F$33,0,0,$A$12,1))-2*F14,0.1) -> 2744.1
B13: First: | C13: =OFFSET(B32,A12,0,1,1) -> 2013-06-24 | E13: White space %: | F13: 0.05
B14: ="Last: "&OFFSET(InputPriceData!P15,1+A11,0,1,1) -> Last: | C14: =B33 -> 2014-02-06 | E14: Allowance: | F14: =FLOOR((CEILING(MAX(OFFSET($E$33,0,0,$A$12,1)),1)-FLOOR(MIN(OFFSET($F$33,0,0,$A$12,1)),1))*F13,0.01) -> 40.5
A15: User Controls for Indicator Calculations
A16: 20 | B16: <== Apirine Money Flow Oscillator Period (MFO)
A17: 50 | B17: <== EMA Period | C17: Alpha: | D17: =2/(A17+1) -> 0.03921568627 | E17: 1-Alpha: | F17: =1-D17 -> 0.9607843137
A18: 20 | B18: <== Chaiken Money Flow Period (CMF)
AB21: Volume Cursor Scale Setting Calculations
A23: Help! I would like to plot data | AC23: =MAX(OFFSET($C$32,1,0,$A$12,1)) -> 3630410000
A24: From | B24: 2013-06-24 | C24: =OFFSET(InputPriceData!$A$15,MATCH(B24,OFFSET(InputPriceData!B15,1,0,InputPriceData!$B$10,1),0),0,1,1)-C25 -> 158 | E24: 59 | AC24: =LOG10(AC23) -> 9.559955675
A25: To | B25: 2014-02-06 | C25: =OFFSET(InputPriceData!$A$15,MATCH(B25,OFFSET(InputPriceData!$B$15,1,0,InputPriceData!$B$10,1),0),0,1,1)-1 -> 379 | E25: =$A$12-$E$24+1 -> 100 | AC25: =INT(AC24) -> 9
AC26: =10^AC25 -> 1000000000
AC27: =CEILING(AC23,AC26)*AC28 -> 3809520000
H28: @ Cursor => | I28: =OFFSET(A32,$E$25,0,1,1)&"(RR)" -> 100(RR) | J28: =OFFSET($B$32,E25,0,1,1) -> 2013-09-16 | K28: =TEXT(OFFSET(D32,$E$25,0,1,1),"#,##0.00")&"(o)" -> 3,203.19(o) | L28: =TEXT(OFFSET(E32,$E$25,0,1,1),"#,##0.00")&"(h)" -> 3,204.59(h) | M28: =TEXT(OFFSET(F32,$E$25,0,1,1),"#,##0.00")&"(l)" -> 3,163.13(l) | N28: =TEXT(OFFSET(G32,$E$25,0,1,1),"#,##0.00")&"(c)" -> 3,168.69(c) | AC28: 0.95238
E29: Cursor =>
D30: Price Source Column Index | X30: Oscillator Cursor
A31: Rel Row | D31: 0 | E31: 1 | F31: 2 | G31: 3 | I31: MFO Multiplier | J31: Money Flow Volume | K31: Apirine | L31: Chaiken Money Flow
B32: Date | C32: Volume | D32: Open | E32: High | F32: Low | G32: Close | H32: ="EMA("&A17&")" -> EMA(50) | K32: ="MFO(" & A16 & ")" -> MFO(20) | L32: Daily MF | M32: ="CMF("&A18&")" -> CMF(20) | X32: =MAX(OFFSET(K33,0,0,$A$12,1),OFFSET(M33,0,0,$A$12,1)) -> 0.3773264607 | Y32: =MIN(OFFSET(K33,0,0,$A$12,1),OFFSET(M33,0,0,$A$12,1)) -> -0.1929506954 | Z32: Price Chart Cursor | AB32: Volume Chart Cursor
A33: 1 | B33: =OFFSET(InputPriceData!B$15,CalculationsAndCharts!$A33+$A$11,0,1,1) -> 2014-02-06 | C33: =OFFSET(InputPriceData!G$15,CalculationsAndCharts!$A33+$A$11,IF($C$7,8,0),1,1) -> 1942700000 | D33: =OFFSET(InputPriceData!C$15,CalculationsAndCharts!$A33+$A$11,IF($C$7,8,0),1,1) -> 3465.830078 | E33: =OFFSET(InputPriceData!D$15,CalculationsAndCharts!$A33+$A$11,IF($C$7,8,0),1,1) -> 3502.52002 | F33: =OFFSET(InputPriceData!E$15,CalculationsAndCharts!$A33+$A$11,IF($C$7,8,0),1,1) -> 3465.419922 | G33: =OFFSET(InputPriceData!F$15,CalculationsAndCharts!$A33+$A$11,IF($C$7,8,0),1,1) -> 3497.600098 | H33: =G33*$D$17+H34*$F$17 -> 3499.62426 | I33: =((E33-F34)-(E34-F33))/((E33-F34)+(E34-F33)) -> 0.9102395352 | J33: =I33*C33 -> 1768322345 | K33: =IFERROR(SUM(OFFSET(J33,0,0,$A$16,1))/SUM(OFFSET(C33,0,0,$A$16,1)),SUM(OFFSET(J33,0,0,$A$16,1))/0.00001) -> -0.09138870804 | L33: =(((G33 - F33) - (E33 - G33))/ (E33 - F33)) * C33 -> 1427448937 | M33: =AVERAGE(OFFSET(L33,0,0,$A$18,1)) / AVERAGE(OFFSET(C33,0,0,$A$18,1)) -> 0.1570036586 | X33: =$E$25 -> 100 | Y33: =X32 -> 0.3773264607 | Z33: =$E$25 -> 100 | AA33: =$F$11 -> 3715.7 | AB33: =$E$25 -> 100 | AC33: 0
A34: 2 | B34: =OFFSET(InputPriceData!B$15,CalculationsAndCharts!$A34+$A$11,0,1,1) -> 2014-02-05 | C34: =OFFSET(InputPriceData!G$15,CalculationsAndCharts!$A34+$A$11,IF($C$7,8,0),1,1) -> 2168360000 | D34: =OFFSET(InputPriceData!C$15,CalculationsAndCharts!$A34+$A$11,IF($C$7,8,0),1,1) -> 3457.040039 | E34: =OFFSET(InputPriceData!D$15,CalculationsAndCharts!$A34+$A$11,IF($C$7,8,0),1,1) -> 3469.350098 | F34: =OFFSET(InputPriceData!E$15,CalculationsAndCharts!$A34+$A$11,IF($C$7,8,0),1,1) -> 3418.879883 | G34: =OFFSET(InputPriceData!F$15,CalculationsAndCharts!$A34+$A$11,IF($C$7,8,0),1,1) -> 3454.899902 | H34: 3499.706879 | I34: -0.5084103363 | J34: -1102416637 | K34: =IFERROR(SUM(OFFSET(J34,0,0,$A$16,1))/SUM(OFFSET(C34,0,0,$A$16,1)),SUM(OFFSET(J34,0,0,$A$16,1))/0.00001) -> -0.1019514477 | L34: =(((G34 - F34) - (E34 - G34))/ (E34 - F34)) * C34 -> 926707789.9 | M34: =AVERAGE(OFFSET(L34,0,0,$A$18,1)) / AVERAGE(OFFSET(C34,0,0,$A$18,1)) -> 0.1427347045 | X34: =$E$25 -> 100 | Y34: =Y32 -> -0.1929506954 | Z34: =$E$25 -> 100 | AA34: =$F$12 -> 2744.1 | AB34: =$E$25 -> 100 | AC34: =AC27 -> 3809520000
A35: 3 | B35: =OFFSET(InputPriceData!B$15,CalculationsAndCharts!$A35+$A$11,0,1,1) -> 2014-02-04 | C35: =OFFSET(InputPriceData!G$15,CalculationsAndCharts!$A35+$A$11,IF($C$7,8,0),1,1) -> 2173360000 | D35: =OFFSET(InputPriceData!C$15,CalculationsAndCharts!$A35+$A$11,IF($C$7,8,0),1,1) -> 3460.129883 | E35: =OFFSET(InputPriceData!D$15,CalculationsAndCharts!$A35+$A$11,IF($C$7,8,0),1,1) -> 3480.73999 | F35: =OFFSET(InputPriceData!E$15,CalculationsAndCharts!$A35+$A$11,IF($C$7,8,0),1,1) -> 3449.189941 | G35: =OFFSET(InputPriceData!F$15,CalculationsAndCharts!$A35+$A$11,IF($C$7,8,0),1,1) -> 3470.199951 | H35: 3501.535735 | I35: -0.283049726 | J35: -615168952.6 | K35: =IFERROR(SUM(OFFSET(J35,0,0,$A$16,1))/SUM(OFFSET(C35,0,0,$A$16,1)),SUM(OFFSET(J35,0,0,$A$16,1))/0.00001) -> -0.03795760899 | L35: 721235525.6 | M35: 0.1536532865
A36: 4 | B36: =OFFSET(InputPriceData!B$15,CalculationsAndCharts!$A36+$A$11,0,1,1) -> 2014-02-03 | C36: =OFFSET(InputPriceData!G$15,CalculationsAndCharts!$A36+$A$11,IF($C$7,8,0),1,1) -> 2617030000 | D36: =OFFSET(InputPriceData!C$15,CalculationsAndCharts!$A36+$A$11,IF($C$7,8,0),1,1) -> 3524.22998 | E36: =OFFSET(InputPriceData!D$15,CalculationsAndCharts!$A36+$A$11,IF($C$7,8,0),1,1) -> 3533.47998 | F36: =OFFSET(InputPriceData!E$15,CalculationsAndCharts!$A36+$A$11,IF($C$7,8,0),1,1) -> 3433.639893 | G36: =OFFSET(InputPriceData!F$15,CalculationsAndCharts!$A36+$A$11,IF($C$7,8,0),1,1) -> 3440.5 | H36: 3502.814747 | I36: -0.3991015035 | J36: -1044460608 | K36: =IFERROR(SUM(OFFSET(J36,0,0,$A$16,1))/SUM(OFFSET(C36,0,0,$A$16,1)),SUM(OFFSET(J36,0,0,$A$16,1))/0.00001) -> -0.06715971566 | L36: -2257392777 | M36: 0.1352083995
A37: 5 | B37: =OFFSET(InputPriceData!B$15,CalculationsAndCharts!$A37+$A$11,0,1,1) -> 2014-01-31 | C37: =OFFSET(InputPriceData!G$15,CalculationsAndCharts!$A37+$A$11,IF($C$7,8,0),1,1) -> 2300570000 | D37: =OFFSET(InputPriceData!C$15,CalculationsAndCharts!$A37+$A$11,IF($C$7,8,0),1,1) -> 3488.370117 | E37: =OFFSET(InputPriceData!D$15,CalculationsAndCharts!$A37+$A$11,IF($C$7,8,0),1,1) -> 3539.439941 | F37: =OFFSET(InputPriceData!E$15,CalculationsAndCharts!$A37+$A$11,IF($C$7,8,0),1,1) -> 3488.040039 | G37: =OFFSET(InputPriceData!F$15,CalculationsAndCharts!$A37+$A$11,IF($C$7,8,0),1,1) -> 3521.919922 | H37: 3505.358206 | I37: -0.2824204625 | J37: -649728043.4 | K37: -0.06300334245 | L37: 732238989.9 | M37: 0.1545974818
A38: 6 | B38: =OFFSET(InputPriceData!B$15,CalculationsAndCharts!$A38+$A$11,0,1,1) -> 2014-01-30 | C38: =OFFSET(InputPriceData!G$15,CalculationsAndCharts!$A38+$A$11,IF($C$7,8,0),1,1) -> 2168410000 | D38: =OFFSET(InputPriceData!C$15,CalculationsAndCharts!$A38+$A$11,IF($C$7,8,0),1,1) -> 3514.25 | E38: =OFFSET(InputPriceData!D$15,CalculationsAndCharts!$A38+$A$11,IF($C$7,8,0),1,1) -> 3544.209961 | F38: =OFFSET(InputPriceData!E$15,CalculationsAndCharts!$A38+$A$11,IF($C$7,8,0),1,1) -> 3508.01001 | G38: =OFFSET(InputPriceData!F$15,CalculationsAndCharts!$A38+$A$11,IF($C$7,8,0),1,1) -> 3532.409912 | H38: 3504.682217 | I38: 1.190764924 | J38: 2582066569 | K38: -0.08560514317 | L38: 754742658.2 | M38: 0.1334300671
A39: 7 | B39: =OFFSET(InputPriceData!B$15,CalculationsAndCharts!$A39+$A$11,0,1,1) -> 2014-01-29 | C39: =OFFSET(InputPriceData!G$15,CalculationsAndCharts!$A39+$A$11,IF($C$7,8,0),1,1) -> 2231850000 | D39: =OFFSET(InputPriceData!C$15,CalculationsAndCharts!$A39+$A$11,IF($C$7,8,0),1,1) -> 3472.419922 | E39: =OFFSET(InputPriceData!D$15,CalculationsAndCharts!$A39+$A$11,IF($C$7,8,0),1,1) -> 3500.820068 | F39: =OFFSET(InputPriceData!E$15,CalculationsAndCharts!$A39+$A$11,IF($C$7,8,0),1,1) -> 3461.639893 | G39: =OFFSET(InputPriceData!F$15,CalculationsAndCharts!$A39+$A$11,IF($C$7,8,0),1,1) -> 3467.820068 | H39: 3503.550475 | I39: -0.4757150894 | J39: -1061724722 | K39: -0.1129637195 | L39: -1527758016 | M39: 0.1511904636
A40: 8 | B40: =OFFSET(InputPriceData!B$15,CalculationsAndCharts!$A40+$A$11,0,1,1) -> 2014-01-28 | C40: =OFFSET(InputPriceData!G$15,CalculationsAndCharts!$A40+$A$11,IF($C$7,8,0),1,1) -> 2091180000 | D40: =OFFSET(InputPriceData!C$15,CalculationsAndCharts!$A40+$A$11,IF($C$7,8,0),1,1) -> 3484.389893 | E40: =OFFSET(InputPriceData!D$15,CalculationsAndCharts!$A40+$A$11,IF($C$7,8,0),1,1) -> 3509.800049 | F40: =OFFSET(InputPriceData!E$15,CalculationsAndCharts!$A40+$A$11,IF($C$7,8,0),1,1) -> 3483.709961 | G40: =OFFSET(InputPriceData!F$15,CalculationsAndCharts!$A40+$A$11,IF($C$7,8,0),1,1) -> 3505.719971 | H40: 3505.008859 | I40: -0.4129558326 | J40: -863564978 | K40: -0.1164801016 | L40: 1437124904 | M40: 0.2059624226
A41: 9 | B41: =OFFSET(InputPriceData!B$15,CalculationsAndCharts!$A41+$A$11,0,1,1) -> 2014-01-27 | C41: =OFFSET(InputPriceData!G$15,CalculationsAndCharts!$A41+$A$11,IF($C$7,8,0),1,1) -> 2398280000 | D41: =OFFSET(InputPriceData!C$15,CalculationsAndCharts!$A41+$A$11,IF($C$7,8,0),1,1) -> 3543.5 | E41: =OFFSET(InputPriceData!D$15,CalculationsAndCharts!$A41+$A$11,IF($C$7,8,0),1,1) -> 3548.47998 | F41: =OFFSET(InputPriceData!E$15,CalculationsAndCharts!$A41+$A$11,IF($C$7,8,0),1,1) -> 3482.889893 | G41: =OFFSET(InputPriceData!F$15,CalculationsAndCharts!$A41+$A$11,IF($C$7,8,0),1,1) -> 3509.02002 | H41: 3504.979834 | I41: -0.8865891633 | J41: -2126289059 | K41: -0.09438522901 | L41: -487400967.9 | M41: 0.1527500538
A42: 10 | B42: =OFFSET(InputPriceData!B$15,CalculationsAndCharts!$A42+$A$11,0,1,1) -> 2014-01-24 | C42: =OFFSET(InputPriceData!G$15,CalculationsAndCharts!$A42+$A$11,IF($C$7,8,0),1,1) -> 2489470000 | D42: =OFFSET(InputPriceData!C$15,CalculationsAndCharts!$A42+$A$11,IF($C$7,8,0),1,1) -> 3596.929932 | E42: =OFFSET(InputPriceData!D$15,CalculationsAndCharts!$A42+$A$11,IF($C$7,8,0),1,1) -> 3601 | F42: =OFFSET(InputPriceData!E$15,CalculationsAndCharts!$A42+$A$11,IF($C$7,8,0),1,1) -> 3541.379883 | G42: =OFFSET(InputPriceData!F$15,CalculationsAndCharts!$A42+$A$11,IF($C$7,8,0),1,1) -> 3541.47998 | H42: 3504.814928 | I42: -0.7125325803 | J42: -1773828483 | K42: -0.01891690019 | L42: -2481110792 | M42: 0.1912073533
A43: 11 | B43: =OFFSET(InputPriceData!B$15,CalculationsAndCharts!$A43+$A$11,0,1,1) -> 2014-01-23 | C43: =OFFSET(InputPriceData!G$15,CalculationsAndCharts!$A43+$A$11,IF($C$7,8,0),1,1) -> 2191980000 | D43: =OFFSET(InputPriceData!C$15,CalculationsAndCharts!$A43+$A$11,IF($C$7,8,0),1,1) -> 3612.530029 | E43: =OFFSET(InputPriceData!D$15,CalculationsAndCharts!$A43+$A$11,IF($C$7,8,0),1,1) -> 3613.879883 | F43: =OFFSET(InputPriceData!E$15,CalculationsAndCharts!$A43+$A$11,IF($C$7,8,0),1,1) -> 3588.830078 | G43: =OFFSET(InputPriceData!F$15,CalculationsAndCharts!$A43+$A$11,IF($C$7,8,0),1,1) -> 3613.76001 | H43: 3503.318395 | I43: -1.072370279 | J43: -2350614205 | K43: 0.04014440585 | L43: 2171001057 | M43: 0.2799052345
A44: 12 | B44: =OFFSET(InputPriceData!B$15,CalculationsAndCharts!$A44+$A$11,0,1,1) -> 2014-01-22 | C44: =OFFSET(InputPriceData!G$15,CalculationsAndCharts!$A44+$A$11,IF($C$7,8,0),1,1) -> 2026910000 | D44: =OFFSET(InputPriceData!C$15,CalculationsAndCharts!$A44+$A$11,IF($C$7,8,0),1,1) -> 3623.310059 | E44: =OFFSET(InputPriceData!D$15,CalculationsAndCharts!$A44+$A$11,IF($C$7,8,0),1,1) -> 3634.649902 | F44: =OFFSET(InputPriceData!E$15,CalculationsAndCharts!$A44+$A$11,IF($C$7,8,0),1,1) -> 3615.47998 | G44: =OFFSET(InputPriceData!F$15,CalculationsAndCharts!$A44+$A$11,IF($C$7,8,0),1,1) -> 3627.719971 | H44: 3498.810574 | I44: 0.9126336604 | J44: 1849826293 | K44: 0.1710095687 | L44: 561453182.5 | M44: 0.2677749592
A45: 13 | B45: =OFFSET(InputPriceData!B$15,CalculationsAndCharts!$A45+$A$11,0,1,1) -> 2014-01-21 | C45: =OFFSET(InputPriceData!G$15,CalculationsAndCharts!$A45+$A$11,IF($C$7,8,0),1,1) -> 2034030000 | D45: =OFFSET(InputPriceData!C$15,CalculationsAndCharts!$A45+$A$11,IF($C$7,8,0),1,1) -> 3611.629883 | E45: =OFFSET(InputPriceData!D$15,CalculationsAndCharts!$A45+$A$11,IF($C$7,8,0),1,1) -> 3617.699951 | F45: =OFFSET(InputPriceData!E$15,CalculationsAndCharts!$A45+$A$11,IF($C$7,8,0),1,1) -> 3586.050049 | G45: =OFFSET(InputPriceData!F$15,CalculationsAndCharts!$A45+$A$11,IF($C$7,8,0),1,1) -> 3617.699951 | H45: 3493.548966 | I45: 0.2440837093 | J45: 496473587.2 | K45: 0.2076394972 | L45: 2034030000 | M45: 0.2878886222
A46: 14 | B46: =OFFSET(InputPriceData!B$15,CalculationsAndCharts!$A46+$A$11,0,1,1) -> 2014-01-17 | C46: =OFFSET(InputPriceData!G$15,CalculationsAndCharts!$A46+$A$11,IF($C$7,8,0),1,1) -> 2150370000 | D46: =OFFSET(InputPriceData!C$15,CalculationsAndCharts!$A46+$A$11,IF($C$7,8,0),1,1) -> 3597.409912 | E46: =OFFSET(InputPriceData!D$15,CalculationsAndCharts!$A46+$A$11,IF($C$7,8,0),1,1) -> 3608.719971 | F46: =OFFSET(InputPriceData!E$15,CalculationsAndCharts!$A46+$A$11,IF($C$7,8,0),1,1) -> 3580.389893 | G46: =OFFSET(InputPriceData!F$15,CalculationsAndCharts!$A46+$A$11,IF($C$7,8,0),1,1) -> 3591.25 | H46: 3488.481579 | I46: -0.5895231881 | J46: -1267692978 | K46: 0.2188319202 | L46: -501715994.2 | M46: 0.2660768131
A47: 15 | B47: =OFFSET(InputPriceData!B$15,CalculationsAndCharts!$A47+$A$11,0,1,1) -> 2014-01-16 | C47: =OFFSET(InputPriceData!G$15,CalculationsAndCharts!$A47+$A$11,IF($C$7,8,0),1,1) -> 2005850000 | D47: =OFFSET(InputPriceData!C$15,CalculationsAndCharts!$A47+$A$11,IF($C$7,8,0),1,1) -> 3605.429932 | E47: =OFFSET(InputPriceData!D$15,CalculationsAndCharts!$A47+$A$11,IF($C$7,8,0),1,1) -> 3614.659912 | F47: =OFFSET(InputPriceData!E$15,CalculationsAndCharts!$A47+$A$11,IF($C$7,8,0),1,1) -> 3599.870117 | G47: =OFFSET(InputPriceData!F$15,CalculationsAndCharts!$A47+$A$11,IF($C$7,8,0),1,1) -> 3611.290039 | H47: 3484.28695 | I47: 0.1639826205 | J47: 328924539.3 | K47: 0.2464517849 | L47: 1091779216 | M47: 0.3344983386
A48: 16 | B48: =OFFSET(InputPriceData!B$15,CalculationsAndCharts!$A48+$A$11,0,1,1) -> 2014-01-15 | C48: =OFFSET(InputPriceData!G$15,CalculationsAndCharts!$A48+$A$11,IF($C$7,8,0),1,1) -> 2101870000 | D48: =OFFSET(InputPriceData!C$15,CalculationsAndCharts!$A48+$A$11,IF($C$7,8,0),1,1) -> 3593.810059 | E48: =OFFSET(InputPriceData!D$15,CalculationsAndCharts!$A48+$A$11,IF($C$7,8,0),1,1) -> 3615.699951 | F48: =OFFSET(InputPriceData!E$15,CalculationsAndCharts!$A48+$A$11,IF($C$7,8,0),1,1) -> 3592.620117 | G48: =OFFSET(InputPriceData!F$15,CalculationsAndCharts!$A48+$A$11,IF($C$7,8,0),1,1) -> 3609.840088 | H48: 3479.10315 | I48: 1.278248313 | J48: 2686711781 | K48: 0.2162604171 | L48: 1034559876 | M48: 0.2963284149
A49: 17 | B49: =OFFSET(InputPriceData!B$15,CalculationsAndCharts!$A49+$A$11,0,1,1) -> 2014-01-14 | C49: =OFFSET(InputPriceData!G$15,CalculationsAndCharts!$A49+$A$11,IF($C$7,8,0),1,1) -> 2034180000 | D49: =OFFSET(InputPriceData!C$15,CalculationsAndCharts!$A49+$A$11,IF($C$7,8,0),1,1) -> 3526.199951 | E49: =OFFSET(InputPriceData!D$15,CalculationsAndCharts!$A49+$A$11,IF($C$7,8,0),1,1) -> 3581.600098 | F49: =OFFSET(InputPriceData!E$15,CalculationsAndCharts!$A49+$A$11,IF($C$7,8,0),1,1) -> 3525.469971 | G49: =OFFSET(InputPriceData!F$15,CalculationsAndCharts!$A49+$A$11,IF($C$7,8,0),1,1) -> 3580.649902 | H49: 3473.766949 | I49: 0.2733050019 | J49: 555951568.9 | K49: 0.182633504 | L49: 1965308975 | M49: 0.2432515882
A50: 18 | B50: =OFFSET(InputPriceData!B$15,CalculationsAndCharts!$A50+$A$11,0,1,1) -> 2014-01-13 | C50: =OFFSET(InputPriceData!G$15,CalculationsAndCharts!$A50+$A$11,IF($C$7,8,0),1,1) -> 2322240000 | D50: =OFFSET(InputPriceData!C$15,CalculationsAndCharts!$A50+$A$11,IF($C$7,8,0),1,1) -> 3559.389893 | E50: =OFFSET(InputPriceData!D$15,CalculationsAndCharts!$A50+$A$11,IF($C$7,8,0),1,1) -> 3572.399902 | F50: =OFFSET(InputPriceData!E$15,CalculationsAndCharts!$A50+$A$11,IF($C$7,8,0),1,1) -> 3499.370117 | G50: =OFFSET(InputPriceData!F$15,CalculationsAndCharts!$A50+$A$11,IF($C$7,8,0),1,1) -> 3512.800049 | H50: 3469.404379 | I50: -0.3155636795 | J50: -732814599.2 | K50: 0.1617580346 | L50: -1468135739 | M50: 0.1712801561
A51: 19 | B51: =OFFSET(InputPriceData!B$15,CalculationsAndCharts!$A51+$A$11,0,1,1) -> 2014-01-10 | C51: =OFFSET(InputPriceData!G$15,CalculationsAndCharts!$A51+$A$11,IF($C$7,8,0),1,1) -> 2143070000 | D51: =OFFSET(InputPriceData!C$15,CalculationsAndCharts!$A51+$A$11,IF($C$7,8,0),1,1) -> 3565.679932 | E51: =OFFSET(InputPriceData!D$15,CalculationsAndCharts!$A51+$A$11,IF($C$7,8,0),1,1) -> 3568.469971 | F51: =OFFSET(InputPriceData!E$15,CalculationsAndCharts!$A51+$A$11,IF($C$7,8,0),1,1) -> 3536.449951 | G51: =OFFSET(InputPriceData!F$15,CalculationsAndCharts!$A51+$A$11,IF($C$7,8,0),1,1) -> 3565.080078 | H51: 3467.633127 | I51: -0.2340191217 | J51: -501519359.1 | K51: 0.1519811305 | L51: 1689305262 | M51: 0.1731232294
A52: 20 | B52: =OFFSET(InputPriceData!B$15,CalculationsAndCharts!$A52+$A$11,0,1,1) -> 2014-01-09 | C52: =OFFSET(InputPriceData!G$15,CalculationsAndCharts!$A52+$A$11,IF($C$7,8,0),1,1) -> 2214770000 | D52: =OFFSET(InputPriceData!C$15,CalculationsAndCharts!$A52+$A$11,IF($C$7,8,0),1,1) -> 3576.330078 | E52: =OFFSET(InputPriceData!D$15,CalculationsAndCharts!$A52+$A$11,IF($C$7,8,0),1,1) -> 3579.399902 | F52: =OFFSET(InputPriceData!E$15,CalculationsAndCharts!$A52+$A$11,IF($C$7,8,0),1,1) -> 3541.810059 | G52: =OFFSET(InputPriceData!F$15,CalculationsAndCharts!$A52+$A$11,IF($C$7,8,0),1,1) -> 3552.580078 | H52: 3463.655701 | I52: -0.08211763304 | J52: -181871670.1 | K52: 0.1324819731 | L52: -945644455.6 | M52: 0.08531724995
A53: 21 | B53: =OFFSET(InputPriceData!B$15,CalculationsAndCharts!$A53+$A$11,0,1,1) -> 2014-01-08 | C53: =OFFSET(InputPriceData!G$15,CalculationsAndCharts!$A53+$A$11,IF($C$7,8,0),1,1) -> 2345220000 | D53: =OFFSET(InputPriceData!C$15,CalculationsAndCharts!$A53+$A$11,IF($C$7,8,0),1,1) -> 3558.300049 | E53: =OFFSET(InputPriceData!D$15,CalculationsAndCharts!$A53+$A$11,IF($C$7,8,0),1,1) -> 3575.149902 | F53: =OFFSET(InputPriceData!E$15,CalculationsAndCharts!$A53+$A$11,IF($C$7,8,0),1,1) -> 3551.120117 | G53: =OFFSET(InputPriceData!F$15,CalculationsAndCharts!$A53+$A$11,IF($C$7,8,0),1,1) -> 3567.540039 | H53: 3460.026134 | I53: 0.5392109923 | J53: 1264568403 | K53: 0.124766519 | L53: 859829855.7 | M53: 0.1128562706
A54: 22 | B54: =OFFSET(InputPriceData!B$15,CalculationsAndCharts!$A54+$A$11,0,1,1) -> 2014-01-07 | C54: =OFFSET(InputPriceData!G$15,CalculationsAndCharts!$A54+$A$11,IF($C$7,8,0),1,1) -> 2278220000 | D54: =OFFSET(InputPriceData!C$15,CalculationsAndCharts!$A54+$A$11,IF($C$7,8,0),1,1) -> 3539.290039 | E54: =OFFSET(InputPriceData!D$15,CalculationsAndCharts!$A54+$A$11,IF($C$7,8,0),1,1) -> 3562.98999 | F54: =OFFSET(InputPriceData!E$15,CalculationsAndCharts!$A54+$A$11,IF($C$7,8,0),1,1) -> 3535.5 | G54: =OFFSET(InputPriceData!F$15,CalculationsAndCharts!$A54+$A$11,IF($C$7,8,0),1,1) -> 3557.850098 | H54: 3455.637812 | I54: 0.7560801666 | J54: 1722516957 | K54: 0.1399369612 | L54: 1426287733 | M54: 0.07994760966
A55: 23 | B55: =OFFSET(InputPriceData!B$15,CalculationsAndCharts!$A55+$A$11,0,1,1) -> 2014-01-06 | C55: =OFFSET(InputPriceData!G$15,CalculationsAndCharts!$A55+$A$11,IF($C$7,8,0),1,1) -> 2292840000 | D55: =OFFSET(InputPriceData!C$15,CalculationsAndCharts!$A55+$A$11,IF($C$7,8,0),1,1) -> 3539.02002 | E55: =OFFSET(InputPriceData!D$15,CalculationsAndCharts!$A55+$A$11,IF($C$7,8,0),1,1) -> 3542.52002 | F55: =OFFSET(InputPriceData!E$15,CalculationsAndCharts!$A55+$A$11,IF($C$7,8,0),1,1) -> 3512.449951 | G55: =OFFSET(InputPriceData!F$15,CalculationsAndCharts!$A55+$A$11,IF($C$7,8,0),1,1) -> 3526.959961 | H55: 3451.465882 | I55: -0.8362542841 | J55: -1917397273 | K55: 0.1351140953 | L55: -80066139.83 | M55: 0.06342571465
A56: 24 | B56: =OFFSET(InputPriceData!B$15,CalculationsAndCharts!$A56+$A$11,0,1,1) -> 2014-01-03 | C56: =OFFSET(InputPriceData!G$15,CalculationsAndCharts!$A56+$A$11,IF($C$7,8,0),1,1) -> 1667480000 | D56: =OFFSET(InputPriceData!C$15,CalculationsAndCharts!$A56+$A$11,IF($C$7,8,0),1,1) -> 3564.939941 | E56: =OFFSET(InputPriceData!D$15,CalculationsAndCharts!$A56+$A$11,IF($C$7,8,0),1,1) -> 3567.51001 | F56: =OFFSET(InputPriceData!E$15,CalculationsAndCharts!$A56+$A$11,IF($C$7,8,0),1,1) -> 3537.610107 | G56: =OFFSET(InputPriceData!F$15,CalculationsAndCharts!$A56+$A$11,IF($C$7,8,0),1,1) -> 3538.72998 | H56: 3448.384491 | I56: -0.4797259686 | J56: -799933458.2 | K56: 0.2016600198 | L56: -1542572181 | M56: 0.05993765322
A57: 25 | B57: =OFFSET(InputPriceData!B$15,CalculationsAndCharts!$A57+$A$11,0,1,1) -> 2014-01-02 | C57: =OFFSET(InputPriceData!G$15,CalculationsAndCharts!$A57+$A$11,IF($C$7,8,0),1,1) -> 1738820000 | D57: =OFFSET(InputPriceData!C$15,CalculationsAndCharts!$A57+$A$11,IF($C$7,8,0),1,1) -> 3575.600098 | E57: =OFFSET(InputPriceData!D$15,CalculationsAndCharts!$A57+$A$11,IF($C$7,8,0),1,1) -> 3577.030029 | F57: =OFFSET(InputPriceData!E$15,CalculationsAndCharts!$A57+$A$11,IF($C$7,8,0),1,1) -> 3553.649902 | G57: =OFFSET(InputPriceData!F$15,CalculationsAndCharts!$A57+$A$11,IF($C$7,8,0),1,1) -> 3563.570068 | H57: 3444.69692 | I57: -0.9112871484 | J57: -1584564319 | K57: 0.2178023766 | L57: -263260603.4 | M57: 0.1296248401
A58: 26 | B58: =OFFSET(InputPriceData!B$15,CalculationsAndCharts!$A58+$A$11,0,1,1) -> 2013-12-31 | C58: =OFFSET(InputPriceData!G$15,CalculationsAndCharts!$A58+$A$11,IF($C$7,8,0),1,1) -> 1401140000 | D58: =OFFSET(InputPriceData!C$15,CalculationsAndCharts!$A58+$A$11,IF($C$7,8,0),1,1) -> 3576.23999 | E58: =OFFSET(InputPriceData!D$15,CalculationsAndCharts!$A58+$A$11,IF($C$7,8,0),1,1) -> 3592 | F58: =OFFSET(InputPriceData!E$15,CalculationsAndCharts!$A58+$A$11,IF($C$7,8,0),1,1) -> 3575.25 | G58: =OFFSET(InputPriceData!F$15,CalculationsAndCharts!$A58+$A$11,IF($C$7,8,0),1,1) -> 3592 | H58: 3439.844955 | I58: 1.066501236 | J58: 1494317542 | K58: 0.2325162888 | L58: 1401140000 | M58: 0.1519490122
A59: 27 | B59: =OFFSET(InputPriceData!B$15,CalculationsAndCharts!$A59+$A$11,0,1,1) -> 2013-12-30 | C59: =OFFSET(InputPriceData!G$15,CalculationsAndCharts!$A59+$A$11,IF($C$7,8,0),1,1) -> 1349470000 | D59: =OFFSET(InputPriceData!C$15,CalculationsAndCharts!$A59+$A$11,IF($C$7,8,0),1,1) -> 3570.860107 | E59: =OFFSET(InputPriceData!D$15,CalculationsAndCharts!$A59+$A$11,IF($C$7,8,0),1,1) -> 3574.199951 | F59: =OFFSET(InputPriceData!E$15,CalculationsAndCharts!$A59+$A$11,IF($C$7,8,0),1,1) -> 3559.370117 | G59: =OFFSET(InputPriceData!F$15,CalculationsAndCharts!$A59+$A$11,IF($C$7,8,0),1,1) -> 3570.080078 | H59: 3433.634544 | I59: -0.8204664575 | J59: -1107194870 | K59: 0.1894524387 | L59: 599678058 | M59: 0.08177118076
A60: 28 | B60: =OFFSET(InputPriceData!B$15,CalculationsAndCharts!$A60+$A$11,0,1,1) -> 2013-12-27 | C60: =OFFSET(InputPriceData!G$15,CalculationsAndCharts!$A60+$A$11,IF($C$7,8,0),1,1) -> 1255020000 | D60: =OFFSET(InputPriceData!C$15,CalculationsAndCharts!$A60+$A$11,IF($C$7,8,0),1,1) -> 3589.120117 | E60: =OFFSET(InputPriceData!D$15,CalculationsAndCharts!$A60+$A$11,IF($C$7,8,0),1,1) -> 3591.310059 | F60: =OFFSET(InputPriceData!E$15,CalculationsAndCharts!$A60+$A$11,IF($C$7,8,0),1,1) -> 3571.050049 | G60: =OFFSET(InputPriceData!F$15,CalculationsAndCharts!$A60+$A$11,IF($C$7,8,0),1,1) -> 3574.02002 | H60: 3428.065339 | I60: 0.1014922842 | J60: 127374846.6 | K60: 0.261379183 | L60: -887066281.9 | M60: 0.06319693787
A61: 29 | B61: =OFFSET(InputPriceData!B$15,CalculationsAndCharts!$A61+$A$11,0,1,1) -> 2013-12-26 | C61: =OFFSET(InputPriceData!G$15,CalculationsAndCharts!$A61+$A$11,IF($C$7,8,0),1,1) -> 1180670000 | D61: =OFFSET(InputPriceData!C$15,CalculationsAndCharts!$A61+$A$11,IF($C$7,8,0),1,1) -> 3579.620117 | E61: =OFFSET(InputPriceData!D$15,CalculationsAndCharts!$A61+$A$11,IF($C$7,8,0),1,1) -> 3586.719971 | F61: =OFFSET(InputPriceData!E$15,CalculationsAndCharts!$A61+$A$11,IF($C$7,8,0),1,1) -> 3572.100098 | G61: =OFFSET(InputPriceData!F$15,CalculationsAndCharts!$A61+$A$11,IF($C$7,8,0),1,1) -> 3584.580078 | H61: 3422.108005 | I61: 0.8035915133 | J61: 948776392 | K61: 0.2921621523 | L61: 835043541 | M61: 0.1245108322
A62: 30 | B62: =OFFSET(InputPriceData!B$15,CalculationsAndCharts!$A62+$A$11,0,1,1) -> 2013-12-24 | C62: =OFFSET(InputPriceData!G$15,CalculationsAndCharts!$A62+$A$11,IF($C$7,8,0),1,1) -> 802270000 | D62: =OFFSET(InputPriceData!C$15,CalculationsAndCharts!$A62+$A$11,IF($C$7,8,0),1,1) -> 3570.52002 | E62: =OFFSET(InputPriceData!D$15,CalculationsAndCharts!$A62+$A$11,IF($C$7,8,0),1,1) -> 3574.51001 | F62: =OFFSET(InputPriceData!E$15,CalculationsAndCharts!$A62+$A$11,IF($C$7,8,0),1,1) -> 3564.590088 | G62: =OFFSET(InputPriceData!F$15,CalculationsAndCharts!$A62+$A$11,IF($C$7,8,0),1,1) -> 3572.800049 | H62: 3415.476492 | I62: 0.592117492 | J62: 475038100.3 | K62: 0.2812459117 | L62: 525685081 | M62: 0.1204704638
A63: 31 | B63: =OFFSET(InputPriceData!B$15,CalculationsAndCharts!$A63+$A$11,0,1,1) -> 2013-12-23 | C63: =OFFSET(InputPriceData!G$15,CalculationsAndCharts!$A63+$A$11,IF($C$7,8,0),1,1) -> 1779400000 | D63: =OFFSET(InputPriceData!C$15,CalculationsAndCharts!$A63+$A$11,IF($C$7,8,0),1,1) -> 3563.189941 | E63: =OFFSET(InputPriceData!D$15,CalculationsAndCharts!$A63+$A$11,IF($C$7,8,0),1,1) -> 3570.280029 | F63: =OFFSET(InputPriceData!E$15,CalculationsAndCharts!$A63+$A$11,IF($C$7,8,0),1,1) -> 3552.300049 | G63: =OFFSET(InputPriceData!F$15,CalculationsAndCharts!$A63+$A$11,IF($C$7,8,0),1,1) -> 3569.399902 | H63: 3409.055122 | I63: 1.399932778 | J63: 2491040385 | K63: 0.3040476142 | L63: 1605195359 | M63: 0.09502311132
A64: 32 | B64: =OFFSET(InputPriceData!B$15,CalculationsAndCharts!$A64+$A$11,0,1,1) -> 2013-12-20 | C64: =OFFSET(InputPriceData!G$15,CalculationsAndCharts!$A64+$A$11,IF($C$7,8,0),1,1) -> 3510420000 | D64: =OFFSET(InputPriceData!C$15,CalculationsAndCharts!$A64+$A$11,IF($C$7,8,0),1,1) -> 3502.459961 | E64: =OFFSET(InputPriceData!D$15,CalculationsAndCharts!$A64+$A$11,IF($C$7,8,0),1,1) -> 3540.969971 | F64: =OFFSET(InputPriceData!E$15,CalculationsAndCharts!$A64+$A$11,IF($C$7,8,0),1,1) -> 3502.290039 | G64: =OFFSET(InputPriceData!F$15,CalculationsAndCharts!$A64+$A$11,IF($C$7,8,0),1,1) -> 3531.189941 | H64: 3402.510437 | I64: 1.002075298 | J64: 3517705167 | K64: 0.2873391338 | L64: 1735235239 | M64: 0.09786627823
A65: 33 | B65: =OFFSET(InputPriceData!B$15,CalculationsAndCharts!$A65+$A$11,0,1,1) -> 2013-12-19 | C65: =OFFSET(InputPriceData!G$15,CalculationsAndCharts!$A65+$A$11,IF($C$7,8,0),1,1) -> 1813050000 | D65: =OFFSET(InputPriceData!C$15,CalculationsAndCharts!$A65+$A$11,IF($C$7,8,0),1,1) -> 3499.810059 | E65: =OFFSET(InputPriceData!D$15,CalculationsAndCharts!$A65+$A$11,IF($C$7,8,0),1,1) -> 3502.22998 | F65: =OFFSET(InputPriceData!E$15,CalculationsAndCharts!$A65+$A$11,IF($C$7,8,0),1,1) -> 3483.030029 | G65: =OFFSET(InputPriceData!F$15,CalculationsAndCharts!$A65+$A$11,IF($C$7,8,0),1,1) -> 3498.629883 | H65: 3397.258213 | I65: 0.4854945539 | J65: 880225900.9 | K65: 0.224339482 | L65: 1133136195 | M65: 0.09280779104
A66: 34 | B66: =OFFSET(InputPriceData!B$15,CalculationsAndCharts!$A66+$A$11,0,1,1) -> 2013-12-18 | C66: =OFFSET(InputPriceData!G$15,CalculationsAndCharts!$A66+$A$11,IF($C$7,8,0),1,1) -> 2178330000 | D66: =OFFSET(InputPriceData!C$15,CalculationsAndCharts!$A66+$A$11,IF($C$7,8,0),1,1) -> 3468.149902 | E66: =OFFSET(InputPriceData!D$15,CalculationsAndCharts!$A66+$A$11,IF($C$7,8,0),1,1) -> 3510.52002 | F66: =OFFSET(InputPriceData!E$15,CalculationsAndCharts!$A66+$A$11,IF($C$7,8,0),1,1) -> 3422.860107 | G66: =OFFSET(InputPriceData!F$15,CalculationsAndCharts!$A66+$A$11,IF($C$7,8,0),1,1) -> 3509.629883 | H66: 3393.120594 | I66: -0.09207780381 | J66: -200575842.4 | K66: 0.1888834126 | L66: 2134090574 | M66: 0.03201949629
A67: 35 | B67: =OFFSET(InputPriceData!B$15,CalculationsAndCharts!$A67+$A$11,0,1,1) -> 2013-12-17 | C67: =OFFSET(InputPriceData!G$15,CalculationsAndCharts!$A67+$A$11,IF($C$7,8,0),1,1) -> 1861130000 | D67: =OFFSET(InputPriceData!C$15,CalculationsAndCharts!$A67+$A$11,IF($C$7,8,0),1,1) -> 3474.72998 | E67: =OFFSET(InputPriceData!D$15,CalculationsAndCharts!$A67+$A$11,IF($C$7,8,0),1,1) -> 3482.340088 | F67: =OFFSET(InputPriceData!E$15,CalculationsAndCharts!$A67+$A$11,IF($C$7,8,0),1,1) -> 3461.070068 | G67: =OFFSET(InputPriceData!F$15,CalculationsAndCharts!$A67+$A$11,IF($C$7,8,0),1,1) -> 3469.320068 | H67: 3388.365112 | I67: -0.4632421345 | J67: -862153833.7 | K67: 0.1698391518 | L67: -417377478.8 | M67: -0.05658027751
A68: 36 | B68: =OFFSET(InputPriceData!B$15,CalculationsAndCharts!$A68+$A$11,0,1,1) -> 2013-12-16 | C68: =OFFSET(InputPriceData!G$15,CalculationsAndCharts!$A68+$A$11,IF($C$7,8,0),1,1) -> 1943830000 | D68: =OFFSET(InputPriceData!C$15,CalculationsAndCharts!$A68+$A$11,IF($C$7,8,0),1,1) -> 3470.429932 | E68: =OFFSET(InputPriceData!D$15,CalculationsAndCharts!$A68+$A$11,IF($C$7,8,0),1,1) -> 3494.409912 | F68: =OFFSET(InputPriceData!E$15,CalculationsAndCharts!$A68+$A$11,IF($C$7,8,0),1,1) -> 3470.110107 | G68: =OFFSET(InputPriceData!F$15,CalculationsAndCharts!$A68+$A$11,IF($C$7,8,0),1,1) -> 3475.790039 | H68: 3385.060828 | I68: 0.7052877737 | J68: 1370959533 | K68: 0.177987661 | L68: -1035113060 | M68: -0.08479658778
A69: 37 | B69: =OFFSET(InputPriceData!B$15,CalculationsAndCharts!$A69+$A$11,0,1,1) -> 2013-12-13 | C69: =OFFSET(InputPriceData!G$15,CalculationsAndCharts!$A69+$A$11,IF($C$7,8,0),1,1) -> 1615340000 | D69: =OFFSET(InputPriceData!C$15,CalculationsAndCharts!$A69+$A$11,IF($C$7,8,0),1,1) -> 3476.879883 | E69: =OFFSET(InputPriceData!D$15,CalculationsAndCharts!$A69+$A$11,IF($C$7,8,0),1,1) -> 3477.830078 | F69: =OFFSET(InputPriceData!E$15,CalculationsAndCharts!$A69+$A$11,IF($C$7,8,0),1,1) -> 3449.73999 | G69: =OFFSET(InputPriceData!F$15,CalculationsAndCharts!$A69+$A$11,IF($C$7,8,0),1,1) -> 3456.399902 | H69: 3381.357595 | I69: -0.1902980676 | J69: -307396080.5 | K69: 0.1683829054 | L69: -849374279.3 | M69: -0.0003717863356
A70: 38 | B70: =OFFSET(InputPriceData!B$15,CalculationsAndCharts!$A70+$A$11,0,1,1) -> 2013-12-12 | C70: =OFFSET(InputPriceData!G$15,CalculationsAndCharts!$A70+$A$11,IF($C$7,8,0),1,1) -> 1893270000 | D70: =OFFSET(InputPriceData!C$15,CalculationsAndCharts!$A70+$A$11,IF($C$7,8,0),1,1) -> 3471.899902 | E70: =OFFSET(InputPriceData!D$15,CalculationsAndCharts!$A70+$A$11,IF($C$7,8,0),1,1) -> 3478.949951 | F70: =OFFSET(InputPriceData!E$15,CalculationsAndCharts!$A70+$A$11,IF($C$7,8,0),1,1) -> 3457.959961 | G70: =OFFSET(InputPriceData!F$15,CalculationsAndCharts!$A70+$A$11,IF($C$7,8,0),1,1) -> 3460.290039 | H70: 3378.294644 | I70: -0.6161446333 | J70: -1166528150 | K70: 0.2119967332 | L70: -1472929945 | M70: 0.06627101059
A71: 39 | B71: =OFFSET(InputPriceData!B$15,CalculationsAndCharts!$A71+$A$11,0,1,1) -> 2013-12-11 | C71: =OFFSET(InputPriceData!G$15,CalculationsAndCharts!$A71+$A$11,IF($C$7,8,0),1,1) -> 1923520000 | D71: =OFFSET(InputPriceData!C$15,CalculationsAndCharts!$A71+$A$11,IF($C$7,8,0),1,1) -> 3514.23999 | E71: =OFFSET(InputPriceData!D$15,CalculationsAndCharts!$A71+$A$11,IF($C$7,8,0),1,1) -> 3519.219971 | F71: =OFFSET(InputPriceData!E$15,CalculationsAndCharts!$A71+$A$11,IF($C$7,8,0),1,1) -> 3464.399902 | G71: =OFFSET(InputPriceData!F$15,CalculationsAndCharts!$A71+$A$11,IF($C$7,8,0),1,1) -> 3468.98999 | H71: 3374.947893 | I71: -0.6536026125 | J71: -1257217697 | K71: 0.2669527308 | L71: -1601407087 | M71: 0.1606288681
A72: 40 | B72: =OFFSET(InputPriceData!B$15,CalculationsAndCharts!$A72+$A$11,0,1,1) -> 2013-12-10 | C72: =OFFSET(InputPriceData!G$15,CalculationsAndCharts!$A72+$A$11,IF($C$7,8,0),1,1) -> 1864860000 | D72: =OFFSET(InputPriceData!C$15,CalculationsAndCharts!$A72+$A$11,IF($C$7,8,0),1,1) -> 3510.709961 | E72: =OFFSET(InputPriceData!D$15,CalculationsAndCharts!$A72+$A$11,IF($C$7,8,0),1,1) -> 3520.72998 | F72: =OFFSET(InputPriceData!E$15,CalculationsAndCharts!$A72+$A$11,IF($C$7,8,0),1,1) -> 3507.419922 | G72: =OFFSET(InputPriceData!F$15,CalculationsAndCharts!$A72+$A$11,IF($C$7,8,0),1,1) -> 3514.199951 | H72: 3371.10944 | I72: -0.2741983989 | J72: -511341626.1 | K72: 0.302372713 | L72: 35027270.35 | M72: 0.2339254127
A73: 41 | B73: =OFFSET(InputPriceData!B$15,CalculationsAndCharts!$A73+$A$11,0,1,1) -> 2013-12-09 | C73: =OFFSET(InputPriceData!G$15,CalculationsAndCharts!$A73+$A$11,IF($C$7,8,0),1,1) -> 1717120000 | D73: =OFFSET(InputPriceData!C$15,CalculationsAndCharts!$A73+$A$11,IF($C$7,8,0),1,1) -> 3515.669922 | E73: =OFFSET(InputPriceData!D$15,CalculationsAndCharts!$A73+$A$11,IF($C$7,8,0),1,1) -> 3524.01001 | F73: =OFFSET(InputPriceData!E$15,CalculationsAndCharts!$A73+$A$11,IF($C$7,8,0),1,1) -> 3511.280029 | G73: =OFFSET(InputPriceData!F$15,CalculationsAndCharts!$A73+$A$11,IF($C$7,8,0),1,1) -> 3516.169922 | H73: 3365.269011 | I73: 1.009447654 | J73: 1733342756 | K73: 0.341414708 | L73: -397945514.5 | M73: 0.2475770658
A74: 42 | B74: =OFFSET(InputPriceData!B$15,CalculationsAndCharts!$A74+$A$11,0,1,1) -> 2013-12-06 | C74: =OFFSET(InputPriceData!G$15,CalculationsAndCharts!$A74+$A$11,IF($C$7,8,0),1,1) -> 1727130000 | D74: =OFFSET(InputPriceData!C$15,CalculationsAndCharts!$A74+$A$11,IF($C$7,8,0),1,1) -> 3511.060059 | E74: =OFFSET(InputPriceData!D$15,CalculationsAndCharts!$A74+$A$11,IF($C$7,8,0),1,1) -> 3511.100098 | F74: =OFFSET(InputPriceData!E$15,CalculationsAndCharts!$A74+$A$11,IF($C$7,8,0),1,1) -> 3485.73999 | G74: =OFFSET(InputPriceData!F$15,CalculationsAndCharts!$A74+$A$11,IF($C$7,8,0),1,1) -> 3504.26001 | H74: 3359.10979 | I74: 0.8535052271 | J74: 1474114483 | K74: 0.2809833651 | L74: 795452486.1 | M74: 0.3139933078
A75: 43 | B75: =OFFSET(InputPriceData!B$15,CalculationsAndCharts!$A75+$A$11,0,1,1) -> 2013-12-05 | C75: =OFFSET(InputPriceData!G$15,CalculationsAndCharts!$A75+$A$11,IF($C$7,8,0),1,1) -> 1880950000 | D75: =OFFSET(InputPriceData!C$15,CalculationsAndCharts!$A75+$A$11,IF($C$7,8,0),1,1) -> 3484.27002 | E75: =OFFSET(InputPriceData!D$15,CalculationsAndCharts!$A75+$A$11,IF($C$7,8,0),1,1) -> 3489.080078 | F75: =OFFSET(InputPriceData!E$15,CalculationsAndCharts!$A75+$A$11,IF($C$7,8,0),1,1) -> 3468.840088 | G75: =OFFSET(InputPriceData!F$15,CalculationsAndCharts!$A75+$A$11,IF($C$7,8,0),1,1) -> 3477.72998 | H75: 3353.185292 | I75: 0.1929486764 | J75: 362926812.9 | K75: 0.1896189626 | L75: -228632745.2 | M75: 0.2269266035
A76: 44 | B76: =OFFSET(InputPriceData!B$15,CalculationsAndCharts!$A76+$A$11,0,1,1) -> 2013-12-04 | C76: =OFFSET(InputPriceData!G$15,CalculationsAndCharts!$A76+$A$11,IF($C$7,8,0),1,1) -> 1886970000 | D76: =OFFSET(InputPriceData!C$15,CalculationsAndCharts!$A76+$A$11,IF($C$7,8,0),1,1) -> 3463.719971 | E76: =OFFSET(InputPriceData!D$15,CalculationsAndCharts!$A76+$A$11,IF($C$7,8,0),1,1) -> 3493.100098 | F76: =OFFSET(InputPriceData!E$15,CalculationsAndCharts!$A76+$A$11,IF($C$7,8,0),1,1) -> 3453.219971 | G76: =OFFSET(InputPriceData!F$15,CalculationsAndCharts!$A76+$A$11,IF($C$7,8,0),1,1) -> 3483.01001 | H76: 3348.101835 | I76: -0.09829478771 | J76: -185479315.6 | K76: 0.195161762 | L76: 932123825.4 | M76: 0.2223847496
A77: 45 | B77: =OFFSET(InputPriceData!B$15,CalculationsAndCharts!$A77+$A$11,0,1,1) -> 2013-12-03 | C77: =OFFSET(InputPriceData!G$15,CalculationsAndCharts!$A77+$A$11,IF($C$7,8,0),1,1) -> 1875010000 | D77: =OFFSET(InputPriceData!C$15,CalculationsAndCharts!$A77+$A$11,IF($C$7,8,0),1,1) -> 3478.98999 | E77: =OFFSET(InputPriceData!D$15,CalculationsAndCharts!$A77+$A$11,IF($C$7,8,0),1,1) -> 3487.02002 | F77: =OFFSET(InputPriceData!E$15,CalculationsAndCharts!$A77+$A$11,IF($C$7,8,0),1,1) -> 3465.350098 | G77: =OFFSET(InputPriceData!F$15,CalculationsAndCharts!$A77+$A$11,IF($C$7,8,0),1,1) -> 3479.340088 | H77: 3342.595379 | I77: -0.5510171524 | J77: -1033162671 | K77: 0.1927808972 | L77: 545983591.9 | M77: 0.2275317955
A78: 46 | B78: =OFFSET(InputPriceData!B$15,CalculationsAndCharts!$A78+$A$11,0,1,1) -> 2013-12-02 | C78: =OFFSET(InputPriceData!G$15,CalculationsAndCharts!$A78+$A$11,IF($C$7,8,0),1,1) -> 1680380000 | D78: =OFFSET(InputPriceData!C$15,CalculationsAndCharts!$A78+$A$11,IF($C$7,8,0),1,1) -> 3496.189941 | E78: =OFFSET(InputPriceData!D$15,CalculationsAndCharts!$A78+$A$11,IF($C$7,8,0),1,1) -> 3501.070068 | F78: =OFFSET(InputPriceData!E$15,CalculationsAndCharts!$A78+$A$11,IF($C$7,8,0),1,1) -> 3476.679932 | G78: =OFFSET(InputPriceData!F$15,CalculationsAndCharts!$A78+$A$11,IF($C$7,8,0),1,1) -> 3481.149902 | H78: 3337.013962 | I78: 0.01203506843 | J78: 20223488.29 | K78: 0.2277045424 | L78: -1064454924 | M78: 0.2285278734
A79: 47 | B79: =OFFSET(InputPriceData!B$15,CalculationsAndCharts!$A79+$A$11,0,1,1) -> 2013-11-29 | C79: =OFFSET(InputPriceData!G$15,CalculationsAndCharts!$A79+$A$11,IF($C$7,8,0),1,1) -> 853500000 | D79: =OFFSET(InputPriceData!C$15,CalculationsAndCharts!$A79+$A$11,IF($C$7,8,0),1,1) -> 3481.310059 | E79: =OFFSET(InputPriceData!D$15,CalculationsAndCharts!$A79+$A$11,IF($C$7,8,0),1,1) -> 3495.969971 | F79: =OFFSET(InputPriceData!E$15,CalculationsAndCharts!$A79+$A$11,IF($C$7,8,0),1,1) -> 3481.310059 | G79: =OFFSET(InputPriceData!F$15,CalculationsAndCharts!$A79+$A$11,IF($C$7,8,0),1,1) -> 3487.820068 | H79: 3331.130863 | I79: 1.562620918 | J79: 1333696954 | K79: 0.217987837 | L79: -95474620.11 | M79: 0.2564575692
A80: 48 | B80: =OFFSET(InputPriceData!B$15,CalculationsAndCharts!$A80+$A$11,0,1,1) -> 2013-11-27 | C80: =OFFSET(InputPriceData!G$15,CalculationsAndCharts!$A80+$A$11,IF($C$7,8,0),1,1) -> 1477020000 | D80: =OFFSET(InputPriceData!C$15,CalculationsAndCharts!$A80+$A$11,IF($C$7,8,0),1,1) -> 3454.810059 | E80: =OFFSET(InputPriceData!D$15,CalculationsAndCharts!$A80+$A$11,IF($C$7,8,0),1,1) -> 3471.649902 | F80: =OFFSET(InputPriceData!E$15,CalculationsAndCharts!$A80+$A$11,IF($C$7,8,0),1,1) -> 3451.969971 | G80: =OFFSET(InputPriceData!F$15,CalculationsAndCharts!$A80+$A$11,IF($C$7,8,0),1,1) -> 3470.47998 | H80: 3324.735385 | I80: 0.864641969 | J80: 1277093481 | K80: 0.1641196114 | L80: 1301409812 | M80: 0.2277039794
A81: 49 | B81: =OFFSET(InputPriceData!B$15,CalculationsAndCharts!$A81+$A$11,0,1,1) -> 2013-11-26 | C81: =OFFSET(InputPriceData!G$15,CalculationsAndCharts!$A81+$A$11,IF($C$7,8,0),1,1) -> 1907680000 | D81: =OFFSET(InputPriceData!C$15,CalculationsAndCharts!$A81+$A$11,IF($C$7,8,0),1,1) -> 3429.639893 | E81: =OFFSET(InputPriceData!D$15,CalculationsAndCharts!$A81+$A$11,IF($C$7,8,0),1,1) -> 3455.540039 | F81: =OFFSET(InputPriceData!E$15,CalculationsAndCharts!$A81+$A$11,IF($C$7,8,0),1,1) -> 3422.469971 | G81: =OFFSET(InputPriceData!F$15,CalculationsAndCharts!$A81+$A$11,IF($C$7,8,0),1,1) -> 3445.76001 | H81: 3318.786626 | I81: 0.4015922844 | J81: 766109569.1 | K81: 0.1331894368 | L81: 779338460.3 | M81: 0.1764913852
A82: 50 | B82: =OFFSET(InputPriceData!B$15,CalculationsAndCharts!$A82+$A$11,0,1,1) -> 2013-11-25 | C82: =OFFSET(InputPriceData!G$15,CalculationsAndCharts!$A82+$A$11,IF($C$7,8,0),1,1) -> 1795760000 | D82: =OFFSET(InputPriceData!C$15,CalculationsAndCharts!$A82+$A$11,IF($C$7,8,0),1,1) -> 3433.919922 | E82: =OFFSET(InputPriceData!D$15,CalculationsAndCharts!$A82+$A$11,IF($C$7,8,0),1,1) -> 3437.48999 | F82: =OFFSET(InputPriceData!E$15,CalculationsAndCharts!$A82+$A$11,IF($C$7,8,0),1,1) -> 3420.360107 | G82: =OFFSET(InputPriceData!F$15,CalculationsAndCharts!$A82+$A$11,IF($C$7,8,0),1,1) -> 3427.48999 | H82: 3313.604039 | I82: 0.8922834252 | J82: 1602326884 | K82: 0.1288080853 | L82: -300880123 | M82: 0.174775819
A83: 51 | B83: =OFFSET(InputPriceData!B$15,CalculationsAndCharts!$A83+$A$11,0,1,1) -> 2013-11-22 | C83: =OFFSET(InputPriceData!G$15,CalculationsAndCharts!$A83+$A$11,IF($C$7,8,0),1,1) -> 1730280000 | D83: =OFFSET(InputPriceData!C$15,CalculationsAndCharts!$A83+$A$11,IF($C$7,8,0),1,1) -> 3409.52002 | E83: =OFFSET(InputPriceData!D$15,CalculationsAndCharts!$A83+$A$11,IF($C$7,8,0),1,1) -> 3422.129883 | F83: =OFFSET(InputPriceData!E$15,CalculationsAndCharts!$A83+$A$11,IF($C$7,8,0),1,1) -> 3406.399902 | G83: =OFFSET(InputPriceData!F$15,CalculationsAndCharts!$A83+$A$11,IF($C$7,8,0),1,1) -> 3422.02002 | H83: 3308.955633 | I83: 1.072443163 | J83: 1855626957 | K83: 0.07825509309 | L83: 1706110390 | M83: 0.1935797787
A84: 52 | B84: =OFFSET(InputPriceData!B$15,CalculationsAndCharts!$A84+$A$11,0,1,1) -> 2013-11-21 | C84: =OFFSET(InputPriceData!G$15,CalculationsAndCharts!$A84+$A$11,IF($C$7,8,0),1,1) -> 1684250000 | D84: =OFFSET(InputPriceData!C$15,CalculationsAndCharts!$A84+$A$11,IF($C$7,8,0),1,1) -> 3382.5 | E84: =OFFSET(InputPriceData!D$15,CalculationsAndCharts!$A84+$A$11,IF($C$7,8,0),1,1) -> 3404.949951 | F84: =OFFSET(InputPriceData!E$15,CalculationsAndCharts!$A84+$A$11,IF($C$7,8,0),1,1) -> 3380.649902 | G84: =OFFSET(InputPriceData!F$15,CalculationsAndCharts!$A84+$A$11,IF($C$7,8,0),1,1) -> 3402.73999 | H84: 3304.34076 | I84: 0.4562840537 | J84: 768496417.4 | K84: 0.08949930769 | L84: 1377902732 | M84: 0.1445383987
A85: 53 | B85: =OFFSET(InputPriceData!B$15,CalculationsAndCharts!$A85+$A$11,0,1,1) -> 2013-11-20 | C85: =OFFSET(InputPriceData!G$15,CalculationsAndCharts!$A85+$A$11,IF($C$7,8,0),1,1) -> 1721160000 | D85: =OFFSET(InputPriceData!C$15,CalculationsAndCharts!$A85+$A$11,IF($C$7,8,0),1,1) -> 3386.060059 | E85: =OFFSET(InputPriceData!D$15,CalculationsAndCharts!$A85+$A$11,IF($C$7,8,0),1,1) -> 3397.689941 | F85: =OFFSET(InputPriceData!E$15,CalculationsAndCharts!$A85+$A$11,IF($C$7,8,0),1,1) -> 3359.310059 | G85: =OFFSET(InputPriceData!F$15,CalculationsAndCharts!$A85+$A$11,IF($C$7,8,0),1,1) -> 3367.169922 | H85: 3300.324465 | I85: -0.2260466332 | J85: -389062423.3 | K85: 0.09698003617 | L85: -1016203075 | M85: 0.1378039472
A86: 54 | B86: =OFFSET(InputPriceData!B$15,CalculationsAndCharts!$A86+$A$11,0,1,1) -> 2013-11-19 | C86: =OFFSET(InputPriceData!G$15,CalculationsAndCharts!$A86+$A$11,IF($C$7,8,0),1,1) -> 1747840000 | D86: =OFFSET(InputPriceData!C$15,CalculationsAndCharts!$A86+$A$11,IF($C$7,8,0),1,1) -> 3385.820068 | E86: =OFFSET(InputPriceData!D$15,CalculationsAndCharts!$A86+$A$11,IF($C$7,8,0),1,1) -> 3400.639893 | F86: =OFFSET(InputPriceData!E$15,CalculationsAndCharts!$A86+$A$11,IF($C$7,8,0),1,1) -> 3371.600098 | G86: =OFFSET(InputPriceData!F$15,CalculationsAndCharts!$A86+$A$11,IF($C$7,8,0),1,1) -> 3378.129883 | H86: 3297.596079 | I86: -0.5403131671 | J86: -944380965.9 | K86: 0.07414312982 | L86: -961813830.4 | M86: 0.1759550206
A87: 55 | B87: =OFFSET(InputPriceData!B$15,CalculationsAndCharts!$A87+$A$11,0,1,1) -> 2013-11-18 | C87: =OFFSET(InputPriceData!G$15,CalculationsAndCharts!$A87+$A$11,IF($C$7,8,0),1,1) -> 1829870000 | D87: =OFFSET(InputPriceData!C$15,CalculationsAndCharts!$A87+$A$11,IF($C$7,8,0),1,1) -> 3423.469971 | E87: =OFFSET(InputPriceData!D$15,CalculationsAndCharts!$A87+$A$11,IF($C$7,8,0),1,1) -> 3429.199951 | F87: =OFFSET(InputPriceData!E$15,CalculationsAndCharts!$A87+$A$11,IF($C$7,8,0),1,1) -> 3383.449951 | G87: =OFFSET(InputPriceData!F$15,CalculationsAndCharts!$A87+$A$11,IF($C$7,8,0),1,1) -> 3388.870117 | H87: 3294.308984 | I87: -0.3192880022 | J87: -584255536.5 | K87: 0.1045769981 | L87: -1396287523 | M87: 0.206521328
A88: 56 | B88: =OFFSET(InputPriceData!B$15,CalculationsAndCharts!$A88+$A$11,0,1,1) -> 2013-11-15 | C88: =OFFSET(InputPriceData!G$15,CalculationsAndCharts!$A88+$A$11,IF($C$7,8,0),1,1) -> 1899150000 | D88: =OFFSET(InputPriceData!C$15,CalculationsAndCharts!$A88+$A$11,IF($C$7,8,0),1,1) -> 3419.77002 | E88: =OFFSET(InputPriceData!D$15,CalculationsAndCharts!$A88+$A$11,IF($C$7,8,0),1,1) -> 3422.580078 | F88: =OFFSET(InputPriceData!E$15,CalculationsAndCharts!$A88+$A$11,IF($C$7,8,0),1,1) -> 3409.01001 | G88: =OFFSET(InputPriceData!F$15,CalculationsAndCharts!$A88+$A$11,IF($C$7,8,0),1,1) -> 3422.580078 | H88: 3290.449346 | I88: 0.54214559 | J88: 1029615797 | K88: 0.1558238821 | L88: 1899150000 | M88: 0.2470687107
A89: 57 | B89: =OFFSET(InputPriceData!B$15,CalculationsAndCharts!$A89+$A$11,0,1,1) -> 2013-11-14 | C89: =OFFSET(InputPriceData!G$15,CalculationsAndCharts!$A89+$A$11,IF($C$7,8,0),1,1) -> 1965350000 | D89: =OFFSET(InputPriceData!C$15,CalculationsAndCharts!$A89+$A$11,IF($C$7,8,0),1,1) -> 3393.25 | E89: =OFFSET(InputPriceData!D$15,CalculationsAndCharts!$A89+$A$11,IF($C$7,8,0),1,1) -> 3418.570068 | F89: =OFFSET(InputPriceData!E$15,CalculationsAndCharts!$A89+$A$11,IF($C$7,8,0),1,1) -> 3390.379883 | G89: =OFFSET(InputPriceData!F$15,CalculationsAndCharts!$A89+$A$11,IF($C$7,8,0),1,1) -> 3415.139893 | H89: 3285.056255 | I89: 0.6516330882 | J89: 1280687090 | K89: 0.2076504653 | L89: 1487063360 | M89: 0.2427365652
A90: 58 | B90: =OFFSET(InputPriceData!B$15,CalculationsAndCharts!$A90+$A$11,0,1,1) -> 2013-11-13 | C90: =OFFSET(InputPriceData!G$15,CalculationsAndCharts!$A90+$A$11,IF($C$7,8,0),1,1) -> 1827220000 | D90: =OFFSET(InputPriceData!C$15,CalculationsAndCharts!$A90+$A$11,IF($C$7,8,0),1,1) -> 3346.449951 | E90: =OFFSET(InputPriceData!D$15,CalculationsAndCharts!$A90+$A$11,IF($C$7,8,0),1,1) -> 3405.600098 | F90: =OFFSET(InputPriceData!E$15,CalculationsAndCharts!$A90+$A$11,IF($C$7,8,0),1,1) -> 3346.409912 | G90: =OFFSET(InputPriceData!F$15,CalculationsAndCharts!$A90+$A$11,IF($C$7,8,0),1,1) -> 3405.560059 | H90: 3279.746719 | I90: 0.4064402199 | J90: 742655698.6 | K90: 0.1942349399 | L90: 1824747966 | M90: 0.2543976996
A91: 59 | B91: =OFFSET(InputPriceData!B$15,CalculationsAndCharts!$A91+$A$11,0,1,1) -> 2013-11-12 | C91: =OFFSET(InputPriceData!G$15,CalculationsAndCharts!$A91+$A$11,IF($C$7,8,0),1,1) -> 1776860000 | D91: =OFFSET(InputPriceData!C$15,CalculationsAndCharts!$A91+$A$11,IF($C$7,8,0),1,1) -> 3351.25 | E91: =OFFSET(InputPriceData!D$15,CalculationsAndCharts!$A91+$A$11,IF($C$7,8,0),1,1) -> 3370.360107 | F91: =OFFSET(InputPriceData!E$15,CalculationsAndCharts!$A91+$A$11,IF($C$7,8,0),1,1) -> 3348.850098 | G91: =OFFSET(InputPriceData!F$15,CalculationsAndCharts!$A91+$A$11,IF($C$7,8,0),1,1) -> 3365.22998 | H91: 3274.611481 | I91: -0.03491591423 | J91: -62040691.36 | K91: 0.2015383465 | L91: 929299456.3 | M91: 0.2472697819
A92: 60 | B92: =OFFSET(InputPriceData!B$15,CalculationsAndCharts!$A92+$A$11,0,1,1) -> 2013-11-11 | C92: =OFFSET(InputPriceData!G$15,CalculationsAndCharts!$A92+$A$11,IF($C$7,8,0),1,1) -> 1595340000 | D92: =OFFSET(InputPriceData!C$15,CalculationsAndCharts!$A92+$A$11,IF($C$7,8,0),1,1) -> 3359.830078 | E92: =OFFSET(InputPriceData!D$15,CalculationsAndCharts!$A92+$A$11,IF($C$7,8,0),1,1) -> 3369.889893 | F92: =OFFSET(InputPriceData!E$15,CalculationsAndCharts!$A92+$A$11,IF($C$7,8,0),1,1) -> 3350.73999 | G92: =OFFSET(InputPriceData!F$15,CalculationsAndCharts!$A92+$A$11,IF($C$7,8,0),1,1) -> 3362.97998 | H92: 3270.912766 | I92: 0.4746259588 | J92: 757189777.1 | K92: 0.2290829559 | L92: 444038021.6 | M92: 0.1886865294
A93: 61 | B93: =OFFSET(InputPriceData!B$15,CalculationsAndCharts!$A93+$A$11,0,1,1) -> 2013-11-08 | C93: =OFFSET(InputPriceData!G$15,CalculationsAndCharts!$A93+$A$11,IF($C$7,8,0),1,1) -> 1981740000 | D93: =OFFSET(InputPriceData!C$15,CalculationsAndCharts!$A93+$A$11,IF($C$7,8,0),1,1) -> 3333.919922 | E93: =OFFSET(InputPriceData!D$15,CalculationsAndCharts!$A93+$A$11,IF($C$7,8,0),1,1) -> 3366.840088 | F93: =OFFSET(InputPriceData!E$15,CalculationsAndCharts!$A93+$A$11,IF($C$7,8,0),1,1) -> 3324.699951 | G93: =OFFSET(InputPriceData!F$15,CalculationsAndCharts!$A93+$A$11,IF($C$7,8,0),1,1) -> 3366.840088 | H93: 3267.154921 | I93: -0.142273538 | J93: -281949161.1 | K93: 0.2245253514 | L93: 1981740000 | M93: 0.2136804398
A94: 62 | B94: =OFFSET(InputPriceData!B$15,CalculationsAndCharts!$A94+$A$11,0,1,1) -> 2013-11-07 | C94: =OFFSET(InputPriceData!G$15,CalculationsAndCharts!$A94+$A$11,IF($C$7,8,0),1,1) -> 2303320000 | D94: =OFFSET(InputPriceData!C$15,CalculationsAndCharts!$A94+$A$11,IF($C$7,8,0),1,1) -> 3386.360107 | E94: =OFFSET(InputPriceData!D$15,CalculationsAndCharts!$A94+$A$11,IF($C$7,8,0),1,1) -> 3389.209961 | F94: =OFFSET(InputPriceData!E$15,CalculationsAndCharts!$A94+$A$11,IF($C$7,8,0),1,1) -> 3318.399902 | G94: =OFFSET(InputPriceData!F$15,CalculationsAndCharts!$A94+$A$11,IF($C$7,8,0),1,1) -> 3321.409912 | H94: 3263.086139 | I94: -0.6946845733 | J94: -1600080871 | K94: 0.2611882643 | L94: -2107499905 | M94: 0.2006321202
A95: 63 | B95: =OFFSET(InputPriceData!B$15,CalculationsAndCharts!$A95+$A$11,0,1,1) -> 2013-11-06 | C95: =OFFSET(InputPriceData!G$15,CalculationsAndCharts!$A95+$A$11,IF($C$7,8,0),1,1) -> 2020160000 | D95: =OFFSET(InputPriceData!C$15,CalculationsAndCharts!$A95+$A$11,IF($C$7,8,0),1,1) -> 3396.47998 | E95: =OFFSET(InputPriceData!D$15,CalculationsAndCharts!$A95+$A$11,IF($C$7,8,0),1,1) -> 3401.27002 | F95: =OFFSET(InputPriceData!E$15,CalculationsAndCharts!$A95+$A$11,IF($C$7,8,0),1,1) -> 3374.280029 | G95: =OFFSET(InputPriceData!F$15,CalculationsAndCharts!$A95+$A$11,IF($C$7,8,0),1,1) -> 3385.379883 | H95: 3260.705577 | I95: 0.2902835897 | J95: 586419296.5 | K95: 0.3773264607 | L95: -358545436.5 | M95: 0.2947031221
A96: 64 | B96: =OFFSET(InputPriceData!B$15,CalculationsAndCharts!$A96+$A$11,0,1,1) -> 2013-11-05 | C96: =OFFSET(InputPriceData!G$15,CalculationsAndCharts!$A96+$A$11,IF($C$7,8,0),1,1) -> 1934630000 | D96: =OFFSET(InputPriceData!C$15,CalculationsAndCharts!$A96+$A$11,IF($C$7,8,0),1,1) -> 3372.949951 | E96: =OFFSET(InputPriceData!D$15,CalculationsAndCharts!$A96+$A$11,IF($C$7,8,0),1,1) -> 3395.929932 | F96: =OFFSET(InputPriceData!E$15,CalculationsAndCharts!$A96+$A$11,IF($C$7,8,0),1,1) -> 3361.909912 | G96: =OFFSET(InputPriceData!F$15,CalculationsAndCharts!$A96+$A$11,IF($C$7,8,0),1,1) -> 3388.820068 | H96: 3255.616829 | I96: -0.1348848192 | J96: -260952217.8 | K96: 0.3111063388 | L96: 1125991076 | M96: 0.3099183182
A97: 65 | B97: =OFFSET(InputPriceData!B$15,CalculationsAndCharts!$A97+$A$11,0,1,1) -> 2013-11-04 | C97: =OFFSET(InputPriceData!G$15,CalculationsAndCharts!$A97+$A$11,IF($C$7,8,0),1,1) -> 1817880000 | D97: =OFFSET(InputPriceData!C$15,CalculationsAndCharts!$A97+$A$11,IF($C$7,8,0),1,1) -> 3388.699951 | E97: =OFFSET(InputPriceData!D$15,CalculationsAndCharts!$A97+$A$11,IF($C$7,8,0),1,1) -> 3390.179932 | F97: =OFFSET(InputPriceData!E$15,CalculationsAndCharts!$A97+$A$11,IF($C$7,8,0),1,1) -> 3374.379883 | G97: =OFFSET(InputPriceData!F$15,CalculationsAndCharts!$A97+$A$11,IF($C$7,8,0),1,1) -> 3384.75 | H97: =G97*$D$17+H98*$F$17 -> 3250.179962 | I97: =((E97-F98)-(E98-F97))/((E97-F98)+(E98-F97)) -> 0.1085539426 | J97: =I97*C97 -> 197338041.1 | K97: 0.2670062154 | L97: 568394661.8 | M97: 0.2273473039
A98: 66 | B98: =OFFSET(InputPriceData!B$15,CalculationsAndCharts!$A98+$A$11,0,1,1) -> 2013-11-01 | C98: =OFFSET(InputPriceData!G$15,CalculationsAndCharts!$A98+$A$11,IF($C$7,8,0),1,1) -> 1949460000 | D98: =OFFSET(InputPriceData!C$15,CalculationsAndCharts!$A98+$A$11,IF($C$7,8,0),1,1) -> 3392.320068 | E98: =OFFSET(InputPriceData!D$15,CalculationsAndCharts!$A98+$A$11,IF($C$7,8,0),1,1) -> 3394.909912 | F98: =OFFSET(InputPriceData!E$15,CalculationsAndCharts!$A98+$A$11,IF($C$7,8,0),1,1) -> 3364.649902 | G98: =OFFSET(InputPriceData!F$15,CalculationsAndCharts!$A98+$A$11,IF($C$7,8,0),1,1) -> 3379.76001 | H98: 3244.687308 | I98: -0.1367267313 | J98: -266543293.6 | K98: 0.260996663 | L98: =(((G98 - F98) - (E98 - G98))/ (E98 - F98)) * C98 -> -2563674.342 | M98: =AVERAGE(OFFSET(L98,0,0,$A$18,1)) / AVERAGE(OFFSET(C98,0,0,$A$18,1)) -> 0.1831548507
A99: 67 | B99: =OFFSET(InputPriceData!B$15,CalculationsAndCharts!$A99+$A$11,0,1,1) -> 2013-10-31 | C99: =OFFSET(InputPriceData!G$15,CalculationsAndCharts!$A99+$A$11,IF($C$7,8,0),1,1) -> 2139650000 | D99: =OFFSET(InputPriceData!C$15,CalculationsAndCharts!$A99+$A$11,IF($C$7,8,0),1,1) -> 3378.51001 | E99: =OFFSET(InputPriceData!D$15,CalculationsAndCharts!$A99+$A$11,IF($C$7,8,0),1,1) -> 3400.399902 | F99: =OFFSET(InputPriceData!E$15,CalculationsAndCharts!$A99+$A$11,IF($C$7,8,0),1,1) -> 3367.76001 | G99: =OFFSET(InputPriceData!F$15,CalculationsAndCharts!$A99+$A$11,IF($C$7,8,0),1,1) -> 3377.72998 | H99: 3239.174136 | I99: -0.1797948407 | J99: -384698030.9 | K99: 0.2735430825 | L99: -832522739.3 | M99: 0.2178143459
A100: 68 | B100: =OFFSET(InputPriceData!B$15,CalculationsAndCharts!$A100+$A$11,0,1,1) -> 2013-10-30 | C100: =OFFSET(InputPriceData!G$15,CalculationsAndCharts!$A100+$A$11,IF($C$7,8,0),1,1) -> 1923000000 | D100: =OFFSET(InputPriceData!C$15,CalculationsAndCharts!$A100+$A$11,IF($C$7,8,0),1,1) -> 3402.48999 | E100: =OFFSET(InputPriceData!D$15,CalculationsAndCharts!$A100+$A$11,IF($C$7,8,0),1,1) -> 3408.280029 | F100: =OFFSET(InputPriceData!E$15,CalculationsAndCharts!$A100+$A$11,IF($C$7,8,0),1,1) -> 3372.22998 | G100: =OFFSET(InputPriceData!F$15,CalculationsAndCharts!$A100+$A$11,IF($C$7,8,0),1,1) -> 3385.379883 | H100: 3233.518796 | I100: 0.09820121242 | J100: 188840931.5 | K100: =IFERROR(SUM(OFFSET(J100,0,0,$A$16,1))/SUM(OFFSET(C100,0,0,$A$16,1)),SUM(OFFSET(J100,0,0,$A$16,1))/0.00001) -> 0.2663663768 | L100: -520102407.9 | M100: 0.2200127114
A101: 69 | B101: =OFFSET(InputPriceData!B$15,CalculationsAndCharts!$A101+$A$11,0,1,1) -> 2013-10-29 | C101: =OFFSET(InputPriceData!G$15,CalculationsAndCharts!$A101+$A$11,IF($C$7,8,0),1,1) -> 1897380000 | D101: =OFFSET(InputPriceData!C$15,CalculationsAndCharts!$A101+$A$11,IF($C$7,8,0),1,1) -> 3397.879883 | E101: =OFFSET(InputPriceData!D$15,CalculationsAndCharts!$A101+$A$11,IF($C$7,8,0),1,1) -> 3399.090088 | F101: =OFFSET(InputPriceData!E$15,CalculationsAndCharts!$A101+$A$11,IF($C$7,8,0),1,1) -> 3375.570068 | G101: =OFFSET(InputPriceData!F$15,CalculationsAndCharts!$A101+$A$11,IF($C$7,8,0),1,1) -> 3391.75 | H101: 3227.320384 | I101: 0.316362809 | J101: 600260466.5 | K101: 0.2699656148 | L101: 713117727.3 | M101: 0.2713199281
A102: 70 | B102: =OFFSET(InputPriceData!B$15,CalculationsAndCharts!$A102+$A$11,0,1,1) -> 2013-10-28 | C102: =OFFSET(InputPriceData!G$15,CalculationsAndCharts!$A102+$A$11,IF($C$7,8,0),1,1) -> 1904810000 | D102: =OFFSET(InputPriceData!C$15,CalculationsAndCharts!$A102+$A$11,IF($C$7,8,0),1,1) -> 3382.179932 | E102: =OFFSET(InputPriceData!D$15,CalculationsAndCharts!$A102+$A$11,IF($C$7,8,0),1,1) -> 3390.469971 | F102: =OFFSET(InputPriceData!E$15,CalculationsAndCharts!$A102+$A$11,IF($C$7,8,0),1,1) -> 3370.399902 | G102: =OFFSET(InputPriceData!F$15,CalculationsAndCharts!$A102+$A$11,IF($C$7,8,0),1,1) -> 3382.679932 | H102: 3220.608971 | I102: -0.1506259897 | J102: -286913891.4 | K102: 0.2927378843 | L102: 426136041.5 | M102: 0.2984030928
A103: 71 | B103: =OFFSET(InputPriceData!B$15,CalculationsAndCharts!$A103+$A$11,0,1,1) -> 2013-10-25 | C103: =OFFSET(InputPriceData!G$15,CalculationsAndCharts!$A103+$A$11,IF($C$7,8,0),1,1) -> 2225780000 | D103: =OFFSET(InputPriceData!C$15,CalculationsAndCharts!$A103+$A$11,IF($C$7,8,0),1,1) -> 3394.159912 | E103: =OFFSET(InputPriceData!D$15,CalculationsAndCharts!$A103+$A$11,IF($C$7,8,0),1,1) -> 3400.040039 | F103: =OFFSET(InputPriceData!E$15,CalculationsAndCharts!$A103+$A$11,IF($C$7,8,0),1,1) -> 3368.590088 | G103: =OFFSET(InputPriceData!F$15,CalculationsAndCharts!$A103+$A$11,IF($C$7,8,0),1,1) -> 3383.830078 | H103: 3213.99383 | I103: 1.043818901 | J103: 2323311234 | K103: 0.2778367808 | L103: -68646913.07 | M103: 0.3111110029
A104: 72 | B104: =OFFSET(InputPriceData!B$15,CalculationsAndCharts!$A104+$A$11,0,1,1) -> 2013-10-24 | C104: =OFFSET(InputPriceData!G$15,CalculationsAndCharts!$A104+$A$11,IF($C$7,8,0),1,1) -> 2054350000 | D104: =OFFSET(InputPriceData!C$15,CalculationsAndCharts!$A104+$A$11,IF($C$7,8,0),1,1) -> 3347.969971 | E104: =OFFSET(InputPriceData!D$15,CalculationsAndCharts!$A104+$A$11,IF($C$7,8,0),1,1) -> 3367.389893 | F104: =OFFSET(InputPriceData!E$15,CalculationsAndCharts!$A104+$A$11,IF($C$7,8,0),1,1) -> 3344.060059 | G104: =OFFSET(InputPriceData!F$15,CalculationsAndCharts!$A104+$A$11,IF($C$7,8,0),1,1) -> 3362.379883 | H104: 3207.061738 | I104: 0.5304548857 | J104: 1089739994 | K104: 0.2013463907 | L104: 1172019329 | M104: 0.3450459166
A105: 73 | B105: =OFFSET(InputPriceData!B$15,CalculationsAndCharts!$A105+$A$11,0,1,1) -> 2013-10-23 | C105: =OFFSET(InputPriceData!G$15,CalculationsAndCharts!$A105+$A$11,IF($C$7,8,0),1,1) -> 1915030000 | D105: =OFFSET(InputPriceData!C$15,CalculationsAndCharts!$A105+$A$11,IF($C$7,8,0),1,1) -> 3348.600098 | E105: =OFFSET(InputPriceData!D$15,CalculationsAndCharts!$A105+$A$11,IF($C$7,8,0),1,1) -> 3355.469971 | F105: =OFFSET(InputPriceData!E$15,CalculationsAndCharts!$A105+$A$11,IF($C$7,8,0),1,1) -> 3330.199951 | G105: =OFFSET(InputPriceData!F$15,CalculationsAndCharts!$A105+$A$11,IF($C$7,8,0),1,1) -> 3346.050049 | H105: 3200.722222 | I105: -0.654950889 | J105: -1254250601 | K105: 0.21022726 | L105: 487296011.1 | M105: 0.3299590373
A106: 74 | B106: =OFFSET(InputPriceData!B$15,CalculationsAndCharts!$A106+$A$11,0,1,1) -> 2013-10-22 | C106: =OFFSET(InputPriceData!G$15,CalculationsAndCharts!$A106+$A$11,IF($C$7,8,0),1,1) -> 1890500000 | D106: =OFFSET(InputPriceData!C$15,CalculationsAndCharts!$A106+$A$11,IF($C$7,8,0),1,1) -> 3374.169922 | E106: =OFFSET(InputPriceData!D$15,CalculationsAndCharts!$A106+$A$11,IF($C$7,8,0),1,1) -> 3384.350098 | F106: =OFFSET(InputPriceData!E$15,CalculationsAndCharts!$A106+$A$11,IF($C$7,8,0),1,1) -> 3344.179932 | G106: =OFFSET(InputPriceData!F$15,CalculationsAndCharts!$A106+$A$11,IF($C$7,8,0),1,1) -> 3366.929932 | H106: 3194.790474 | I106: 0.131498079 | J106: 248597118.3 | K106: 0.2288873456 | L106: 250834193.1 | M106: 0.2914705877
A107: 75 | B107: =OFFSET(InputPriceData!B$15,CalculationsAndCharts!$A107+$A$11,0,1,1) -> 2013-10-21 | C107: =OFFSET(InputPriceData!G$15,CalculationsAndCharts!$A107+$A$11,IF($C$7,8,0),1,1) -> 1674470000 | D107: =OFFSET(InputPriceData!C$15,CalculationsAndCharts!$A107+$A$11,IF($C$7,8,0),1,1) -> 3361.76001 | E107: =OFFSET(InputPriceData!D$15,CalculationsAndCharts!$A107+$A$11,IF($C$7,8,0),1,1) -> 3369.73999 | F107: =OFFSET(InputPriceData!E$15,CalculationsAndCharts!$A107+$A$11,IF($C$7,8,0),1,1) -> 3351.050049 | G107: =OFFSET(InputPriceData!F$15,CalculationsAndCharts!$A107+$A$11,IF($C$7,8,0),1,1) -> 3361.179932 | H107: 3187.764374 | I107: 0.8256622813 | J107: 1382546720 | K107: 0.2204367714 | L107: 140643829.1 | M107: 0.268889429
A108: 76 | B108: =OFFSET(InputPriceData!B$15,CalculationsAndCharts!$A108+$A$11,0,1,1) -> 2013-10-18 | C108: =OFFSET(InputPriceData!G$15,CalculationsAndCharts!$A108+$A$11,IF($C$7,8,0),1,1) -> 1943090000 | D108: =OFFSET(InputPriceData!C$15,CalculationsAndCharts!$A108+$A$11,IF($C$7,8,0),1,1) -> 3330.610107 | E108: =OFFSET(InputPriceData!D$15,CalculationsAndCharts!$A108+$A$11,IF($C$7,8,0),1,1) -> 3355.629883 | F108: =OFFSET(InputPriceData!E$15,CalculationsAndCharts!$A108+$A$11,IF($C$7,8,0),1,1) -> 3321.780029 | G108: =OFFSET(InputPriceData!F$15,CalculationsAndCharts!$A108+$A$11,IF($C$7,8,0),1,1) -> 3353.879883 | H108: 3180.686188 | I108: 1.566693034 | J108: 3044225567 | K108: 0.1630467281 | L108: 1742178794 | M108: 0.2516824013
A109: 77 | B109: =OFFSET(InputPriceData!B$15,CalculationsAndCharts!$A109+$A$11,0,1,1) -> 2013-10-17 | C109: =OFFSET(InputPriceData!G$15,CalculationsAndCharts!$A109+$A$11,IF($C$7,8,0),1,1) -> 1975140000 | D109: =OFFSET(InputPriceData!C$15,CalculationsAndCharts!$A109+$A$11,IF($C$7,8,0),1,1) -> 3265.909912 | E109: =OFFSET(InputPriceData!D$15,CalculationsAndCharts!$A109+$A$11,IF($C$7,8,0),1,1) -> 3301.600098 | F109: =OFFSET(InputPriceData!E$15,CalculationsAndCharts!$A109+$A$11,IF($C$7,8,0),1,1) -> 3264.22998 | G109: =OFFSET(InputPriceData!F$15,CalculationsAndCharts!$A109+$A$11,IF($C$7,8,0),1,1) -> 3301.280029 | H109: 3173.617057 | I109: 0.3862363824 | J109: 762870928.4 | K109: 0.07023539622 | L109: 1941306492 | M109: 0.1258732495
A110: 78 | B110: =OFFSET(InputPriceData!B$15,CalculationsAndCharts!$A110+$A$11,0,1,1) -> 2013-10-16 | C110: =OFFSET(InputPriceData!G$15,CalculationsAndCharts!$A110+$A$11,IF($C$7,8,0),1,1) -> 1744000000 | D110: =OFFSET(InputPriceData!C$15,CalculationsAndCharts!$A110+$A$11,IF($C$7,8,0),1,1) -> 3261.47998 | E110: =OFFSET(InputPriceData!D$15,CalculationsAndCharts!$A110+$A$11,IF($C$7,8,0),1,1) -> 3283.179932 | F110: =OFFSET(InputPriceData!E$15,CalculationsAndCharts!$A110+$A$11,IF($C$7,8,0),1,1) -> 3258.800049 | G110: =OFFSET(InputPriceData!F$15,CalculationsAndCharts!$A110+$A$11,IF($C$7,8,0),1,1) -> 3281.669922 | H110: 3168.406324 | I110: 0.5784915689 | J110: 1008889296 | K110: 0.09159026297 | L110: 1527964719 | M110: 0.06802824877
A111: 79 | B111: =OFFSET(InputPriceData!B$15,CalculationsAndCharts!$A111+$A$11,0,1,1) -> 2013-10-15 | C111: =OFFSET(InputPriceData!G$15,CalculationsAndCharts!$A111+$A$11,IF($C$7,8,0),1,1) -> 1745560000 | D111: =OFFSET(InputPriceData!C$15,CalculationsAndCharts!$A111+$A$11,IF($C$7,8,0),1,1) -> 3253.959961 | E111: =OFFSET(InputPriceData!D$15,CalculationsAndCharts!$A111+$A$11,IF($C$7,8,0),1,1) -> 3269.969971 | F111: =OFFSET(InputPriceData!E$15,CalculationsAndCharts!$A111+$A$11,IF($C$7,8,0),1,1) -> 3241.350098 | G111: =OFFSET(InputPriceData!F$15,CalculationsAndCharts!$A111+$A$11,IF($C$7,8,0),1,1) -> 3244.659912 | H111: 3163.78332 | I111: 0.5705018041 | J111: 995845129.1 | K111: 0.1057043426 | L111: -1341821037 | M111: 0.06645878039
A112: 80 | B112: =OFFSET(InputPriceData!B$15,CalculationsAndCharts!$A112+$A$11,0,1,1) -> 2013-10-14 | C112: =OFFSET(InputPriceData!G$15,CalculationsAndCharts!$A112+$A$11,IF($C$7,8,0),1,1) -> 1455160000 | D112: =OFFSET(InputPriceData!C$15,CalculationsAndCharts!$A112+$A$11,IF($C$7,8,0),1,1) -> 3213.379883 | E112: =OFFSET(InputPriceData!D$15,CalculationsAndCharts!$A112+$A$11,IF($C$7,8,0),1,1) -> 3257.189941 | F112: =OFFSET(InputPriceData!E$15,CalculationsAndCharts!$A112+$A$11,IF($C$7,8,0),1,1) -> 3212.050049 | G112: =OFFSET(InputPriceData!F$15,CalculationsAndCharts!$A112+$A$11,IF($C$7,8,0),1,1) -> 3256.02002 | H112: 3160.482234 | I112: 0.3777120335 | J112: 549631442.7 | K112: 0.08199328222 | L112: 1379731275 | M112: 0.1237106256
A113: 81 | B113: =OFFSET(InputPriceData!B$15,CalculationsAndCharts!$A113+$A$11,0,1,1) -> 2013-10-11 | C113: =OFFSET(InputPriceData!G$15,CalculationsAndCharts!$A113+$A$11,IF($C$7,8,0),1,1) -> 1750350000 | D113: =OFFSET(InputPriceData!C$15,CalculationsAndCharts!$A113+$A$11,IF($C$7,8,0),1,1) -> 3203.48999 | E113: =OFFSET(InputPriceData!D$15,CalculationsAndCharts!$A113+$A$11,IF($C$7,8,0),1,1) -> 3237.01001 | F113: =OFFSET(InputPriceData!E$15,CalculationsAndCharts!$A113+$A$11,IF($C$7,8,0),1,1) -> 3201.929932 | G113: =OFFSET(InputPriceData!F$15,CalculationsAndCharts!$A113+$A$11,IF($C$7,8,0),1,1) -> 3233.830078 | H113: 3156.582733 | I113: 0.6107106297 | J113: 1068957351 | K113: 0.08309116043 | L113: 1433019236 | M113: 0.05469089735
A114: 82 | B114: =OFFSET(InputPriceData!B$15,CalculationsAndCharts!$A114+$A$11,0,1,1) -> 2013-10-10 | C114: =OFFSET(InputPriceData!G$15,CalculationsAndCharts!$A114+$A$11,IF($C$7,8,0),1,1) -> 1902410000 | D114: =OFFSET(InputPriceData!C$15,CalculationsAndCharts!$A114+$A$11,IF($C$7,8,0),1,1) -> 3179.27002 | E114: =OFFSET(InputPriceData!D$15,CalculationsAndCharts!$A114+$A$11,IF($C$7,8,0),1,1) -> 3216.030029 | F114: =OFFSET(InputPriceData!E$15,CalculationsAndCharts!$A114+$A$11,IF($C$7,8,0),1,1) -> 3178.669922 | G114: =OFFSET(InputPriceData!F$15,CalculationsAndCharts!$A114+$A$11,IF($C$7,8,0),1,1) -> 3210.840088 | H114: 3153.42978 | I114: 1.415322988 | J114: 2692524605 | K114: 0.04027456542 | L114: 1373857142 | M114: 0.04078238789
A115: 83 | B115: =OFFSET(InputPriceData!B$15,CalculationsAndCharts!$A115+$A$11,0,1,1) -> 2013-10-09 | C115: =OFFSET(InputPriceData!G$15,CalculationsAndCharts!$A115+$A$11,IF($C$7,8,0),1,1) -> 2242700000 | D115: =OFFSET(InputPriceData!C$15,CalculationsAndCharts!$A115+$A$11,IF($C$7,8,0),1,1) -> 3161.350098 | E115: =OFFSET(InputPriceData!D$15,CalculationsAndCharts!$A115+$A$11,IF($C$7,8,0),1,1) -> 3161.76001 | F115: =OFFSET(InputPriceData!E$15,CalculationsAndCharts!$A115+$A$11,IF($C$7,8,0),1,1) -> 3117.689941 | G115: =OFFSET(InputPriceData!F$15,CalculationsAndCharts!$A115+$A$11,IF($C$7,8,0),1,1) -> 3142.540039 | H115: 3151.086502 | I115: -0.8256240198 | J115: -1851626989 | K115: -0.01360908746 | L115: 286513865.5 | M115: -0.01222005505
A116: 84 | B116: =OFFSET(InputPriceData!B$15,CalculationsAndCharts!$A116+$A$11,0,1,1) -> 2013-10-08 | C116: =OFFSET(InputPriceData!G$15,CalculationsAndCharts!$A116+$A$11,IF($C$7,8,0),1,1) -> 2087580000 | D116: =OFFSET(InputPriceData!C$15,CalculationsAndCharts!$A116+$A$11,IF($C$7,8,0),1,1) -> 3217.149902 | E116: =OFFSET(InputPriceData!D$15,CalculationsAndCharts!$A116+$A$11,IF($C$7,8,0),1,1) -> 3217.149902 | F116: =OFFSET(InputPriceData!E$15,CalculationsAndCharts!$A116+$A$11,IF($C$7,8,0),1,1) -> 3152.26001 | G116: =OFFSET(InputPriceData!F$15,CalculationsAndCharts!$A116+$A$11,IF($C$7,8,0),1,1) -> 3153.870117 | H116: 3151.435337 | I116: -0.9099925536 | J116: -1899682255 | K116: 0.008811297566 | L116: -1983982134 | M116: 0.02575948064
A117: 85 | B117: =OFFSET(InputPriceData!B$15,CalculationsAndCharts!$A117+$A$11,0,1,1) -> 2013-10-07 | C117: =OFFSET(InputPriceData!G$15,CalculationsAndCharts!$A117+$A$11,IF($C$7,8,0),1,1) -> 1475990000 | D117: =OFFSET(InputPriceData!C$15,CalculationsAndCharts!$A117+$A$11,IF($C$7,8,0),1,1) -> 3215.77002 | E117: =OFFSET(InputPriceData!D$15,CalculationsAndCharts!$A117+$A$11,IF($C$7,8,0),1,1) -> 3240.110107 | F117: =OFFSET(InputPriceData!E$15,CalculationsAndCharts!$A117+$A$11,IF($C$7,8,0),1,1) -> 3213.01001 | G117: =OFFSET(InputPriceData!F$15,CalculationsAndCharts!$A117+$A$11,IF($C$7,8,0),1,1) -> 3215.689941 | H117: 3151.335958 | I117: -0.08244579726 | J117: -121689172.3 | K117: 0.1110977227 | L117: -1184068436 | M117: 0.1075886908
A118: 86 | B118: =OFFSET(InputPriceData!B$15,CalculationsAndCharts!$A118+$A$11,0,1,1) -> 2013-10-04 | C118: =OFFSET(InputPriceData!G$15,CalculationsAndCharts!$A118+$A$11,IF($C$7,8,0),1,1) -> 1549600000 | D118: =OFFSET(InputPriceData!C$15,CalculationsAndCharts!$A118+$A$11,IF($C$7,8,0),1,1) -> 3214.050049 | E118: =OFFSET(InputPriceData!D$15,CalculationsAndCharts!$A118+$A$11,IF($C$7,8,0),1,1) -> 3246.159912 | F118: =OFFSET(InputPriceData!E$15,CalculationsAndCharts!$A118+$A$11,IF($C$7,8,0),1,1) -> 3212.01001 | G118: =OFFSET(InputPriceData!F$15,CalculationsAndCharts!$A118+$A$11,IF($C$7,8,0),1,1) -> 3242.570068 | H118: 3148.709265 | I118: 0.06423723922 | J118: 99542025.89 | K118: 0.157478284 | L118: 1223811524 | M118: 0.1714033286
A119: 87 | B119: =OFFSET(InputPriceData!B$15,CalculationsAndCharts!$A119+$A$11,0,1,1) -> 2013-10-03 | C119: =OFFSET(InputPriceData!G$15,CalculationsAndCharts!$A119+$A$11,IF($C$7,8,0),1,1) -> 1884340000 | D119: =OFFSET(InputPriceData!C$15,CalculationsAndCharts!$A119+$A$11,IF($C$7,8,0),1,1) -> 3247.850098 | E119: =OFFSET(InputPriceData!D$15,CalculationsAndCharts!$A119+$A$11,IF($C$7,8,0),1,1) -> 3254.909912 | F119: =OFFSET(InputPriceData!E$15,CalculationsAndCharts!$A119+$A$11,IF($C$7,8,0),1,1) -> 3197.370117 | G119: =OFFSET(InputPriceData!F$15,CalculationsAndCharts!$A119+$A$11,IF($C$7,8,0),1,1) -> 3213.830078 | H119: 3144.878212 | I119: -0.3830549338 | J119: -721805733.9 | K119: 0.1422557537 | L119: -806263065.2 | M119: 0.1544302556
A120: 88 | B120: =OFFSET(InputPriceData!B$15,CalculationsAndCharts!$A120+$A$11,0,1,1) -> 2013-10-02 | C120: =OFFSET(InputPriceData!G$15,CalculationsAndCharts!$A120+$A$11,IF($C$7,8,0),1,1) -> 1792980000 | D120: =OFFSET(InputPriceData!C$15,CalculationsAndCharts!$A120+$A$11,IF($C$7,8,0),1,1) -> 3231.570068 | E120: =OFFSET(InputPriceData!D$15,CalculationsAndCharts!$A120+$A$11,IF($C$7,8,0),1,1) -> 3256.709961 | F120: =OFFSET(InputPriceData!E$15,CalculationsAndCharts!$A120+$A$11,IF($C$7,8,0),1,1) -> 3228.439941 | G120: =OFFSET(InputPriceData!F$15,CalculationsAndCharts!$A120+$A$11,IF($C$7,8,0),1,1) -> 3253.26001 | H120: 3142.06385 | I120: 0.1605037897 | J120: 287780084.9 | K120: 0.2020288439 | L120: 1355364947 | M120: 0.1664544709
A121: 89 | B121: =OFFSET(InputPriceData!B$15,CalculationsAndCharts!$A121+$A$11,0,1,1) -> 2013-10-01 | C121: =OFFSET(InputPriceData!G$15,CalculationsAndCharts!$A121+$A$11,IF($C$7,8,0),1,1) -> 1843320000 | D121: =OFFSET(InputPriceData!C$15,CalculationsAndCharts!$A121+$A$11,IF($C$7,8,0),1,1) -> 3220.919922 | E121: =OFFSET(InputPriceData!D$15,CalculationsAndCharts!$A121+$A$11,IF($C$7,8,0),1,1) -> 3254.330078 | F121: =OFFSET(InputPriceData!E$15,CalculationsAndCharts!$A121+$A$11,IF($C$7,8,0),1,1) -> 3220.919922 | G121: =OFFSET(InputPriceData!F$15,CalculationsAndCharts!$A121+$A$11,IF($C$7,8,0),1,1) -> 3253.050049 | H121: 3137.525232 | I121: 0.7755255526 | J121: 1429541762 | K121: 0.217362844 | L121: 1702075340 | M121: 0.1678437299
A122: 90 | B122: =OFFSET(InputPriceData!B$15,CalculationsAndCharts!$A122+$A$11,0,1,1) -> 2013-09-30 | C122: =OFFSET(InputPriceData!G$15,CalculationsAndCharts!$A122+$A$11,IF($C$7,8,0),1,1) -> 1895760000 | D122: =OFFSET(InputPriceData!C$15,CalculationsAndCharts!$A122+$A$11,IF($C$7,8,0),1,1) -> 3190.399902 | E122: =OFFSET(InputPriceData!D$15,CalculationsAndCharts!$A122+$A$11,IF($C$7,8,0),1,1) -> 3229.449951 | F122: =OFFSET(InputPriceData!E$15,CalculationsAndCharts!$A122+$A$11,IF($C$7,8,0),1,1) -> 3186.860107 | G122: =OFFSET(InputPriceData!F$15,CalculationsAndCharts!$A122+$A$11,IF($C$7,8,0),1,1) -> 3218.199951 | H122: 3132.809933 | I122: -0.4439490712 | J122: -841620891.2 | K122: 0.19919941 | L122: 894239543.6 | M122: 0.1122865537
A123: 91 | B123: =OFFSET(InputPriceData!B$15,CalculationsAndCharts!$A123+$A$11,0,1,1) -> 2013-09-27 | C123: =OFFSET(InputPriceData!G$15,CalculationsAndCharts!$A123+$A$11,IF($C$7,8,0),1,1) -> 1699720000 | D123: =OFFSET(InputPriceData!C$15,CalculationsAndCharts!$A123+$A$11,IF($C$7,8,0),1,1) -> 3217.439941 | E123: =OFFSET(InputPriceData!D$15,CalculationsAndCharts!$A123+$A$11,IF($C$7,8,0),1,1) -> 3235.290039 | F123: =OFFSET(InputPriceData!E$15,CalculationsAndCharts!$A123+$A$11,IF($C$7,8,0),1,1) -> 3210.800049 | G123: =OFFSET(InputPriceData!F$15,CalculationsAndCharts!$A123+$A$11,IF($C$7,8,0),1,1) -> 3230.300049 | H123: 3129.324626 | I123: -0.3626676363 | J123: -616433434.8 | K123: 0.2185386273 | L123: 1007062649 | M123: 0.07518557494
A124: 92 | B124: =OFFSET(InputPriceData!B$15,CalculationsAndCharts!$A124+$A$11,0,1,1) -> 2013-09-26 | C124: =OFFSET(InputPriceData!G$15,CalculationsAndCharts!$A124+$A$11,IF($C$7,8,0),1,1) -> 1817960000 | D124: =OFFSET(InputPriceData!C$15,CalculationsAndCharts!$A124+$A$11,IF($C$7,8,0),1,1) -> 3222.97998 | E124: =OFFSET(InputPriceData!D$15,CalculationsAndCharts!$A124+$A$11,IF($C$7,8,0),1,1) -> 3240.98999 | F124: =OFFSET(InputPriceData!E$15,CalculationsAndCharts!$A124+$A$11,IF($C$7,8,0),1,1) -> 3221.169922 | G124: =OFFSET(InputPriceData!F$15,CalculationsAndCharts!$A124+$A$11,IF($C$7,8,0),1,1) -> 3234.040039 | H124: 3125.20318 | I124: 0.7505071219 | J124: 1364391927 | K124: 0.255491219 | L124: 543016551.8 | M124: 0.05717703394
A125: 93 | B125: =OFFSET(InputPriceData!B$15,CalculationsAndCharts!$A125+$A$11,0,1,1) -> 2013-09-25 | C125: =OFFSET(InputPriceData!G$15,CalculationsAndCharts!$A125+$A$11,IF($C$7,8,0),1,1) -> 1821790000 | D125: =OFFSET(InputPriceData!C$15,CalculationsAndCharts!$A125+$A$11,IF($C$7,8,0),1,1) -> 3221.199951 | E125: =OFFSET(InputPriceData!D$15,CalculationsAndCharts!$A125+$A$11,IF($C$7,8,0),1,1) -> 3226.620117 | F125: =OFFSET(InputPriceData!E$15,CalculationsAndCharts!$A125+$A$11,IF($C$7,8,0),1,1) -> 3202.75 | G125: =OFFSET(InputPriceData!F$15,CalculationsAndCharts!$A125+$A$11,IF($C$7,8,0),1,1) -> 3208.550049 | H125: 3120.760859 | I125: -0.3285222428 | J125: -598498536.7 | K125: 0.2131991997 | L125: -936459503.5 | M125: 0.03874168823
A126: 94 | B126: =OFFSET(InputPriceData!B$15,CalculationsAndCharts!$A126+$A$11,0,1,1) -> 2013-09-24 | C126: =OFFSET(InputPriceData!G$15,CalculationsAndCharts!$A126+$A$11,IF($C$7,8,0),1,1) -> 1810950000 | D126: =OFFSET(InputPriceData!C$15,CalculationsAndCharts!$A126+$A$11,IF($C$7,8,0),1,1) -> 3226.22998 | E126: =OFFSET(InputPriceData!D$15,CalculationsAndCharts!$A126+$A$11,IF($C$7,8,0),1,1) -> 3236.840088 | F126: =OFFSET(InputPriceData!E$15,CalculationsAndCharts!$A126+$A$11,IF($C$7,8,0),1,1) -> 3209.389893 | G126: =OFFSET(InputPriceData!F$15,CalculationsAndCharts!$A126+$A$11,IF($C$7,8,0),1,1) -> 3218.659912 | H126: 3117.177627 | I126: -0.04129620305 | J126: -74785358.91 | K126: 0.1628798487 | L126: -587822739.3 | M126: 0.03056270608
A127: 95 | B127: =OFFSET(InputPriceData!B$15,CalculationsAndCharts!$A127+$A$11,0,1,1) -> 2013-09-23 | C127: =OFFSET(InputPriceData!G$15,CalculationsAndCharts!$A127+$A$11,IF($C$7,8,0),1,1) -> 1728620000 | D127: =OFFSET(InputPriceData!C$15,CalculationsAndCharts!$A127+$A$11,IF($C$7,8,0),1,1) -> 3242.320068 | E127: =OFFSET(InputPriceData!D$15,CalculationsAndCharts!$A127+$A$11,IF($C$7,8,0),1,1) -> 3243.429932 | F127: =OFFSET(InputPriceData!E$15,CalculationsAndCharts!$A127+$A$11,IF($C$7,8,0),1,1) -> 3205.5 | G127: =OFFSET(InputPriceData!F$15,CalculationsAndCharts!$A127+$A$11,IF($C$7,8,0),1,1) -> 3219.340088 | H127: 3113.035493 | I127: -0.3940388696 | J127: -681143470.8 | K127: 0.1929928183 | L127: -467122725.6 | M127: 0.01824782868
A128: 96 | B128: =OFFSET(InputPriceData!B$15,CalculationsAndCharts!$A128+$A$11,0,1,1) -> 2013-09-20 | C128: =OFFSET(InputPriceData!G$15,CalculationsAndCharts!$A128+$A$11,IF($C$7,8,0),1,1) -> 2711270000 | D128: =OFFSET(InputPriceData!C$15,CalculationsAndCharts!$A128+$A$11,IF($C$7,8,0),1,1) -> 3244.429932 | E128: =OFFSET(InputPriceData!D$15,CalculationsAndCharts!$A128+$A$11,IF($C$7,8,0),1,1) -> 3248.52002 | F128: =OFFSET(InputPriceData!E$15,CalculationsAndCharts!$A128+$A$11,IF($C$7,8,0),1,1) -> 3224.72998 | G128: =OFFSET(InputPriceData!F$15,CalculationsAndCharts!$A128+$A$11,IF($C$7,8,0),1,1) -> 3224.72998 | H128: 3108.69653 | I128: -0.09535394965 | J128: -258530303.1 | K128: 0.2868567599 | L128: -2711270000 | M128: 0.0604004502
A129: 97 | B129: =OFFSET(InputPriceData!B$15,CalculationsAndCharts!$A129+$A$11,0,1,1) -> 2013-09-19 | C129: =OFFSET(InputPriceData!G$15,CalculationsAndCharts!$A129+$A$11,IF($C$7,8,0),1,1) -> 1775980000 | D129: =OFFSET(InputPriceData!C$15,CalculationsAndCharts!$A129+$A$11,IF($C$7,8,0),1,1) -> 3240.929932 | E129: =OFFSET(InputPriceData!D$15,CalculationsAndCharts!$A129+$A$11,IF($C$7,8,0),1,1) -> 3245.120117 | F129: =OFFSET(InputPriceData!E$15,CalculationsAndCharts!$A129+$A$11,IF($C$7,8,0),1,1) -> 3231.679932 | G129: =OFFSET(InputPriceData!F$15,CalculationsAndCharts!$A129+$A$11,IF($C$7,8,0),1,1) -> 3237.610107 | H129: 3103.960471 | I129: 0.8633971588 | J129: 1533376086 | K129: 0.3273330483 | L129: -208758686.2 | M129: 0.1751761679
A130: 98 | B130: =OFFSET(InputPriceData!B$15,CalculationsAndCharts!$A130+$A$11,0,1,1) -> 2013-09-18 | C130: =OFFSET(InputPriceData!G$15,CalculationsAndCharts!$A130+$A$11,IF($C$7,8,0),1,1) -> 1828820000 | D130: =OFFSET(InputPriceData!C$15,CalculationsAndCharts!$A130+$A$11,IF($C$7,8,0),1,1) -> 3198.449951 | E130: =OFFSET(InputPriceData!D$15,CalculationsAndCharts!$A130+$A$11,IF($C$7,8,0),1,1) -> 3235.719971 | F130: =OFFSET(InputPriceData!E$15,CalculationsAndCharts!$A130+$A$11,IF($C$7,8,0),1,1) -> 3190.01001 | G130: =OFFSET(InputPriceData!F$15,CalculationsAndCharts!$A130+$A$11,IF($C$7,8,0),1,1) -> 3231.310059 | H130: 3098.505384 | I130: 0.8400774987 | J130: 1536350531 | K130: 0.2736710343 | L130: 1475945699 | M130: 0.1623583053
A131: 99 | B131: =OFFSET(InputPriceData!B$15,CalculationsAndCharts!$A131+$A$11,0,1,1) -> 2013-09-17 | C131: =OFFSET(InputPriceData!G$15,CalculationsAndCharts!$A131+$A$11,IF($C$7,8,0),1,1) -> 1338800000 | D131: =OFFSET(InputPriceData!C$15,CalculationsAndCharts!$A131+$A$11,IF($C$7,8,0),1,1) -> 3177.780029 | E131: =OFFSET(InputPriceData!D$15,CalculationsAndCharts!$A131+$A$11,IF($C$7,8,0),1,1) -> 3195.149902 | F131: =OFFSET(InputPriceData!E$15,CalculationsAndCharts!$A131+$A$11,IF($C$7,8,0),1,1) -> 3176.580078 | G131: =OFFSET(InputPriceData!F$15,CalculationsAndCharts!$A131+$A$11,IF($C$7,8,0),1,1) -> 3190.830078 | H131: 3093.084785 | I131: 0.06680005102 | J131: 89431908.31 | K131: 0.2266629107 | L131: 715920604.8 | M131: 0.1067177874
A132: 100 | B132: =OFFSET(InputPriceData!B$15,CalculationsAndCharts!$A132+$A$11,0,1,1) -> 2013-09-16 | C132: =OFFSET(InputPriceData!G$15,CalculationsAndCharts!$A132+$A$11,IF($C$7,8,0),1,1) -> 1542500000 | D132: =OFFSET(InputPriceData!C$15,CalculationsAndCharts!$A132+$A$11,IF($C$7,8,0),1,1) -> 3203.189941 | E132: =OFFSET(InputPriceData!D$15,CalculationsAndCharts!$A132+$A$11,IF($C$7,8,0),1,1) -> 3204.590088 | F132: =OFFSET(InputPriceData!E$15,CalculationsAndCharts!$A132+$A$11,IF($C$7,8,0),1,1) -> 3163.129883 | G132: =OFFSET(InputPriceData!F$15,CalculationsAndCharts!$A132+$A$11,IF($C$7,8,0),1,1) -> 3168.689941 | H132: 3089.095181 | I132: 0.3869477285 | J132: 596866871.3 | K132: 0.2317036372 | L132: -1128783306 | M132: 0.03901245876
A133: 101 | B133: =OFFSET(InputPriceData!B$15,CalculationsAndCharts!$A133+$A$11,0,1,1) -> 2013-09-13 | C133: =OFFSET(InputPriceData!G$15,CalculationsAndCharts!$A133+$A$11,IF($C$7,8,0),1,1) -> 1460190000 | D133: =OFFSET(InputPriceData!C$15,CalculationsAndCharts!$A133+$A$11,IF($C$7,8,0),1,1) -> 3180.449951 | E133: =OFFSET(InputPriceData!D$15,CalculationsAndCharts!$A133+$A$11,IF($C$7,8,0),1,1) -> 3182.110107 | F133: =OFFSET(InputPriceData!E$15,CalculationsAndCharts!$A133+$A$11,IF($C$7,8,0),1,1) -> 3161.649902 | G133: =OFFSET(InputPriceData!F$15,CalculationsAndCharts!$A133+$A$11,IF($C$7,8,0),1,1) -> 3178.280029 | H133: 3085.846415 | I133: -0.346253632 | J133: -505596090.9 | K133: 0.2129669008 | L133: 913505194.6 | M133: 0.0433736573
A134: 102 | B134: =OFFSET(InputPriceData!B$15,CalculationsAndCharts!$A134+$A$11,0,1,1) -> 2013-09-12 | C134: =OFFSET(InputPriceData!G$15,CalculationsAndCharts!$A134+$A$11,IF($C$7,8,0),1,1) -> 1653860000 | D134: =OFFSET(InputPriceData!C$15,CalculationsAndCharts!$A134+$A$11,IF($C$7,8,0),1,1) -> 3179.600098 | E134: =OFFSET(InputPriceData!D$15,CalculationsAndCharts!$A134+$A$11,IF($C$7,8,0),1,1) -> 3186.300049 | F134: =OFFSET(InputPriceData!E$15,CalculationsAndCharts!$A134+$A$11,IF($C$7,8,0),1,1) -> 3170.139893 | G134: =OFFSET(InputPriceData!F$15,CalculationsAndCharts!$A134+$A$11,IF($C$7,8,0),1,1) -> 3175.570068 | H134: 3082.073615 | I134: 0.4502866641 | J134: 744711102.3 | K134: 0.08257763049 | L134: -542391865 | M134: -0.005676231544
A135: 103 | B135: =OFFSET(InputPriceData!B$15,CalculationsAndCharts!$A135+$A$11,0,1,1) -> 2013-09-11 | C135: =OFFSET(InputPriceData!G$15,CalculationsAndCharts!$A135+$A$11,IF($C$7,8,0),1,1) -> 1722380000 | D135: =OFFSET(InputPriceData!C$15,CalculationsAndCharts!$A135+$A$11,IF($C$7,8,0),1,1) -> 3163.77002 | E135: =OFFSET(InputPriceData!D$15,CalculationsAndCharts!$A135+$A$11,IF($C$7,8,0),1,1) -> 3180.370117 | F135: =OFFSET(InputPriceData!E$15,CalculationsAndCharts!$A135+$A$11,IF($C$7,8,0),1,1) -> 3159.310059 | G135: =OFFSET(InputPriceData!F$15,CalculationsAndCharts!$A135+$A$11,IF($C$7,8,0),1,1) -> 3179.860107 | H135: 3078.257433 | I135: -0.6095713085 | J135: -1049913430 | K135: 0.06980098864 | L135: 1638958480 | M135: -0.0160866802
A136: 104 | B136: =OFFSET(InputPriceData!B$15,CalculationsAndCharts!$A136+$A$11,0,1,1) -> 2013-09-10 | C136: =OFFSET(InputPriceData!G$15,CalculationsAndCharts!$A136+$A$11,IF($C$7,8,0),1,1) -> 1842570000 | D136: =OFFSET(InputPriceData!C$15,CalculationsAndCharts!$A136+$A$11,IF($C$7,8,0),1,1) -> 3186.530029 | E136: =OFFSET(InputPriceData!D$15,CalculationsAndCharts!$A136+$A$11,IF($C$7,8,0),1,1) -> 3189.23999 | F136: =OFFSET(InputPriceData!E$15,CalculationsAndCharts!$A136+$A$11,IF($C$7,8,0),1,1) -> 3173.110107 | G136: =OFFSET(InputPriceData!F$15,CalculationsAndCharts!$A136+$A$11,IF($C$7,8,0),1,1) -> 3185.070068 | H136: 3074.110385 | I136: 0.9217425174 | J136: 1698375110 | K136: 0.1198320581 | L136: 889881976.2 | M136: -0.03667222198
A137: 105 | B137: =OFFSET(InputPriceData!B$15,CalculationsAndCharts!$A137+$A$11,0,1,1) -> 2013-09-09 | C137: =OFFSET(InputPriceData!G$15,CalculationsAndCharts!$A137+$A$11,IF($C$7,8,0),1,1) -> 1664290000 | D137: =OFFSET(InputPriceData!C$15,CalculationsAndCharts!$A137+$A$11,IF($C$7,8,0),1,1) -> 3146.02002 | E137: =OFFSET(InputPriceData!D$15,CalculationsAndCharts!$A137+$A$11,IF($C$7,8,0),1,1) -> 3174.870117 | F137: =OFFSET(InputPriceData!E$15,CalculationsAndCharts!$A137+$A$11,IF($C$7,8,0),1,1) -> 3146.02002 | G137: =OFFSET(InputPriceData!F$15,CalculationsAndCharts!$A137+$A$11,IF($C$7,8,0),1,1) -> 3169.929932 | H137: 3069.581418 | I137: 0.9255833749 | J137: 1540439155 | K137: 0.05544140818 | L137: 1094316146 | M137: -0.03766060863
A138: 106 | B138: =OFFSET(InputPriceData!B$15,CalculationsAndCharts!$A138+$A$11,0,1,1) -> 2013-09-06 | C138: =OFFSET(InputPriceData!G$15,CalculationsAndCharts!$A138+$A$11,IF($C$7,8,0),1,1) -> 1647310000 | D138: =OFFSET(InputPriceData!C$15,CalculationsAndCharts!$A138+$A$11,IF($C$7,8,0),1,1) -> 3140.97998 | E138: =OFFSET(InputPriceData!D$15,CalculationsAndCharts!$A138+$A$11,IF($C$7,8,0),1,1) -> 3148.98999 | F138: =OFFSET(InputPriceData!E$15,CalculationsAndCharts!$A138+$A$11,IF($C$7,8,0),1,1) -> 3098.02002 | G138: =OFFSET(InputPriceData!F$15,CalculationsAndCharts!$A138+$A$11,IF($C$7,8,0),1,1) -> 3133.379883 | H138: 3065.48556 | I138: -0.2581287402 | J138: -425218055 | K138: 0.001313913837 | L138: 638296835.5 | M138: -0.09300310489
A139: 107 | B139: =OFFSET(InputPriceData!B$15,CalculationsAndCharts!$A139+$A$11,0,1,1) -> 2013-09-05 | C139: =OFFSET(InputPriceData!G$15,CalculationsAndCharts!$A139+$A$11,IF($C$7,8,0),1,1) -> 1550180000 | D139: =OFFSET(InputPriceData!C$15,CalculationsAndCharts!$A139+$A$11,IF($C$7,8,0),1,1) -> 3127.070068 | E139: =OFFSET(InputPriceData!D$15,CalculationsAndCharts!$A139+$A$11,IF($C$7,8,0),1,1) -> 3138.060059 | F139: =OFFSET(InputPriceData!E$15,CalculationsAndCharts!$A139+$A$11,IF($C$7,8,0),1,1) -> 3125.379883 | G139: =OFFSET(InputPriceData!F$15,CalculationsAndCharts!$A139+$A$11,IF($C$7,8,0),1,1) -> 3129.939941 | H139: 3062.714364 | I139: 0.8590211298 | J139: 1331637375 | K139: 0.04617408741 | L139: -435225332.1 | M139: -0.08981749211
A140: 108 | B140: =OFFSET(InputPriceData!B$15,CalculationsAndCharts!$A140+$A$11,0,1,1) -> 2013-09-04 | C140: =OFFSET(InputPriceData!G$15,CalculationsAndCharts!$A140+$A$11,IF($C$7,8,0),1,1) -> 1855980000 | D140: =OFFSET(InputPriceData!C$15,CalculationsAndCharts!$A140+$A$11,IF($C$7,8,0),1,1) -> 3100.280029 | E140: =OFFSET(InputPriceData!D$15,CalculationsAndCharts!$A140+$A$11,IF($C$7,8,0),1,1) -> 3128.800049 | F140: =OFFSET(InputPriceData!E$15,CalculationsAndCharts!$A140+$A$11,IF($C$7,8,0),1,1) -> 3092.959961 | G140: =OFFSET(InputPriceData!F$15,CalculationsAndCharts!$A140+$A$11,IF($C$7,8,0),1,1) -> 3124.540039 | H140: 3059.970463 | I140: 0.4528349148 | J140: 840452545.2 | K140: -0.03006364999 | L140: 1414770516 | M140: -0.04040688172
A141: 109 | B141: =OFFSET(InputPriceData!B$15,CalculationsAndCharts!$A141+$A$11,0,1,1) -> 2013-09-03 | C141: =OFFSET(InputPriceData!G$15,CalculationsAndCharts!$A141+$A$11,IF($C$7,8,0),1,1) -> 1628810000 | D141: =OFFSET(InputPriceData!C$15,CalculationsAndCharts!$A141+$A$11,IF($C$7,8,0),1,1) -> 3097.649902 | E141: =OFFSET(InputPriceData!D$15,CalculationsAndCharts!$A141+$A$11,IF($C$7,8,0),1,1) -> 3112.419922 | F141: =OFFSET(InputPriceData!E$15,CalculationsAndCharts!$A141+$A$11,IF($C$7,8,0),1,1) -> 3077.129883 | G141: =OFFSET(InputPriceData!F$15,CalculationsAndCharts!$A141+$A$11,IF($C$7,8,0),1,1) -> 3091.76001 | H141: 3057.33497 | I141: 0.4587619919 | J141: 747236120 | K141: -0.09024202783 | L141: -278304427.7 | M141: -0.1026108264
A142: 110 | B142: =OFFSET(InputPriceData!B$15,CalculationsAndCharts!$A142+$A$11,0,1,1) -> 2013-08-30 | C142: =OFFSET(InputPriceData!G$15,CalculationsAndCharts!$A142+$A$11,IF($C$7,8,0),1,1) -> 1328320000 | D142: =OFFSET(InputPriceData!C$15,CalculationsAndCharts!$A142+$A$11,IF($C$7,8,0),1,1) -> 3095.169922 | E142: =OFFSET(InputPriceData!D$15,CalculationsAndCharts!$A142+$A$11,IF($C$7,8,0),1,1) -> 3095.439941 | F142: =OFFSET(InputPriceData!E$15,CalculationsAndCharts!$A142+$A$11,IF($C$7,8,0),1,1) -> 3063.070068 | G142: =OFFSET(InputPriceData!F$15,CalculationsAndCharts!$A142+$A$11,IF($C$7,8,0),1,1) -> 3073.810059 | H142: 3055.929866 | I142: -0.2174171532 | J142: -288799552.9 | K142: -0.09299854242 | L142: -446874166.4 | M142: -0.06101297996
A143: 111 | B143: =OFFSET(InputPriceData!B$15,CalculationsAndCharts!$A143+$A$11,0,1,1) -> 2013-08-29 | C143: =OFFSET(InputPriceData!G$15,CalculationsAndCharts!$A143+$A$11,IF($C$7,8,0),1,1) -> 1344900000 | D143: =OFFSET(InputPriceData!C$15,CalculationsAndCharts!$A143+$A$11,IF($C$7,8,0),1,1) -> 3065.870117 | E143: =OFFSET(InputPriceData!D$15,CalculationsAndCharts!$A143+$A$11,IF($C$7,8,0),1,1) -> 3109.070068 | F143: =OFFSET(InputPriceData!E$15,CalculationsAndCharts!$A143+$A$11,IF($C$7,8,0),1,1) -> 3065.870117 | G143: =OFFSET(InputPriceData!F$15,CalculationsAndCharts!$A143+$A$11,IF($C$7,8,0),1,1) -> 3093.360107 | H143: 3055.200062 | I143: 0.4202557735 | J143: 565201989.8 | K143: -0.05347803352 | L143: 366735624.4 | M143: 0.01165097901
A144: 112 | B144: =OFFSET(InputPriceData!B$15,CalculationsAndCharts!$A144+$A$11,0,1,1) -> 2013-08-28 | C144: =OFFSET(InputPriceData!G$15,CalculationsAndCharts!$A144+$A$11,IF($C$7,8,0),1,1) -> 1370650000 | D144: =OFFSET(InputPriceData!C$15,CalculationsAndCharts!$A144+$A$11,IF($C$7,8,0),1,1) -> 3060.959961 | E144: =OFFSET(InputPriceData!D$15,CalculationsAndCharts!$A144+$A$11,IF($C$7,8,0),1,1) -> 3085.679932 | F144: =OFFSET(InputPriceData!E$15,CalculationsAndCharts!$A144+$A$11,IF($C$7,8,0),1,1) -> 3060.540039 | G144: =OFFSET(InputPriceData!F$15,CalculationsAndCharts!$A144+$A$11,IF($C$7,8,0),1,1) -> 3072.169922 | H144: 3053.642509 | I144: -0.1255572647 | J144: -172095064.9 | K144: -0.005543408468 | L144: -102506246.6 | M144: 0.04426346819
A145: 113 | B145: =OFFSET(InputPriceData!B$15,CalculationsAndCharts!$A145+$A$11,0,1,1) -> 2013-08-27 | C145: =OFFSET(InputPriceData!G$15,CalculationsAndCharts!$A145+$A$11,IF($C$7,8,0),1,1) -> 1640040000 | D145: =OFFSET(InputPriceData!C$15,CalculationsAndCharts!$A145+$A$11,IF($C$7,8,0),1,1) -> 3086.169922 | E145: =OFFSET(InputPriceData!D$15,CalculationsAndCharts!$A145+$A$11,IF($C$7,8,0),1,1) -> 3102.27002 | F145: =OFFSET(InputPriceData!E$15,CalculationsAndCharts!$A145+$A$11,IF($C$7,8,0),1,1) -> 3053.26001 | G145: =OFFSET(InputPriceData!F$15,CalculationsAndCharts!$A145+$A$11,IF($C$7,8,0),1,1) -> 3059.580078 | H145: 3052.886288 | I145: -1.414751858 | J145: -2320249638 | K145: 0.03033089981 | L145: -1217058478 | M145: -0.001217048269
A146: 114 | B146: =OFFSET(InputPriceData!B$15,CalculationsAndCharts!$A146+$A$11,0,1,1) -> 2013-08-26 | C146: =OFFSET(InputPriceData!G$15,CalculationsAndCharts!$A146+$A$11,IF($C$7,8,0),1,1) -> 1404230000 | D146: =OFFSET(InputPriceData!C$15,CalculationsAndCharts!$A146+$A$11,IF($C$7,8,0),1,1) -> 3127.01001 | E146: =OFFSET(InputPriceData!D$15,CalculationsAndCharts!$A146+$A$11,IF($C$7,8,0),1,1) -> 3147.870117 | F146: =OFFSET(InputPriceData!E$15,CalculationsAndCharts!$A146+$A$11,IF($C$7,8,0),1,1) -> 3118.52002 | G146: =OFFSET(InputPriceData!F$15,CalculationsAndCharts!$A146+$A$11,IF($C$7,8,0),1,1) -> 3122.669922 | H146: 3052.613072 | I146: 0.6080853059 | J146: 853891629.1 | K146: 0.1443715147 | L146: -1007133058 | M146: 0.02555344324
A147: 115 | B147: =OFFSET(InputPriceData!B$15,CalculationsAndCharts!$A147+$A$11,0,1,1) -> 2013-08-23 | C147: =OFFSET(InputPriceData!G$15,CalculationsAndCharts!$A147+$A$11,IF($C$7,8,0),1,1) -> 1499890000 | D147: =OFFSET(InputPriceData!C$15,CalculationsAndCharts!$A147+$A$11,IF($C$7,8,0),1,1) -> 3126.25 | E147: =OFFSET(InputPriceData!D$15,CalculationsAndCharts!$A147+$A$11,IF($C$7,8,0),1,1) -> 3127.050049 | F147: =OFFSET(InputPriceData!E$15,CalculationsAndCharts!$A147+$A$11,IF($C$7,8,0),1,1) -> 3112.870117 | G147: =OFFSET(InputPriceData!F$15,CalculationsAndCharts!$A147+$A$11,IF($C$7,8,0),1,1) -> 3124.27002 | H147: 3049.753609 | I147: 1.569768619 | J147: 2354480255 | K147: 0.140617929 | L147: 911771848.7 | M147: 0.03755802501
A148: 116 | B148: =OFFSET(InputPriceData!B$15,CalculationsAndCharts!$A148+$A$11,0,1,1) -> 2013-08-22 | C148: =OFFSET(InputPriceData!G$15,CalculationsAndCharts!$A148+$A$11,IF($C$7,8,0),1,1) -> 927400000 | D148: =OFFSET(InputPriceData!C$15,CalculationsAndCharts!$A148+$A$11,IF($C$7,8,0),1,1) -> 3085.610107 | E148: =OFFSET(InputPriceData!D$15,CalculationsAndCharts!$A148+$A$11,IF($C$7,8,0),1,1) -> 3103.639893 | F148: =OFFSET(InputPriceData!E$15,CalculationsAndCharts!$A148+$A$11,IF($C$7,8,0),1,1) -> 3085.419922 | G148: =OFFSET(InputPriceData!F$15,CalculationsAndCharts!$A148+$A$11,IF($C$7,8,0),1,1) -> 3101.820068 | H148: 3046.712123 | I148: 0.5236320656 | J148: 485616377.7 | K148: 0.08120284991 | L148: 742141120.6 | M148: 0.06548645825
A149: 117 | B149: =OFFSET(InputPriceData!B$15,CalculationsAndCharts!$A149+$A$11,0,1,1) -> 2013-08-21 | C149: =OFFSET(InputPriceData!G$15,CalculationsAndCharts!$A149+$A$11,IF($C$7,8,0),1,1) -> 1438510000 | D149: =OFFSET(InputPriceData!C$15,CalculationsAndCharts!$A149+$A$11,IF($C$7,8,0),1,1) -> 3073.23999 | E149: =OFFSET(InputPriceData!D$15,CalculationsAndCharts!$A149+$A$11,IF($C$7,8,0),1,1) -> 3098.620117 | F149: =OFFSET(InputPriceData!E$15,CalculationsAndCharts!$A149+$A$11,IF($C$7,8,0),1,1) -> 3061.419922 | G149: =OFFSET(InputPriceData!F$15,CalculationsAndCharts!$A149+$A$11,IF($C$7,8,0),1,1) -> 3071.469971 | H149: 3044.462819 | I149: -0.1556863367 | J149: -223956352.2 | K149: 0.0750752772 | L149: -661250849.2 | M149: 0.09579769843
A150: 118 | B150: =OFFSET(InputPriceData!B$15,CalculationsAndCharts!$A150+$A$11,0,1,1) -> 2013-08-20 | C150: =OFFSET(InputPriceData!G$15,CalculationsAndCharts!$A150+$A$11,IF($C$7,8,0),1,1) -> 1308280000 | D150: =OFFSET(InputPriceData!C$15,CalculationsAndCharts!$A150+$A$11,IF($C$7,8,0),1,1) -> 3077.149902 | E150: =OFFSET(InputPriceData!D$15,CalculationsAndCharts!$A150+$A$11,IF($C$7,8,0),1,1) -> 3096.419922 | F150: =OFFSET(InputPriceData!E$15,CalculationsAndCharts!$A150+$A$11,IF($C$7,8,0),1,1) -> 3073.050049 | G150: =OFFSET(InputPriceData!F$15,CalculationsAndCharts!$A150+$A$11,IF($C$7,8,0),1,1) -> 3082.169922 | H150: 3043.360486 | I150: -0.01857285959 | J150: -24298500.74 | K150: 0.08773031462 | L150: -287192084.9 | M150: 0.086640764
A151: 119 | B151: =OFFSET(InputPriceData!B$15,CalculationsAndCharts!$A151+$A$11,0,1,1) -> 2013-08-19 | C151: =OFFSET(InputPriceData!G$15,CalculationsAndCharts!$A151+$A$11,IF($C$7,8,0),1,1) -> 1351050000 | D151: =OFFSET(InputPriceData!C$15,CalculationsAndCharts!$A151+$A$11,IF($C$7,8,0),1,1) -> 3074.379883 | E151: =OFFSET(InputPriceData!D$15,CalculationsAndCharts!$A151+$A$11,IF($C$7,8,0),1,1) -> 3101.02002 | F151: =OFFSET(InputPriceData!E$15,CalculationsAndCharts!$A151+$A$11,IF($C$7,8,0),1,1) -> 3069.469971 | G151: =OFFSET(InputPriceData!F$15,CalculationsAndCharts!$A151+$A$11,IF($C$7,8,0),1,1) -> 3069.76001 | H151: 3041.776428 | I151: 0.1808551922 | J151: 244344407.5 | K151: 0.06915643603 | L151: -1326209646 | M151: 0.05324811865
A152: 120 | B152: =OFFSET(InputPriceData!B$15,CalculationsAndCharts!$A152+$A$11,0,1,1) -> 2013-08-16 | C152: =OFFSET(InputPriceData!G$15,CalculationsAndCharts!$A152+$A$11,IF($C$7,8,0),1,1) -> 1520430000 | D152: =OFFSET(InputPriceData!C$15,CalculationsAndCharts!$A152+$A$11,IF($C$7,8,0),1,1) -> 3076.830078 | E152: =OFFSET(InputPriceData!D$15,CalculationsAndCharts!$A152+$A$11,IF($C$7,8,0),1,1) -> 3090.689941 | F152: =OFFSET(InputPriceData!E$15,CalculationsAndCharts!$A152+$A$11,IF($C$7,8,0),1,1) -> 3070.429932 | G152: =OFFSET(InputPriceData!F$15,CalculationsAndCharts!$A152+$A$11,IF($C$7,8,0),1,1) -> 3073.909912 | H152: 3040.634241 | I152: 0.01753903923 | J152: 26666881.41 | K152: 0.09187976911 | L152: -998113747.2 | M152: 0.1038173838
A153: 121 | B153: =OFFSET(InputPriceData!B$15,CalculationsAndCharts!$A153+$A$11,0,1,1) -> 2013-08-15 | C153: =OFFSET(InputPriceData!G$15,CalculationsAndCharts!$A153+$A$11,IF($C$7,8,0),1,1) -> 1742510000 | D153: =OFFSET(InputPriceData!C$15,CalculationsAndCharts!$A153+$A$11,IF($C$7,8,0),1,1) -> 3089.340088 | E153: =OFFSET(InputPriceData!D$15,CalculationsAndCharts!$A153+$A$11,IF($C$7,8,0),1,1) -> 3092.27002 | F153: =OFFSET(InputPriceData!E$15,CalculationsAndCharts!$A153+$A$11,IF($C$7,8,0),1,1) -> 3068.070068 | G153: =OFFSET(InputPriceData!F$15,CalculationsAndCharts!$A153+$A$11,IF($C$7,8,0),1,1) -> 3076.22998 | H153: 3039.27605 | I153: -2.533545279 | J153: -4414727983 | K153: -0.03356282426 | L153: -567406160.2 | M153: 0.1484919646
A154: 122 | B154: =OFFSET(InputPriceData!B$15,CalculationsAndCharts!$A154+$A$11,0,1,1) -> 2013-08-14 | C154: =OFFSET(InputPriceData!G$15,CalculationsAndCharts!$A154+$A$11,IF($C$7,8,0),1,1) -> 1489370000 | D154: =OFFSET(InputPriceData!C$15,CalculationsAndCharts!$A154+$A$11,IF($C$7,8,0),1,1) -> 3141.969971 | E154: =OFFSET(InputPriceData!D$15,CalculationsAndCharts!$A154+$A$11,IF($C$7,8,0),1,1) -> 3144.429932 | F154: =OFFSET(InputPriceData!E$15,CalculationsAndCharts!$A154+$A$11,IF($C$7,8,0),1,1) -> 3125.409912 | G154: =OFFSET(InputPriceData!F$15,CalculationsAndCharts!$A154+$A$11,IF($C$7,8,0),1,1) -> 3129.449951 | H154: 3037.767726 | I154: 0.2311636766 | J154: 344288245 | K154: 0.0919441739 | L154: -856656376.6 | M154: 0.1457286373
A155: 123 | B155: =OFFSET(InputPriceData!B$15,CalculationsAndCharts!$A155+$A$11,0,1,1) -> 2013-08-13 | C155: =OFFSET(InputPriceData!G$15,CalculationsAndCharts!$A155+$A$11,IF($C$7,8,0),1,1) -> 1644730000 | D155: =OFFSET(InputPriceData!C$15,CalculationsAndCharts!$A155+$A$11,IF($C$7,8,0),1,1) -> 3130.080078 | E155: =OFFSET(InputPriceData!D$15,CalculationsAndCharts!$A155+$A$11,IF($C$7,8,0),1,1) -> 3149.23999 | F155: =OFFSET(InputPriceData!E$15,CalculationsAndCharts!$A155+$A$11,IF($C$7,8,0),1,1) -> 3106.27002 | G155: =OFFSET(InputPriceData!F$15,CalculationsAndCharts!$A155+$A$11,IF($C$7,8,0),1,1) -> 3141.060059 | H155: 3034.025595 | I155: 0.2769921532 | J155: 455577304.1 | K155: 0.100224321 | L155: 1018535571 | M155: 0.1823123885
A156: 124 | B156: =OFFSET(InputPriceData!B$15,CalculationsAndCharts!$A156+$A$11,0,1,1) -> 2013-08-12 | C156: =OFFSET(InputPriceData!G$15,CalculationsAndCharts!$A156+$A$11,IF($C$7,8,0),1,1) -> 1422420000 | D156: =OFFSET(InputPriceData!C$15,CalculationsAndCharts!$A156+$A$11,IF($C$7,8,0),1,1) -> 3107.060059 | E156: =OFFSET(InputPriceData!D$15,CalculationsAndCharts!$A156+$A$11,IF($C$7,8,0),1,1) -> 3130.610107 | F156: =OFFSET(InputPriceData!E$15,CalculationsAndCharts!$A156+$A$11,IF($C$7,8,0),1,1) -> 3106.25 | G156: =OFFSET(InputPriceData!F$15,CalculationsAndCharts!$A156+$A$11,IF($C$7,8,0),1,1) -> 3125.929932 | H156: 3029.656841 | I156: -0.1894523493 | J156: -269480810.7 | K156: 0.09324586383 | L156: 875856347.9 | M156: 0.1540518356
A157: 125 | B157: =OFFSET(InputPriceData!B$15,CalculationsAndCharts!$A157+$A$11,0,1,1) -> 2013-08-09 | C157: =OFFSET(InputPriceData!G$15,CalculationsAndCharts!$A157+$A$11,IF($C$7,8,0),1,1) -> 1546570000 | D157: =OFFSET(InputPriceData!C$15,CalculationsAndCharts!$A157+$A$11,IF($C$7,8,0),1,1) -> 3124.73999 | E157: =OFFSET(InputPriceData!D$15,CalculationsAndCharts!$A157+$A$11,IF($C$7,8,0),1,1) -> 3136.699951 | F157: =OFFSET(InputPriceData!E$15,CalculationsAndCharts!$A157+$A$11,IF($C$7,8,0),1,1) -> 3109.860107 | G157: =OFFSET(InputPriceData!F$15,CalculationsAndCharts!$A157+$A$11,IF($C$7,8,0),1,1) -> 3118.570068 | H157: 3025.727327 | I157: -0.0462923833 | J157: -71594411.24 | K157: 0.1199722461 | L157: -542796328 | M157: 0.1564251565
A158: 126 | B158: =OFFSET(InputPriceData!B$15,CalculationsAndCharts!$A158+$A$11,0,1,1) -> 2013-08-08 | C158: =OFFSET(InputPriceData!G$15,CalculationsAndCharts!$A158+$A$11,IF($C$7,8,0),1,1) -> 1702950000 | D158: =OFFSET(InputPriceData!C$15,CalculationsAndCharts!$A158+$A$11,IF($C$7,8,0),1,1) -> 3134.060059 | E158: =OFFSET(InputPriceData!D$15,CalculationsAndCharts!$A158+$A$11,IF($C$7,8,0),1,1) -> 3137.659912 | F158: =OFFSET(InputPriceData!E$15,CalculationsAndCharts!$A158+$A$11,IF($C$7,8,0),1,1) -> 3111.360107 | G158: =OFFSET(InputPriceData!F$15,CalculationsAndCharts!$A158+$A$11,IF($C$7,8,0),1,1) -> 3130.129883 | H158: 3021.937828 | I158: 0.5331775439 | J158: 907974698.4 | K158: 0.1581902051 | L158: 727789698.6 | M158: 0.2199958409
A159: 127 | B159: =OFFSET(InputPriceData!B$15,CalculationsAndCharts!$A159+$A$11,0,1,1) -> 2013-08-07 | C159: =OFFSET(InputPriceData!G$15,CalculationsAndCharts!$A159+$A$11,IF($C$7,8,0),1,1) -> 1659780000 | D159: =OFFSET(InputPriceData!C$15,CalculationsAndCharts!$A159+$A$11,IF($C$7,8,0),1,1) -> 3117.129883 | E159: =OFFSET(InputPriceData!D$15,CalculationsAndCharts!$A159+$A$11,IF($C$7,8,0),1,1) -> 3123.919922 | F159: =OFFSET(InputPriceData!E$15,CalculationsAndCharts!$A159+$A$11,IF($C$7,8,0),1,1) -> 3096.409912 | G159: =OFFSET(InputPriceData!F$15,CalculationsAndCharts!$A159+$A$11,IF($C$7,8,0),1,1) -> 3118.689941 | H159: 3017.521825 | I159: -0.5646719538 | J159: -937231215.5 | K159: 0.2330751646 | L159: 1028692053 | M159: 0.2456543041
A160: 128 | B160: =OFFSET(InputPriceData!B$15,CalculationsAndCharts!$A160+$A$11,0,1,1) -> 2013-08-06 | C160: =OFFSET(InputPriceData!G$15,CalculationsAndCharts!$A160+$A$11,IF($C$7,8,0),1,1) -> 1444200000 | D160: =OFFSET(InputPriceData!C$15,CalculationsAndCharts!$A160+$A$11,IF($C$7,8,0),1,1) -> 3136.149902 | E160: =OFFSET(InputPriceData!D$15,CalculationsAndCharts!$A160+$A$11,IF($C$7,8,0),1,1) -> 3141.050049 | F160: =OFFSET(InputPriceData!E$15,CalculationsAndCharts!$A160+$A$11,IF($C$7,8,0),1,1) -> 3111.5 | G160: =OFFSET(InputPriceData!F$15,CalculationsAndCharts!$A160+$A$11,IF($C$7,8,0),1,1) -> 3122.199951 | H160: 3013.392515 | I160: -0.6351732699 | J160: -917317236.3 | K160: 0.2902696002 | L160: -398322259.9 | M160: 0.2477889113
A161: 129 | B161: =OFFSET(InputPriceData!B$15,CalculationsAndCharts!$A161+$A$11,0,1,1) -> 2013-08-05 | C161: =OFFSET(InputPriceData!G$15,CalculationsAndCharts!$A161+$A$11,IF($C$7,8,0),1,1) -> 1471860000 | D161: =OFFSET(InputPriceData!C$15,CalculationsAndCharts!$A161+$A$11,IF($C$7,8,0),1,1) -> 3136.77002 | E161: =OFFSET(InputPriceData!D$15,CalculationsAndCharts!$A161+$A$11,IF($C$7,8,0),1,1) -> 3145.25 | F161: =OFFSET(InputPriceData!E$15,CalculationsAndCharts!$A161+$A$11,IF($C$7,8,0),1,1) -> 3133.52002 | G161: =OFFSET(InputPriceData!F$15,CalculationsAndCharts!$A161+$A$11,IF($C$7,8,0),1,1) -> 3143.189941 | H161: =G161*$D$17+H162*$F$17 -> 3008.951395 | I161: =((E161-F162)-(E162-F161))/((E161-F162)+(E162-F161)) -> 0.4625095146 | J161: =I161*C161 -> 680749254.1 | K161: 0.3388071359 | L161: 954873877.3 | M161: 0.2830633001
A162: 130 | B162: =OFFSET(InputPriceData!B$15,CalculationsAndCharts!$A162+$A$11,0,1,1) -> 2013-08-02 | C162: =OFFSET(InputPriceData!G$15,CalculationsAndCharts!$A162+$A$11,IF($C$7,8,0),1,1) -> 1683270000 | D162: =OFFSET(InputPriceData!C$15,CalculationsAndCharts!$A162+$A$11,IF($C$7,8,0),1,1) -> 3125.48999 | E162: =OFFSET(InputPriceData!D$15,CalculationsAndCharts!$A162+$A$11,IF($C$7,8,0),1,1) -> 3143.52002 | F162: =OFFSET(InputPriceData!E$15,CalculationsAndCharts!$A162+$A$11,IF($C$7,8,0),1,1) -> 3118.040039 | G162: =OFFSET(InputPriceData!F$15,CalculationsAndCharts!$A162+$A$11,IF($C$7,8,0),1,1) -> 3143.52002 | H162: 3003.47227 | I162: 0.5040861095 | J162: 848513025.6 | K162: 0.3487945704 | L162: =(((G162 - F162) - (E162 - G162))/ (E162 - F162)) * C162 -> 1683270000 | M162: =AVERAGE(OFFSET(L162,0,0,$A$18,1)) / AVERAGE(OFFSET(C162,0,0,$A$18,1)) -> 0.2508544237
A163: 131 | B163: =OFFSET(InputPriceData!B$15,CalculationsAndCharts!$A163+$A$11,0,1,1) -> 2013-08-01 | C163: =OFFSET(InputPriceData!G$15,CalculationsAndCharts!$A163+$A$11,IF($C$7,8,0),1,1) -> 1863290000 | D163: =OFFSET(InputPriceData!C$15,CalculationsAndCharts!$A163+$A$11,IF($C$7,8,0),1,1) -> 3113.219971 | E163: =OFFSET(InputPriceData!D$15,CalculationsAndCharts!$A163+$A$11,IF($C$7,8,0),1,1) -> 3128.669922 | F163: =OFFSET(InputPriceData!E$15,CalculationsAndCharts!$A163+$A$11,IF($C$7,8,0),1,1) -> 3111.280029 | G163: =OFFSET(InputPriceData!F$15,CalculationsAndCharts!$A163+$A$11,IF($C$7,8,0),1,1) -> 3126.300049 | H163: 2997.756036 | I163: 1.06361238 | J163: 1981818311 | K163: 0.3435001771 | L163: 1355436310 | M163: 0.239760389
A164: 132 | B164: =OFFSET(InputPriceData!B$15,CalculationsAndCharts!$A164+$A$11,0,1,1) -> 2013-07-31 | C164: =OFFSET(InputPriceData!G$15,CalculationsAndCharts!$A164+$A$11,IF($C$7,8,0),1,1) -> 1942380000 | D164: =OFFSET(InputPriceData!C$15,CalculationsAndCharts!$A164+$A$11,IF($C$7,8,0),1,1) -> 3094.820068 | E164: =OFFSET(InputPriceData!D$15,CalculationsAndCharts!$A164+$A$11,IF($C$7,8,0),1,1) -> 3110.01001 | F164: =OFFSET(InputPriceData!E$15,CalculationsAndCharts!$A164+$A$11,IF($C$7,8,0),1,1) -> 3087.469971 | G164: =OFFSET(InputPriceData!F$15,CalculationsAndCharts!$A164+$A$11,IF($C$7,8,0),1,1) -> 3090.189941 | H164: 2992.509341 | I164: 0.4768326636 | J164: 926190229 | K164: =IFERROR(SUM(OFFSET(J164,0,0,$A$16,1))/SUM(OFFSET(C164,0,0,$A$16,1)),SUM(OFFSET(J164,0,0,$A$16,1))/0.00001) -> 0.2968952212 | L164: -1473595068 | M164: 0.2147186277
A165: 133 | B165: =OFFSET(InputPriceData!B$15,CalculationsAndCharts!$A165+$A$11,0,1,1) -> 2013-07-30 | C165: =OFFSET(InputPriceData!G$15,CalculationsAndCharts!$A165+$A$11,IF($C$7,8,0),1,1) -> 1763580000 | D165: =OFFSET(InputPriceData!C$15,CalculationsAndCharts!$A165+$A$11,IF($C$7,8,0),1,1) -> 3080.199951 | E165: =OFFSET(InputPriceData!D$15,CalculationsAndCharts!$A165+$A$11,IF($C$7,8,0),1,1) -> 3099.379883 | F165: =OFFSET(InputPriceData!E$15,CalculationsAndCharts!$A165+$A$11,IF($C$7,8,0),1,1) -> 3076.389893 | G165: =OFFSET(InputPriceData!F$15,CalculationsAndCharts!$A165+$A$11,IF($C$7,8,0),1,1) -> 3085.330078 | H165: 2988.522378 | I165: 0.6798632691 | J165: 1198993264 | K165: 0.2566887201 | L165: -391962921.2 | M165: 0.2617211878
A166: 134 | B166: =OFFSET(InputPriceData!B$15,CalculationsAndCharts!$A166+$A$11,0,1,1) -> 2013-07-29 | C166: =OFFSET(InputPriceData!G$15,CalculationsAndCharts!$A166+$A$11,IF($C$7,8,0),1,1) -> 1545720000 | D166: =OFFSET(InputPriceData!C$15,CalculationsAndCharts!$A166+$A$11,IF($C$7,8,0),1,1) -> 3067.47998 | E166: =OFFSET(InputPriceData!D$15,CalculationsAndCharts!$A166+$A$11,IF($C$7,8,0),1,1) -> 3083.340088 | F166: =OFFSET(InputPriceData!E$15,CalculationsAndCharts!$A166+$A$11,IF($C$7,8,0),1,1) -> 3062.909912 | G166: =OFFSET(InputPriceData!F$15,CalculationsAndCharts!$A166+$A$11,IF($C$7,8,0),1,1) -> 3068.949951 | H166: 2984.571043 | I166: 0.4904361727 | J166: 758077000.9 | K166: 0.2650644278 | L166: -631757331.9 | M166: 0.2374300432
A167: 135 | B167: =OFFSET(InputPriceData!B$15,CalculationsAndCharts!$A167+$A$11,0,1,1) -> 2013-07-26 | C167: =OFFSET(InputPriceData!G$15,CalculationsAndCharts!$A167+$A$11,IF($C$7,8,0),1,1) -> 1796060000 | D167: =OFFSET(InputPriceData!C$15,CalculationsAndCharts!$A167+$A$11,IF($C$7,8,0),1,1) -> 3046.120117 | E167: =OFFSET(InputPriceData!D$15,CalculationsAndCharts!$A167+$A$11,IF($C$7,8,0),1,1) -> 3076.22998 | F167: =OFFSET(InputPriceData!E$15,CalculationsAndCharts!$A167+$A$11,IF($C$7,8,0),1,1) -> 3044.379883 | G167: =OFFSET(InputPriceData!F$15,CalculationsAndCharts!$A167+$A$11,IF($C$7,8,0),1,1) -> 3076.22998 | H167: 2981.127006 | I167: 0.2998522564 | J167: 538552643.7 | K167: 0.2064233529 | L167: 1796060000 | M167: 0.2418350822
A168: 136 | B168: =OFFSET(InputPriceData!B$15,CalculationsAndCharts!$A168+$A$11,0,1,1) -> 2013-07-25 | C168: =OFFSET(InputPriceData!G$15,CalculationsAndCharts!$A168+$A$11,IF($C$7,8,0),1,1) -> 2203970000 | D168: =OFFSET(InputPriceData!C$15,CalculationsAndCharts!$A168+$A$11,IF($C$7,8,0),1,1) -> 3054.169922 | E168: =OFFSET(InputPriceData!D$15,CalculationsAndCharts!$A168+$A$11,IF($C$7,8,0),1,1) -> 3063.76001 | F168: =OFFSET(InputPriceData!E$15,CalculationsAndCharts!$A168+$A$11,IF($C$7,8,0),1,1) -> 3040.25 | G168: =OFFSET(InputPriceData!F$15,CalculationsAndCharts!$A168+$A$11,IF($C$7,8,0),1,1) -> 3061.669922 | H168: 2977.245252 | I168: 0.1768992251 | J168: 389880585.1 | K168: 0.2570912977 | L168: 1812095114 | M168: 0.1485499357
A169: 137 | B169: =OFFSET(InputPriceData!B$15,CalculationsAndCharts!$A169+$A$11,0,1,1) -> 2013-07-24 | C169: =OFFSET(InputPriceData!G$15,CalculationsAndCharts!$A169+$A$11,IF($C$7,8,0),1,1) -> 1856660000 | D169: =OFFSET(InputPriceData!C$15,CalculationsAndCharts!$A169+$A$11,IF($C$7,8,0),1,1) -> 3060.47998 | E169: =OFFSET(InputPriceData!D$15,CalculationsAndCharts!$A169+$A$11,IF($C$7,8,0),1,1) -> 3060.629883 | F169: =OFFSET(InputPriceData!E$15,CalculationsAndCharts!$A169+$A$11,IF($C$7,8,0),1,1) -> 3034.620117 | G169: =OFFSET(InputPriceData!F$15,CalculationsAndCharts!$A169+$A$11,IF($C$7,8,0),1,1) -> 3041.159912 | H169: 2973.799347 | I169: 0.1209347784 | J169: 224534765.7 | K169: 0.3060259865 | L169: -922997176.2 | M169: 0.1102545634
A170: 138 | B170: =OFFSET(InputPriceData!B$15,CalculationsAndCharts!$A170+$A$11,0,1,1) -> 2013-07-23 | C170: =OFFSET(InputPriceData!G$15,CalculationsAndCharts!$A170+$A$11,IF($C$7,8,0),1,1) -> 1620350000 | D170: =OFFSET(InputPriceData!C$15,CalculationsAndCharts!$A170+$A$11,IF($C$7,8,0),1,1) -> 3059.149902 | E170: =OFFSET(InputPriceData!D$15,CalculationsAndCharts!$A170+$A$11,IF($C$7,8,0),1,1) -> 3059.370117 | F170: =OFFSET(InputPriceData!E$15,CalculationsAndCharts!$A170+$A$11,IF($C$7,8,0),1,1) -> 3029.070068 | G170: =OFFSET(InputPriceData!F$15,CalculationsAndCharts!$A170+$A$11,IF($C$7,8,0),1,1) -> 3031.399902 | H170: 2971.049937 | I170: -0.3794827056 | J170: -614894802 | K170: 0.326581408 | L170: -1371165814 | M170: 0.1386592228
A171: 139 | B171: =OFFSET(InputPriceData!B$15,CalculationsAndCharts!$A171+$A$11,0,1,1) -> 2013-07-22 | C171: =OFFSET(InputPriceData!G$15,CalculationsAndCharts!$A171+$A$11,IF($C$7,8,0),1,1) -> 1507010000 | D171: =OFFSET(InputPriceData!C$15,CalculationsAndCharts!$A171+$A$11,IF($C$7,8,0),1,1) -> 3061.5 | E171: =OFFSET(InputPriceData!D$15,CalculationsAndCharts!$A171+$A$11,IF($C$7,8,0),1,1) -> 3061.550049 | F171: =OFFSET(InputPriceData!E$15,CalculationsAndCharts!$A171+$A$11,IF($C$7,8,0),1,1) -> 3044.76001 | G171: =OFFSET(InputPriceData!F$15,CalculationsAndCharts!$A171+$A$11,IF($C$7,8,0),1,1) -> 3055.22998 | H171: 2968.586673 | I171: 0.6733236009 | J171: 1014705400 | K171: 0.3025522404 | L171: 372479319.8 | M171: 0.1792391513
A172: 140 | B172: =OFFSET(InputPriceData!B$15,CalculationsAndCharts!$A172+$A$11,0,1,1) -> 2013-07-19 | C172: =OFFSET(InputPriceData!G$15,CalculationsAndCharts!$A172+$A$11,IF($C$7,8,0),1,1) -> 1785460000 | D172: =OFFSET(InputPriceData!C$15,CalculationsAndCharts!$A172+$A$11,IF($C$7,8,0),1,1) -> 3043.060059 | E172: =OFFSET(InputPriceData!D$15,CalculationsAndCharts!$A172+$A$11,IF($C$7,8,0),1,1) -> 3049.75 | F172: =OFFSET(InputPriceData!E$15,CalculationsAndCharts!$A172+$A$11,IF($C$7,8,0),1,1) -> 3035.98999 | G172: =OFFSET(InputPriceData!F$15,CalculationsAndCharts!$A172+$A$11,IF($C$7,8,0),1,1) -> 3044.929932 | H172: 2965.050211 | I172: -2.338563531 | J172: -4175411641 | K172: 0.2050936152 | L172: 534583203.9 | M172: 0.1685061878
A173: 141 | B173: =OFFSET(InputPriceData!B$15,CalculationsAndCharts!$A173+$A$11,0,1,1) -> 2013-07-18 | C173: =OFFSET(InputPriceData!G$15,CalculationsAndCharts!$A173+$A$11,IF($C$7,8,0),1,1) -> 1719390000 | D173: =OFFSET(InputPriceData!C$15,CalculationsAndCharts!$A173+$A$11,IF($C$7,8,0),1,1) -> 3081.340088 | E173: =OFFSET(InputPriceData!D$15,CalculationsAndCharts!$A173+$A$11,IF($C$7,8,0),1,1) -> 3091.209961 | F173: =OFFSET(InputPriceData!E$15,CalculationsAndCharts!$A173+$A$11,IF($C$7,8,0),1,1) -> 3071.889893 | G173: =OFFSET(InputPriceData!F$15,CalculationsAndCharts!$A173+$A$11,IF($C$7,8,0),1,1) -> 3077.820068 | H173: 2961.789814 | I173: -0.1094890511 | J173: -188254379.6 | K173: 0.2381739351 | L173: -663877815.1 | M173: 0.1110298162
A174: 142 | B174: =OFFSET(InputPriceData!B$15,CalculationsAndCharts!$A174+$A$11,0,1,1) -> 2013-07-17 | C174: =OFFSET(InputPriceData!G$15,CalculationsAndCharts!$A174+$A$11,IF($C$7,8,0),1,1) -> 1564340000 | D174: =OFFSET(InputPriceData!C$15,CalculationsAndCharts!$A174+$A$11,IF($C$7,8,0),1,1) -> 3084.939941 | E174: =OFFSET(InputPriceData!D$15,CalculationsAndCharts!$A174+$A$11,IF($C$7,8,0),1,1) -> 3090.889893 | F174: =OFFSET(InputPriceData!E$15,CalculationsAndCharts!$A174+$A$11,IF($C$7,8,0),1,1) -> 3075.959961 | G174: =OFFSET(InputPriceData!F$15,CalculationsAndCharts!$A174+$A$11,IF($C$7,8,0),1,1) -> 3085.280029 | H174: 2957.053886 | I174: 0.4031006693 | J174: 630586501 | K174: 0.2324745146 | L174: 388750633.7 | M174: 0.0834481578
A175: 143 | B175: =OFFSET(InputPriceData!B$15,CalculationsAndCharts!$A175+$A$11,0,1,1) -> 2013-07-16 | C175: =OFFSET(InputPriceData!G$15,CalculationsAndCharts!$A175+$A$11,IF($C$7,8,0),1,1) -> 1590540000 | D175: =OFFSET(InputPriceData!C$15,CalculationsAndCharts!$A175+$A$11,IF($C$7,8,0),1,1) -> 3083.570068 | E175: =OFFSET(InputPriceData!D$15,CalculationsAndCharts!$A175+$A$11,IF($C$7,8,0),1,1) -> 3085.199951 | F175: =OFFSET(InputPriceData!E$15,CalculationsAndCharts!$A175+$A$11,IF($C$7,8,0),1,1) -> 3069.169922 | G175: =OFFSET(InputPriceData!F$15,CalculationsAndCharts!$A175+$A$11,IF($C$7,8,0),1,1) -> 3077.469971 | H175: 2951.820166 | I175: 0.1352014545 | J175: 215043321.5 | K175: 0.238782504 | L175: 56563687.27 | M175: 0.09933569868
A176: 144 | B176: =OFFSET(InputPriceData!B$15,CalculationsAndCharts!$A176+$A$11,0,1,1) -> 2013-07-15 | C176: =OFFSET(InputPriceData!G$15,CalculationsAndCharts!$A176+$A$11,IF($C$7,8,0),1,1) -> 1449130000 | D176: =OFFSET(InputPriceData!C$15,CalculationsAndCharts!$A176+$A$11,IF($C$7,8,0),1,1) -> 3077.02002 | E176: =OFFSET(InputPriceData!D$15,CalculationsAndCharts!$A176+$A$11,IF($C$7,8,0),1,1) -> 3082.25 | F176: =OFFSET(InputPriceData!E$15,CalculationsAndCharts!$A176+$A$11,IF($C$7,8,0),1,1) -> 3068.030029 | G176: =OFFSET(InputPriceData!F$15,CalculationsAndCharts!$A176+$A$11,IF($C$7,8,0),1,1) -> 3079.850098 | H176: 2946.691602 | I176: 0.4375936736 | J176: 634130120.2 | K176: 0.2631904573 | L176: 959991170.5 | M176: 0.09356697527
A177: 145 | B177: =OFFSET(InputPriceData!B$15,CalculationsAndCharts!$A177+$A$11,0,1,1) -> 2013-07-12 | C177: =OFFSET(InputPriceData!G$15,CalculationsAndCharts!$A177+$A$11,IF($C$7,8,0),1,1) -> 1615820000 | D177: =OFFSET(InputPriceData!C$15,CalculationsAndCharts!$A177+$A$11,IF($C$7,8,0),1,1) -> 3061.889893 | E177: =OFFSET(InputPriceData!D$15,CalculationsAndCharts!$A177+$A$11,IF($C$7,8,0),1,1) -> 3079.070068 | F177: =OFFSET(InputPriceData!E$15,CalculationsAndCharts!$A177+$A$11,IF($C$7,8,0),1,1) -> 3054.030029 | G177: =OFFSET(InputPriceData!F$15,CalculationsAndCharts!$A177+$A$11,IF($C$7,8,0),1,1) -> 3079.070068 | H177: 2941.256561 | I177: 0.7599463182 | J177: 1227936460 | K177: 0.2567132366 | L177: 1615820000 | M177: 0.03849312568
A178: 146 | B178: =OFFSET(InputPriceData!B$15,CalculationsAndCharts!$A178+$A$11,0,1,1) -> 2013-07-11 | C178: =OFFSET(InputPriceData!G$15,CalculationsAndCharts!$A178+$A$11,IF($C$7,8,0),1,1) -> 1744210000 | D178: =OFFSET(InputPriceData!C$15,CalculationsAndCharts!$A178+$A$11,IF($C$7,8,0),1,1) -> 3032.090088 | E178: =OFFSET(InputPriceData!D$15,CalculationsAndCharts!$A178+$A$11,IF($C$7,8,0),1,1) -> 3060.669922 | F178: =OFFSET(InputPriceData!E$15,CalculationsAndCharts!$A178+$A$11,IF($C$7,8,0),1,1) -> 3030.389893 | G178: =OFFSET(InputPriceData!F$15,CalculationsAndCharts!$A178+$A$11,IF($C$7,8,0),1,1) -> 3059.459961 | H178: 2935.63152 | I178: 1.976617866 | J178: 3447636648 | K178: 0.2153925121 | L178: 1604816073 | M178: 0.02774834693
A179: 147 | B179: =OFFSET(InputPriceData!B$15,CalculationsAndCharts!$A179+$A$11,0,1,1) -> 2013-07-10 | C179: =OFFSET(InputPriceData!G$15,CalculationsAndCharts!$A179+$A$11,IF($C$7,8,0),1,1) -> 1567340000 | D179: =OFFSET(InputPriceData!C$15,CalculationsAndCharts!$A179+$A$11,IF($C$7,8,0),1,1) -> 2981.219971 | E179: =OFFSET(InputPriceData!D$15,CalculationsAndCharts!$A179+$A$11,IF($C$7,8,0),1,1) -> 3004.280029 | F179: =OFFSET(InputPriceData!E$15,CalculationsAndCharts!$A179+$A$11,IF($C$7,8,0),1,1) -> 2981.090088 | G179: =OFFSET(InputPriceData!F$15,CalculationsAndCharts!$A179+$A$11,IF($C$7,8,0),1,1) -> 3000.659912 | H179: 2930.577298 | I179: 0.619299947 | J179: 970653578.9 | K179: 0.09919694892 | L179: 1077993850 | M179: -0.05663203701
A180: 148 | B180: =OFFSET(InputPriceData!B$15,CalculationsAndCharts!$A180+$A$11,0,1,1) -> 2013-07-09 | C180: =OFFSET(InputPriceData!G$15,CalculationsAndCharts!$A180+$A$11,IF($C$7,8,0),1,1) -> 1633520000 | D180: =OFFSET(InputPriceData!C$15,CalculationsAndCharts!$A180+$A$11,IF($C$7,8,0),1,1) -> 2981.100098 | E180: =OFFSET(InputPriceData!D$15,CalculationsAndCharts!$A180+$A$11,IF($C$7,8,0),1,1) -> 2989.929932 | F180: =OFFSET(InputPriceData!E$15,CalculationsAndCharts!$A180+$A$11,IF($C$7,8,0),1,1) -> 2966.679932 | G180: =OFFSET(InputPriceData!F$15,CalculationsAndCharts!$A180+$A$11,IF($C$7,8,0),1,1) -> 2984.320068 | H180: 2927.716783 | I180: 0.4800792832 | J180: 784219110.6 | K180: 0.03148920034 | L180: 845233974.9 | M180: -0.1120288694
A181: 149 | B181: =OFFSET(InputPriceData!B$15,CalculationsAndCharts!$A181+$A$11,0,1,1) -> 2013-07-08 | C181: =OFFSET(InputPriceData!G$15,CalculationsAndCharts!$A181+$A$11,IF($C$7,8,0),1,1) -> 1521720000 | D181: =OFFSET(InputPriceData!C$15,CalculationsAndCharts!$A181+$A$11,IF($C$7,8,0),1,1) -> 2976.610107 | E181: =OFFSET(InputPriceData!D$15,CalculationsAndCharts!$A181+$A$11,IF($C$7,8,0),1,1) -> 2978.820068 | F181: =OFFSET(InputPriceData!E$15,CalculationsAndCharts!$A181+$A$11,IF($C$7,8,0),1,1) -> 2955.370117 | G181: =OFFSET(InputPriceData!F$15,CalculationsAndCharts!$A181+$A$11,IF($C$7,8,0),1,1) -> 2966.129883 | H181: 2925.406445 | I181: 0.6814347463 | J181: 1036952882 | K181: 0.04166599334 | L181: -125269225.5 | M181: -0.1573262524
A182: 150 | B182: =OFFSET(InputPriceData!B$15,CalculationsAndCharts!$A182+$A$11,0,1,1) -> 2013-07-05 | C182: =OFFSET(InputPriceData!G$15,CalculationsAndCharts!$A182+$A$11,IF($C$7,8,0),1,1) -> 1254400000 | D182: =OFFSET(InputPriceData!C$15,CalculationsAndCharts!$A182+$A$11,IF($C$7,8,0),1,1) -> 2958.26001 | E182: =OFFSET(InputPriceData!D$15,CalculationsAndCharts!$A182+$A$11,IF($C$7,8,0),1,1) -> 2963.820068 | F182: =OFFSET(InputPriceData!E$15,CalculationsAndCharts!$A182+$A$11,IF($C$7,8,0),1,1) -> 2934.219971 | G182: =OFFSET(InputPriceData!F$15,CalculationsAndCharts!$A182+$A$11,IF($C$7,8,0),1,1) -> 2963.219971 | H182: 2923.744264 | I182: 0.4155976224 | J182: 521325657.5 | K182: 0.06456144922 | L182: 1203537891 | M182: -0.1123014745
A183: 151 | B183: =OFFSET(InputPriceData!B$15,CalculationsAndCharts!$A183+$A$11,0,1,1) -> 2013-07-03 | C183: =OFFSET(InputPriceData!G$15,CalculationsAndCharts!$A183+$A$11,IF($C$7,8,0),1,1) -> 935980000 | D183: =OFFSET(InputPriceData!C$15,CalculationsAndCharts!$A183+$A$11,IF($C$7,8,0),1,1) -> 2918.949951 | E183: =OFFSET(InputPriceData!D$15,CalculationsAndCharts!$A183+$A$11,IF($C$7,8,0),1,1) -> 2953.850098 | F183: =OFFSET(InputPriceData!E$15,CalculationsAndCharts!$A183+$A$11,IF($C$7,8,0),1,1) -> 2916.27002 | G183: =OFFSET(InputPriceData!F$15,CalculationsAndCharts!$A183+$A$11,IF($C$7,8,0),1,1) -> 2941.409912 | H183: 2922.133011 | I183: 0.1529373327 | J183: 143146284.7 | K183: 0.02014351933 | L183: 316302452.1 | M183: -0.09394590456
A184: 152 | B184: =OFFSET(InputPriceData!B$15,CalculationsAndCharts!$A184+$A$11,0,1,1) -> 2013-07-02 | C184: =OFFSET(InputPriceData!G$15,CalculationsAndCharts!$A184+$A$11,IF($C$7,8,0),1,1) -> 1685190000 | D184: =OFFSET(InputPriceData!C$15,CalculationsAndCharts!$A184+$A$11,IF($C$7,8,0),1,1) -> 2924.790039 | E184: =OFFSET(InputPriceData!D$15,CalculationsAndCharts!$A184+$A$11,IF($C$7,8,0),1,1) -> 2945.929932 | F184: =OFFSET(InputPriceData!E$15,CalculationsAndCharts!$A184+$A$11,IF($C$7,8,0),1,1) -> 2913.47998 | G184: =OFFSET(InputPriceData!F$15,CalculationsAndCharts!$A184+$A$11,IF($C$7,8,0),1,1) -> 2929.629883 | H184: 2921.346198 | I184: -0.267783638 | J184: -451266308.9 | K184: -0.01813948165 | L184: -7797377.874 | M184: -0.1404273663
A185: 153 | B185: =OFFSET(InputPriceData!B$15,CalculationsAndCharts!$A185+$A$11,0,1,1) -> 2013-07-01 | C185: =OFFSET(InputPriceData!G$15,CalculationsAndCharts!$A185+$A$11,IF($C$7,8,0),1,1) -> 1586750000 | D185: =OFFSET(InputPriceData!C$15,CalculationsAndCharts!$A185+$A$11,IF($C$7,8,0),1,1) -> 2933.47998 | E185: =OFFSET(InputPriceData!D$15,CalculationsAndCharts!$A185+$A$11,IF($C$7,8,0),1,1) -> 2951 | F185: =OFFSET(InputPriceData!E$15,CalculationsAndCharts!$A185+$A$11,IF($C$7,8,0),1,1) -> 2924.26001 | G185: =OFFSET(InputPriceData!F$15,CalculationsAndCharts!$A185+$A$11,IF($C$7,8,0),1,1) -> 2927.350098 | H185: 2921.008089 | I185: 0.8969044195 | J185: 1423163088 | K185: 0.01067283356 | L185: -1220018589 | M185: -0.1643133703
A186: 154 | B186: =OFFSET(InputPriceData!B$15,CalculationsAndCharts!$A186+$A$11,0,1,1) -> 2013-06-28 | C186: =OFFSET(InputPriceData!G$15,CalculationsAndCharts!$A186+$A$11,IF($C$7,8,0),1,1) -> 3630410000 | D186: =OFFSET(InputPriceData!C$15,CalculationsAndCharts!$A186+$A$11,IF($C$7,8,0),1,1) -> 2896.699951 | E186: =OFFSET(InputPriceData!D$15,CalculationsAndCharts!$A186+$A$11,IF($C$7,8,0),1,1) -> 2927.48999 | F186: =OFFSET(InputPriceData!E$15,CalculationsAndCharts!$A186+$A$11,IF($C$7,8,0),1,1) -> 2891.570068 | G186: =OFFSET(InputPriceData!F$15,CalculationsAndCharts!$A186+$A$11,IF($C$7,8,0),1,1) -> 2909.600098 | H186: 2920.749231 | I186: -0.192505213 | J186: -698872850.4 | K186: -0.06994199083 | L186: 14163683.22 | M186: -0.07505046669
A187: 155 | B187: =OFFSET(InputPriceData!B$15,CalculationsAndCharts!$A187+$A$11,0,1,1) -> 2013-06-27 | C187: =OFFSET(InputPriceData!G$15,CalculationsAndCharts!$A187+$A$11,IF($C$7,8,0),1,1) -> 1689800000 | D187: =OFFSET(InputPriceData!C$15,CalculationsAndCharts!$A187+$A$11,IF($C$7,8,0),1,1) -> 2909.879883 | E187: =OFFSET(InputPriceData!D$15,CalculationsAndCharts!$A187+$A$11,IF($C$7,8,0),1,1) -> 2924.340088 | F187: =OFFSET(InputPriceData!E$15,CalculationsAndCharts!$A187+$A$11,IF($C$7,8,0),1,1) -> 2905.300049 | G187: =OFFSET(InputPriceData!F$15,CalculationsAndCharts!$A187+$A$11,IF($C$7,8,0),1,1) -> 2906.840088 | H187: 2921.204298 | I187: 1.330060315 | J187: 2247535920 | K187: -0.06982522238 | L187: -1416443637 | M187: -0.1338016964
A188: 156 | B188: =OFFSET(InputPriceData!B$15,CalculationsAndCharts!$A188+$A$11,0,1,1) -> 2013-06-26 | C188: =OFFSET(InputPriceData!G$15,CalculationsAndCharts!$A188+$A$11,IF($C$7,8,0),1,1) -> 1671280000 | D188: =OFFSET(InputPriceData!C$15,CalculationsAndCharts!$A188+$A$11,IF($C$7,8,0),1,1) -> 2892.429932 | E188: =OFFSET(InputPriceData!D$15,CalculationsAndCharts!$A188+$A$11,IF($C$7,8,0),1,1) -> 2899.580078 | F188: =OFFSET(InputPriceData!E$15,CalculationsAndCharts!$A188+$A$11,IF($C$7,8,0),1,1) -> 2883.959961 | G188: =OFFSET(InputPriceData!F$15,CalculationsAndCharts!$A188+$A$11,IF($C$7,8,0),1,1) -> 2893.850098 | H188: 2921.790592 | I188: 1.135997531 | J188: 1898569953 | K188: -0.09834815307 | L188: 445117484.8 | M188: -0.09676173965
A189: 157 | B189: =OFFSET(InputPriceData!B$15,CalculationsAndCharts!$A189+$A$11,0,1,1) -> 2013-06-25 | C189: =OFFSET(InputPriceData!G$15,CalculationsAndCharts!$A189+$A$11,IF($C$7,8,0),1,1) -> 1657280000 | D189: =OFFSET(InputPriceData!C$15,CalculationsAndCharts!$A189+$A$11,IF($C$7,8,0),1,1) -> 2874.659912 | E189: =OFFSET(InputPriceData!D$15,CalculationsAndCharts!$A189+$A$11,IF($C$7,8,0),1,1) -> 2880.929932 | F189: =OFFSET(InputPriceData!E$15,CalculationsAndCharts!$A189+$A$11,IF($C$7,8,0),1,1) -> 2851.98999 | G189: =OFFSET(InputPriceData!F$15,CalculationsAndCharts!$A189+$A$11,IF($C$7,8,0),1,1) -> 2866.5 | H189: 2922.931021 | I189: 0.5133021567 | J189: 850685398.2 | K189: -0.1929506954 | L189: 4585761.362 | M189: -0.1035433066
A190: 158 | B190: =OFFSET(InputPriceData!B$15,CalculationsAndCharts!$A190+$A$11,0,1,1) -> 2013-06-24 | C190: =OFFSET(InputPriceData!G$15,CalculationsAndCharts!$A190+$A$11,IF($C$7,8,0),1,1) -> 2030960000 | D190: =OFFSET(InputPriceData!C$15,CalculationsAndCharts!$A190+$A$11,IF($C$7,8,0),1,1) -> 2852.649902 | E190: =OFFSET(InputPriceData!D$15,CalculationsAndCharts!$A190+$A$11,IF($C$7,8,0),1,1) -> 2869.919922 | F190: =OFFSET(InputPriceData!E$15,CalculationsAndCharts!$A190+$A$11,IF($C$7,8,0),1,1) -> 2825.179932 | G190: =OFFSET(InputPriceData!F$15,CalculationsAndCharts!$A190+$A$11,IF($C$7,8,0),1,1) -> 2848.199951 | H190: 2925.234328 | I190: -0.6371159331 | J190: -1293956976 | K190: -0.1501651212 | L190: 59015334.74 | M190: -0.1247510609
A191: 159 | B191: =OFFSET(InputPriceData!B$15,CalculationsAndCharts!$A191+$A$11,0,1,1) -> 2013-06-21 | C191: =OFFSET(InputPriceData!G$15,CalculationsAndCharts!$A191+$A$11,IF($C$7,8,0),1,1) -> 2921900000 | D191: =OFFSET(InputPriceData!C$15,CalculationsAndCharts!$A191+$A$11,IF($C$7,8,0),1,1) -> 2887.070068 | E191: =OFFSET(InputPriceData!D$15,CalculationsAndCharts!$A191+$A$11,IF($C$7,8,0),1,1) -> 2898.399902 | F191: =OFFSET(InputPriceData!E$15,CalculationsAndCharts!$A191+$A$11,IF($C$7,8,0),1,1) -> 2853.689941 | G191: =OFFSET(InputPriceData!F$15,CalculationsAndCharts!$A191+$A$11,IF($C$7,8,0),1,1) -> 2877.939941 | H191: 2928.378588 | I191: -0.6821455991 | J191: -1993161226 | K191: -0.1245509893 | L191: 247687868.8 | M191: -0.08843686268
A192: 160 | B192: =OFFSET(InputPriceData!B$15,CalculationsAndCharts!$A192+$A$11,0,1,1) -> 2013-06-20 | C192: =OFFSET(InputPriceData!G$15,CalculationsAndCharts!$A192+$A$11,IF($C$7,8,0),1,1) -> 2041500000 | D192: =OFFSET(InputPriceData!C$15,CalculationsAndCharts!$A192+$A$11,IF($C$7,8,0),1,1) -> 2927.629883 | E192: =OFFSET(InputPriceData!D$15,CalculationsAndCharts!$A192+$A$11,IF($C$7,8,0),1,1) -> 2938.100098 | F192: =OFFSET(InputPriceData!E$15,CalculationsAndCharts!$A192+$A$11,IF($C$7,8,0),1,1) -> 2882.449951 | G192: =OFFSET(InputPriceData!F$15,CalculationsAndCharts!$A192+$A$11,IF($C$7,8,0),1,1) -> 2890.330078 | H192: 2930.437308 | I192: -1.444119037 | J192: -2948169014 | K192: -0.1056213339 | L192: -1463342344 | M192: -0.07828399647
A193: 161 | B193: =OFFSET(InputPriceData!B$15,CalculationsAndCharts!$A193+$A$11,0,1,1) -> 2013-06-19 | C193: =OFFSET(InputPriceData!G$15,CalculationsAndCharts!$A193+$A$11,IF($C$7,8,0),1,1) -> 1649200000 | D193: =OFFSET(InputPriceData!C$15,CalculationsAndCharts!$A193+$A$11,IF($C$7,8,0),1,1) -> 2998.090088 | E193: =OFFSET(InputPriceData!D$15,CalculationsAndCharts!$A193+$A$11,IF($C$7,8,0),1,1) -> 3000.219971 | F193: =OFFSET(InputPriceData!E$15,CalculationsAndCharts!$A193+$A$11,IF($C$7,8,0),1,1) -> 2959.5 | G193: =OFFSET(InputPriceData!F$15,CalculationsAndCharts!$A193+$A$11,IF($C$7,8,0),1,1) -> 2959.5 | H193: 2932.074338 | I193: -0.2467660142 | J193: -406966510.6 | K193: -0.02657638865 | L193: -1649200000 | M193: -0.07244832333
A194: 162 | B194: =OFFSET(InputPriceData!B$15,CalculationsAndCharts!$A194+$A$11,0,1,1) -> 2013-06-18 | C194: =OFFSET(InputPriceData!G$15,CalculationsAndCharts!$A194+$A$11,IF($C$7,8,0),1,1) -> 1675090000 | D194: =OFFSET(InputPriceData!C$15,CalculationsAndCharts!$A194+$A$11,IF($C$7,8,0),1,1) -> 2974.919922 | E194: =OFFSET(InputPriceData!D$15,CalculationsAndCharts!$A194+$A$11,IF($C$7,8,0),1,1) -> 3001.889893 | F194: =OFFSET(InputPriceData!E$15,CalculationsAndCharts!$A194+$A$11,IF($C$7,8,0),1,1) -> 2974.610107 | G194: =OFFSET(InputPriceData!F$15,CalculationsAndCharts!$A194+$A$11,IF($C$7,8,0),1,1) -> 2996.090088 | H194: 2930.954923 | I194: 0.525700004 | J194: 880594819.6 | K194: -0.01096851503 | L194: 962826688.4 | M194: -0.01516225133
A195: 163 | B195: =OFFSET(InputPriceData!B$15,CalculationsAndCharts!$A195+$A$11,0,1,1) -> 2013-06-17 | C195: =OFFSET(InputPriceData!G$15,CalculationsAndCharts!$A195+$A$11,IF($C$7,8,0),1,1) -> 1581830000 | D195: =OFFSET(InputPriceData!C$15,CalculationsAndCharts!$A195+$A$11,IF($C$7,8,0),1,1) -> 2967.330078 | E195: =OFFSET(InputPriceData!D$15,CalculationsAndCharts!$A195+$A$11,IF($C$7,8,0),1,1) -> 2988.590088 | F195: =OFFSET(InputPriceData!E$15,CalculationsAndCharts!$A195+$A$11,IF($C$7,8,0),1,1) -> 2956.919922 | G195: =OFFSET(InputPriceData!F$15,CalculationsAndCharts!$A195+$A$11,IF($C$7,8,0),1,1) -> 2971.26001 | H195: 2928.296345 | I195: 0.6830714914 | J195: 1080502977 | K195: -0.02434431786 | L195: -149341051.2 | M195: -0.04970229352
A196: 164 | B196: =OFFSET(InputPriceData!B$15,CalculationsAndCharts!$A196+$A$11,0,1,1) -> 2013-06-14 | C196: =OFFSET(InputPriceData!G$15,CalculationsAndCharts!$A196+$A$11,IF($C$7,8,0),1,1) -> 1458030000 | D196: =OFFSET(InputPriceData!C$15,CalculationsAndCharts!$A196+$A$11,IF($C$7,8,0),1,1) -> 2958.870117 | E196: =OFFSET(InputPriceData!D$15,CalculationsAndCharts!$A196+$A$11,IF($C$7,8,0),1,1) -> 2966.129883 | F196: =OFFSET(InputPriceData!E$15,CalculationsAndCharts!$A196+$A$11,IF($C$7,8,0),1,1) -> 2939.679932 | G196: =OFFSET(InputPriceData!F$15,CalculationsAndCharts!$A196+$A$11,IF($C$7,8,0),1,1) -> 2943.860107 | H196: 2926.542726 | I196: 0.2785902939 | J196: 406193006.2 | K196: -0.03461326439 | L196: -997173149.6 | M196: 0.007116929473
A197: 165 | B197: =OFFSET(InputPriceData!B$15,CalculationsAndCharts!$A197+$A$11,0,1,1) -> 2013-06-13 | C197: =OFFSET(InputPriceData!G$15,CalculationsAndCharts!$A197+$A$11,IF($C$7,8,0),1,1) -> 1584740000 | D197: =OFFSET(InputPriceData!C$15,CalculationsAndCharts!$A197+$A$11,IF($C$7,8,0),1,1) -> 2924.889893 | E197: =OFFSET(InputPriceData!D$15,CalculationsAndCharts!$A197+$A$11,IF($C$7,8,0),1,1) -> 2968.97998 | F197: =OFFSET(InputPriceData!E$15,CalculationsAndCharts!$A197+$A$11,IF($C$7,8,0),1,1) -> 2914.199951 | G197: =OFFSET(InputPriceData!F$15,CalculationsAndCharts!$A197+$A$11,IF($C$7,8,0),1,1) -> 2962.899902 | H197: 2925.835894 | I197: -0.1563669856 | J197: -247801016.7 | K197: -0.008620504216 | L197: 1232956951 | M197: -0.01019030301
A198: 166 | B198: =OFFSET(InputPriceData!B$15,CalculationsAndCharts!$A198+$A$11,0,1,1) -> 2013-06-12 | C198: =OFFSET(InputPriceData!G$15,CalculationsAndCharts!$A198+$A$11,IF($C$7,8,0),1,1) -> 1630200000 | D198: =OFFSET(InputPriceData!C$15,CalculationsAndCharts!$A198+$A$11,IF($C$7,8,0),1,1) -> 2977.679932 | E198: =OFFSET(InputPriceData!D$15,CalculationsAndCharts!$A198+$A$11,IF($C$7,8,0),1,1) -> 2978.76001 | F198: =OFFSET(InputPriceData!E$15,CalculationsAndCharts!$A198+$A$11,IF($C$7,8,0),1,1) -> 2921.879883 | G198: =OFFSET(InputPriceData!F$15,CalculationsAndCharts!$A198+$A$11,IF($C$7,8,0),1,1) -> 2926.139893 | H198: 2924.323078 | I198: -0.4239176176 | J198: -691070500.2 | K198: -0.001194656525 | L198: -1386013896 | M198: -0.002043169464
A199: 167 | B199: =OFFSET(InputPriceData!B$15,CalculationsAndCharts!$A199+$A$11,0,1,1) -> 2013-06-11 | C199: =OFFSET(InputPriceData!G$15,CalculationsAndCharts!$A199+$A$11,IF($C$7,8,0),1,1) -> 1560370000 | D199: =OFFSET(InputPriceData!C$15,CalculationsAndCharts!$A199+$A$11,IF($C$7,8,0),1,1) -> 2959.439941 | E199: =OFFSET(InputPriceData!D$15,CalculationsAndCharts!$A199+$A$11,IF($C$7,8,0),1,1) -> 2987.850098 | F199: =OFFSET(InputPriceData!E$15,CalculationsAndCharts!$A199+$A$11,IF($C$7,8,0),1,1) -> 2952.070068 | G199: =OFFSET(InputPriceData!F$15,CalculationsAndCharts!$A199+$A$11,IF($C$7,8,0),1,1) -> 2959.840088 | H199: 2924.248922 | I199: -0.9144640563 | J199: -1426902280 | K199: 0.04940895969 | L199: -882667599.7 | M199: 0.04786482226
A200: 168 | B200: =OFFSET(InputPriceData!B$15,CalculationsAndCharts!$A200+$A$11,0,1,1) -> 2013-06-10 | C200: =OFFSET(InputPriceData!G$15,CalculationsAndCharts!$A200+$A$11,IF($C$7,8,0),1,1) -> 1556520000 | D200: =OFFSET(InputPriceData!C$15,CalculationsAndCharts!$A200+$A$11,IF($C$7,8,0),1,1) -> 2995.030029 | E200: =OFFSET(InputPriceData!D$15,CalculationsAndCharts!$A200+$A$11,IF($C$7,8,0),1,1) -> 3004.669922 | F200: =OFFSET(InputPriceData!E$15,CalculationsAndCharts!$A200+$A$11,IF($C$7,8,0),1,1) -> 2985.5 | G200: =OFFSET(InputPriceData!F$15,CalculationsAndCharts!$A200+$A$11,IF($C$7,8,0),1,1) -> 2990.48999 | H200: 2922.796221 | I200: 0.7332195076 | J200: 1141270828 | K200: 0.1108421198 | L200: -746186057.6 | M200: 0.0791610893
A201: 169 | B201: =OFFSET(InputPriceData!B$15,CalculationsAndCharts!$A201+$A$11,0,1,1) -> 2013-06-07 | C201: =OFFSET(InputPriceData!G$15,CalculationsAndCharts!$A201+$A$11,IF($C$7,8,0),1,1) -> 1646810000 | D201: =OFFSET(InputPriceData!C$15,CalculationsAndCharts!$A201+$A$11,IF($C$7,8,0),1,1) -> 2960.899902 | E201: =OFFSET(InputPriceData!D$15,CalculationsAndCharts!$A201+$A$11,IF($C$7,8,0),1,1) -> 2993.129883 | F201: =OFFSET(InputPriceData!E$15,CalculationsAndCharts!$A201+$A$11,IF($C$7,8,0),1,1) -> 2955.100098 | G201: =OFFSET(InputPriceData!F$15,CalculationsAndCharts!$A201+$A$11,IF($C$7,8,0),1,1) -> 2990.870117 | H201: 2920.03321 | I201: 1.125672358 | J201: 1853768496 | K201: 0.08718258857 | L201: 1451099967 | M201: 0.1462478719
A202: 170 | B202: =OFFSET(InputPriceData!B$15,CalculationsAndCharts!$A202+$A$11,0,1,1) -> 2013-06-06 | C202: =OFFSET(InputPriceData!G$15,CalculationsAndCharts!$A202+$A$11,IF($C$7,8,0),1,1) -> 1802700000 | D202: =OFFSET(InputPriceData!C$15,CalculationsAndCharts!$A202+$A$11,IF($C$7,8,0),1,1) -> 2940.870117 | E202: =OFFSET(InputPriceData!D$15,CalculationsAndCharts!$A202+$A$11,IF($C$7,8,0),1,1) -> 2950.300049 | F202: =OFFSET(InputPriceData!E$15,CalculationsAndCharts!$A202+$A$11,IF($C$7,8,0),1,1) -> 2911.939941 | G202: =OFFSET(InputPriceData!F$15,CalculationsAndCharts!$A202+$A$11,IF($C$7,8,0),1,1) -> 2950.300049 | H202: 2917.141908 | I202: -0.578114545 | J202: -1042167090 | K202: 0.05646759824 | L202: 1802700000 | M202: 0.07741703829
A203: 171 | B203: =OFFSET(InputPriceData!B$15,CalculationsAndCharts!$A203+$A$11,0,1,1) -> 2013-06-05 | C203: =OFFSET(InputPriceData!G$15,CalculationsAndCharts!$A203+$A$11,IF($C$7,8,0),1,1) -> 1813890000 | D203: =OFFSET(InputPriceData!C$15,CalculationsAndCharts!$A203+$A$11,IF($C$7,8,0),1,1) -> 2961.669922 | E203: =OFFSET(InputPriceData!D$15,CalculationsAndCharts!$A203+$A$11,IF($C$7,8,0),1,1) -> 2975.830078 | F203: =OFFSET(InputPriceData!E$15,CalculationsAndCharts!$A203+$A$11,IF($C$7,8,0),1,1) -> 2933.219971 | G203: =OFFSET(InputPriceData!F$15,CalculationsAndCharts!$A203+$A$11,IF($C$7,8,0),1,1) -> 2937.139893 | H203: 2915.788514 | I203: -0.689586537 | J203: -1250834124 | K203: 0.09946906688 | L203: -1480151936 | M203: 0.07022925477
A204: 172 | B204: =OFFSET(InputPriceData!B$15,CalculationsAndCharts!$A204+$A$11,0,1,1) -> 2013-06-04 | C204: =OFFSET(InputPriceData!G$15,CalculationsAndCharts!$A204+$A$11,IF($C$7,8,0),1,1) -> 1871640000 | D204: =OFFSET(InputPriceData!C$15,CalculationsAndCharts!$A204+$A$11,IF($C$7,8,0),1,1) -> 2993.060059 | E204: =OFFSET(InputPriceData!D$15,CalculationsAndCharts!$A204+$A$11,IF($C$7,8,0),1,1) -> 3007.300049 | F204: =OFFSET(InputPriceData!E$15,CalculationsAndCharts!$A204+$A$11,IF($C$7,8,0),1,1) -> 2962.219971 | G204: =OFFSET(InputPriceData!F$15,CalculationsAndCharts!$A204+$A$11,IF($C$7,8,0),1,1) -> 2973.689941 | H204: 2914.917029 | I204: 0.3276067607 | J204: 613161917.5 | K204: 0.129715604 | L204: -919216863.1 | M204: 0.1155782256
A205: 173 | B205: =OFFSET(InputPriceData!B$15,CalculationsAndCharts!$A205+$A$11,0,1,1) -> 2013-06-03 | C205: =OFFSET(InputPriceData!G$15,CalculationsAndCharts!$A205+$A$11,IF($C$7,8,0),1,1) -> 2054100000 | D205: =OFFSET(InputPriceData!C$15,CalculationsAndCharts!$A205+$A$11,IF($C$7,8,0),1,1) -> 2984.590088 | E205: =OFFSET(InputPriceData!D$15,CalculationsAndCharts!$A205+$A$11,IF($C$7,8,0),1,1) -> 2990.800049 | F205: =OFFSET(InputPriceData!E$15,CalculationsAndCharts!$A205+$A$11,IF($C$7,8,0),1,1) -> 2950.870117 | G205: =OFFSET(InputPriceData!F$15,CalculationsAndCharts!$A205+$A$11,IF($C$7,8,0),1,1) -> 2990.790039 | H205: 2912.518135 | I205: -0.7775581748 | J205: -1597182247 | K205: 0.1411703786 | L205: 2053070119 | M205: 0.154919691
... 668 more rows

Sheet Follow
A1: Stocks and Indexes I wish to follow
A3: To ease following a stock, enter a Yahoo Finance acceptable symbol in column "A" anywhere below cell "A9".
A4: Thereafter you may doubleclick the cell containing a symbol of interest to initiate data retrieval and charting for that symbol.
A7: Symbol
A8: To | B8: Description | C8: Last Trade as of most recent check
A9: Follow | C9: Date | D9: Time | E9: Open | F9: High | G9: Low | H9: Close | I9: Volume | J9: Change
A10: A | B10: Agilent Technolog (A) -NYSE (Daily) | C10: 2015-02-02 | D10: 16:03:00 | E10: 37.9 | F10: 38.76 | G10: 37.71 | H10: 38.69 | I10: 2508493 | J10: 0.92
A11: AAL | B11: American Airlines (AAL) -NasdaqNM (Daily) | C11: 2015-02-19 | D11: 16:00:00 | E11: 50.73 | F11: 50.8 | G11: 49.59 | H11: 49.78 | I11: 11462722 | J11: 0.47
A12: ADM | B12: Archer-Daniels-Mi (ADM) -NYSE (Daily) | C12: 2015-02-02 | D12: 16:00:00 | E12: 46.79 | F12: 48.195 | G12: 46.72 | H12: 48.17 | I12: 6479474 | J12: 1.54
A13: AMC | B13: AMC Entertainment (AMC) -NYSE (Daily) | C13: 2015-02-26 | D13: 16:01:00 | E13: 33.01 | F13: 33.81 | G13: 32.96 | H13: 33.63 | I13: 293778 | J13: 0.65
A14: BSX | B14: Boston Scientific Corporation C (BSX) -NYQ (Daily) | C14: 2015-03-13 | D14: 16:01:00 | E14: 16.84 | F14: 16.91 | G14: 16.44 | H14: 16.61 | I14: 7262460 | J14: -0.28
A15: CASY | B15: Caseys General Stores, Inc. (CASY) -NMS (Daily) | C15: 2015-03-13 | D15: 16:00:00 | E15: 89.6 | F15: 89.6 | G15: 87.55 | H15: 88 | I15: 283264 | J15: -1.26
A16: CSCO | B16: Cisco Systems, In (CSCO) -NasdaqNM (Daily) | C16: 2015-02-19 | D16: 16:00:00 | E16: 29.32 | F16: 29.39 | G16: 29.13 | H16: 29.31 | I16: 21469012 | J16: -0.18
A17: CVS | B17: CVS Health Corpor (CVS) -NYSE (Daily) | C17: 2015-02-02 | D17: 16:01:00 | E17: 98.34 | F17: 99.22 | G17: 97.06 | H17: 99.11 | I17: 4416094 | J17: 0.95
A18: DIS | B18: Walt Disney Compa (DIS) -NYSE (Daily) | C18: 2015-02-26 | D18: 16:00:00 | E18: 105.5 | F18: 105.71 | G18: 104.14 | H18: 104.56 | I18: 5044969 | J18: -1.01
A19: EMC | B19: EMC Corporation C (EMC) -NYSE (Daily) | C19: 2015-02-19 | D19: 16:00:00 | E19: 28.26 | F19: 28.83 | G19: 28.19 | H19: 28.72 | I19: 11049079 | J19: 0.52
A20: F | B20: Ford Motor Company Common Stock (F) -NYQ (Daily) | C20: 2015-08-10 | D20: 16:00:00 | E20: 14.86 | F20: 15 | G20: 14.81 | H20: 14.99 | I20: 16804929 | J20: 0.19
A21: GSK | B21: GlaxoSmithKline P (GSK) -NYSE (Daily) | C21: 2015-02-02 | D21: 16:01:00 | E21: 44.11 | F21: 44.12 | G21: 43.71 | H21: 43.96 | I21: 3654466 | J21: -0.04
A22: HSY | B22: The Hershey Compa (HSY) -NYSE (Daily) | C22: 2015-02-19 | D22: 16:02:00 | E22: 106.97 | F22: 107.31 | G22: 105.42 | H22: 105.95 | I22: 1448321 | J22: -1
A23: HTLD | B23: Heartland Express (HTLD) -NasdaqNM (Daily) | C23: 2015-02-02 | D23: 16:00:00 | E23: 25.68 | F23: 25.81 | G23: 25.36 | H23: 25.62 | I23: 542510 | J23: -0.07
A24: IBM | B24: International Bus (IBM) -NYSE (Daily) | C24: 2015-02-02 | D24: 16:01:00 | E24: 154 | F24: 154.66 | G24: 151.51 | H24: 154.66 | I24: 4712247 | J24: 1.35
A25: INTC | B25: Intel Corporation (INTC) -NasdaqNM (Daily) | C25: 2015-02-19 | D25: 16:00:00 | E25: 34.25 | F25: 34.42 | G25: 34.05 | H25: 34.21 | I25: 11017541 | J25: -0.055
A26: JNJ | B26: Johnson & Johnson (JNJ) -NYSE (Daily) | C26: 2015-02-19 | D26: 16:00:00 | E26: 99.98 | F26: 100.84 | G26: 99.61 | H26: 100.7 | I26: 10022266 | J26: 0.74
A27: KO | B27: Coca-Cola Company (The) Common (KO) -NYQ (Daily) | C27: 2015-08-10 | D27: 16:00:00 | E27: 41.89 | F27: 41.99 | G27: 41.58 | H27: 41.68 | I27: 9501875 | J27: -0.09
A28: LHO | B28: LaSalle Hotel Pro (LHO) -NYSE (Daily) | C28: 2015-02-02 | D28: 16:06:00 | E28: 40.51 | F28: 40.74 | G28: 39.46 | H28: 40.26 | I28: 1034675 | J28: -0.2
A29: LINE | B29: Linn Energy, LLC (LINE) -NasdaqNM (Daily) | C29: 2015-02-02 | D29: 16:00:00 | E29: 10.4 | F29: 10.78 | G29: 10.25 | H29: 10.77 | I29: 3766537 | J29: 0.51
A30: LO | B30: Lorillard, Inc Co (LO) -NYSE (Daily) | C30: 2015-02-02 | D30: 16:03:00 | E30: 65.71 | F30: 66.29 | G30: 65.43 | H30: 66.29 | I30: 1563618 | J30: 0.68
A31: MCD | B31: McDonald's Corpor (MCD) -NYSE (Daily) | C31: 2015-03-03 | D31: 13:36:00 | E31: 99.89 | F31: 100.44 | G31: 99.57 | H31: 99.93 | I31: 5222757 | J31: -0.07
A32: MDT | B32: Medtronic plc. Or (MDT) -NYSE (Daily) | C32: 2015-02-19 | D32: 16:01:00 | E32: 78.59 | F32: 78.59 | G32: 77.85 | H32: 78.13 | I32: 6900528 | J32: -0.37
A33: MGM | B33: MGM Resorts Inter (MGM) -NYSE (Daily) | C33: 2015-02-02 | D33: 16:00:00 | E33: 19.44 | F33: 19.75 | G33: 19.12 | H33: 19.74 | I33: 7570281 | J33: 0.26
A34: MO | B34: Altria Group, Inc (MO) -NYSE (Daily) | C34: 2015-02-02 | D34: 16:01:00 | E34: 53.25 | F34: 53.84 | G34: 52.98 | H34: 53.8 | I34: 9183582 | J34: 0.7
A35: MSFT | B35: Microsoft Corpora (MSFT) -NasdaqNM (Daily) | C35: 2015-02-20 | D35: 16:00:00 | E35: 43.51 | F35: 43.88 | G35: 43.29 | H35: 43.855 | I35: 29721132 | J35: 0.355
A36: NVS | B36: Novartis AG Commo (NVS) -NYSE (Daily) | C36: 2015-02-19 | D36: 16:05:00 | E36: 102.32 | F36: 102.7 | G36: 102.001 | H36: 102.25 | I36: 931036 | J36: 0.08
A37: PRU | B37: Prudential Financ (PRU) -NYSE (Daily) | C37: 2015-02-23 | D37: 12:22:00 | E37: 80.25 | F37: 80.4499 | G37: 79.8 | H37: 80.12 | I37: 1604052 | J37: -0.69
A38: PSEC | B38: Prospect Capital Corporation (PSEC) -NMS (Daily) | C38: 2015-08-10 | D38: 16:00:00 | E38: 7.14 | F38: 7.28 | G38: 7.14 | H38: 7.23 | I38: 2132354 | J38: 0.09
A39: RAI | B39: Reynolds American (RAI) -NYSE (Daily) | C39: 2015-02-02 | D39: 16:03:00 | E39: 68.12 | F39: 69.06 | G39: 67.4346 | H39: 69.05 | I39: 1822013 | J39: 1.1
A40: RPM | B40: RPM International (RPM) -NYSE (Daily) | C40: 2015-02-19 | D40: 16:03:00 | E40: 50.49 | F40: 50.82 | G40: 50.48 | H40: 50.71 | I40: 500176 | J40: 0.09 | K40: Owns Rust-Oleum
A41: RSP | B41: Guggenheim S&P 50 (RSP) -PCX (Daily) | C41: 2015-02-02 | D41: 16:00:00 | E41: 78.04 | F41: 78.81 | G41: 77.16 | H41: 78.55 | I41: 4156915 | J41: 0.838
A42: SONC | B42: Sonic Corp. (SONC) -NasdaqNM (Daily) | C42: 2015-03-04 | D42: 11:53:00 | E42: 33.65 | F42: 34.05 | G42: 33.44 | H42: 33.77 | I42: 174036 | J42: -0.09
A43: SWKS | B43: Skyworks Solution (SWKS) -NasdaqNM (Daily) | C43: 2015-02-02 | D43: 16:00:00 | E43: 83.07 | F43: 83.73 | G43: 80.15 | H43: 82.02 | I43: 4119001 | J43: -1.03
A44: TOL | B44: Toll Brothers Inc (TOL) -NYSE (Daily) | C44: 2015-02-23 | D44: 12:23:00 | E44: 37.56 | F44: 37.77 | G44: 37.1 | H44: 37.36 | I44: 1521944 | J44: -0.29
A45: UNP | B45: Union Pacific Cor (UNP) -NYSE (Daily) | C45: 2015-02-02 | D45: 16:10:00 | E45: 118.13 | F45: 119.06 | G45: 116.7 | H45: 119.01 | I45: 3259594 | J45: 1.8
A46: VZ | B46: Verizon Communica (VZ) -NYSE (Daily) | C46: 2015-02-23 | D46: 12:22:00 | E46: 48.94 | F46: 49 | G46: 48.54 | H46: 48.825 | I46: 4204644 | J46: -0.145
A47: WBA | B47: (WBA) -NasdaqNM (Daily) | C47: 2015-02-02 | D47: 16:00:00 | E47: 73.06 | F47: 74.98 | G47: 73 | H47: 74.89 | I47: 4247395 | J47: 1.14
A48: WMT | B48: Wal-Mart Stores, (WMT) -NYSE (Daily) | C48: 2015-02-19 | D48: 16:00:00 | E48: 84.5 | F48: 84.8 | G48: 83.39 | H48: 83.52 | I48: 18610944 | J48: -2.77
A50: ^NDX | B50: NASDAQ-100 (^NDX) -NIM (Daily) | C50: 2015-08-10 | D50: 17:15:00 | E50: 4558.68 | F50: 4583.63 | G50: 4554.63 | H50: 4573.11 | I50: 0 | J50: 53.03
A51: ^DJI | B51: Dow Jones Industrial Average (^DJI) -DJI | C51: 2015-08-10 | D51: 16:29:00 | E51: 17375.18 | F51: 17629.13 | G51: 17375.18 | H51: 17615.17 | I51: 0 | J51: 241.79
A52: SPY | B52: SPDR S&P 500 (SPY) -PCX (Daily) | C52: 2015-08-10 | D52: 15:38:00 | E52: 209.28 | F52: 210.67 | G52: 209.28 | H52: 210.41 | I52: 38534278 | J52: 2.46
A53: ^GSPC | B53: S&P 500 (^GSPC) -SNP (Daily) | C53: 2015-08-10 | D53: 09:36:00 | E53: 2080.98 | F53: 2096.92 | G53: 2080.98 | H53: 2096.77 | I53: 32036138 | J53: 19.2
A54: ^VIX | B54: VOLATILITY S&P 500 (^VIX) -WCB (Daily) | C54: 2015-08-07 | D54: 16:14:00 | E54: 13.57 | F54: 14.58 | G54: 13.29 | H54: 13.39 | I54: 0 | J54: -0.38
A56: ACAD | B56: ACADIA Pharmaceut (ACAD) -NasdaqNM (Daily) | C56: 2014-07-21 | D56: 16:00:00 | E56: 20.13 | F56: 20.55 | G56: 19.8101 | H56: 20.31 | I56: 691016
A57: CLDX | B57: Celldex Therapeut (CLDX) -NasdaqNM (Daily) | C57: 2015-02-02 | D57: 16:00:00 | E57: 21.47 | F57: 21.69 | G57: 20.11 | H57: 21.02 | I57: 1570418 | J57: -0.4
A58: ICPT | B58: Intercept Pharmac (ICPT) -NasdaqNM (Daily) | C58: 2014-07-21 | D58: 16:00:00 | E58: 215.97 | F58: 218.43 | G58: 213.05 | H58: 218.14 | I58: 191276
A59: INO | B59: Inovio Pharmaceut (INO) -AMEX (Daily) | C59: 2014-07-21 | D59: 16:00:00 | E59: 10.3 | F59: 11.08 | G59: 10.1 | H59: 11.01 | I59: 1800796
A60: JCP | B60: J.C. Penney Compa (JCP) -NYSE (Daily) | C60: 2015-02-02 | D60: 16:01:00 | E60: 7.16 | F60: 7.44 | G60: 7.01 | H60: 7.43 | I60: 12772679 | J60: 0.16
A61: LCI | B61: Lannett Co Inc Co (LCI) -NYSE (Daily) | C61: 2014-07-21 | D61: 16:02:00 | E61: 38.09 | F61: 38.803 | G61: 36.5101 | H61: 37.76 | I61: 611367
A62: NPSP | B62: NPS Pharmaceutica (NPSP) -NasdaqNM (Daily) | C62: 2014-07-21 | D62: 15:59:00 | E62: 28.75 | F62: 29.43 | G62: 28.31 | H62: 29.29 | I62: 1126758
A63: PBYI | B63: Puma Biotechnolog (PBYI) -NYSE (Daily) | C63: 2014-07-21 | D63: 16:02:00 | E63: 58.27 | F63: 59.46 | G63: 57.39 | H63: 58.98 | I63: 348030
